{"text_format":"1","workbook":"xlsx","n_sheets":16,"sheets":["General data","XBRL Errors","Index","Show","Hierarchies","FC.00.00.36","FC.00.01.36","FC.01.01.36","FC.02.01.36","FC.03.01.36","FC.04.01.36","FC.05.01.36","FC.06.01.36","FC.07.01.36","FC.08.01.36","FT.99.01.01"],"not_rendered":{"charts":0,"images":3,"macros":1,"external_links":0,"defined_names":96,"comments":0,"pivot_tables":0},"unopened":[],"bounds":{"document_bytes":16777216,"sheet_cells":100000,"rows_first":2000,"rows_last":500,"rows_between":2000,"halvings":0,"cell_chars":16384,"cell_head_chars":4096},"cells_cut":0,"cells_raw":0,"read":"whole","date_system":"1900"}

{"sheet":"General data","index":0,"n_rows":247,"n_cols":23,"rows_kept":247,"cut":false,"hidden":false,"merged":[[0,6,2,6],[3,0,5,9]]}
[null,null,null,null,null,null,null,"Version:",null,"2.8.1.1",null,null,null,null,null,null,"Not applicable/All geographical areas","http://standards.iso.org/iso/17442","Quarterly FICO reporting","QFI","01","EUR","SII 2.8.1 FICOD"]
[null,null,null,null,null,null,null,null,null,null,null,null,null,null,null,null,"AFGHANISTAN","http://standards.iso.org/iso/17442","Annual FICO reporting","AFI","16","AED"]
[null,null,null,null,null,null,null," ",null,null,null,null,null,null,null,null,"ALBANIA","http://standards.iso.org/iso/17442","Semi-annual FICO reporting","SFI","17","AFN"]
[null,null,null,null,null,null,null,null,null,null,null,null,null,null,null,null,"ALGERIA","http://standards.iso.org/iso/17442",null,null,"18","ALL"]
[null,null,null,null,null,null,null,null,null,null,null,null,null,null,null,null,"AMERICAN SAMOA","http://standards.iso.org/iso/17442",null,null,"19","AMD"]
[null,null,null,null,null,null,null,null,null,null,null,null,null,null,null,null,"ANDORRA","http://standards.iso.org/iso/17442",null,null,"20","ANG"]
[null,null,null,null,null,null,null,null,null,null,null,null,null,null,null,null,"ANGOLA","http://standards.iso.org/iso/17442",null,null,"All","AOA"]
[null,"General Data",null,null,null,null,null,null,null,null,null,"/General data label{B}","/General data value{E}",null,null,null,"ANGUILLA","http://standards.iso.org/iso/17442",null,null,"All","ARS"]
[null,null,null,null,null,null,null,null,null,null,null,null,null,null,null,null,"ANTARCTICA","http://standards.iso.org/iso/17442",null,null,null,"AUD"]
["*","Identifier",":","LEGALIDENTIFIER20POS",{"$f":"\"\"&D10","v":"LEGALIDENTIFIER20POS"},{"$f":"IF(D10=\"\",1,0)","v":0},null,null,null,null,null,null,null,null,null,null,"ANTIGUA AND BARBUDA","http://standards.iso.org/iso/17442",null,null,null,"AWG"]
[null,null,null,null,null,null,null,null,null,null,null,null,null,null,null,null,"ARGENTINA","http://standards.iso.org/iso/17442",null,null,null,"AZN"]
["*","Period start date",":","2020-01-01",{"$f":"D12","v":"2020-01-01"},{"$f":"IF(D12=\"\",1,0)","v":0},null,null,null,null,null,null,null,null,null,null,"ARMENIA","http://standards.iso.org/iso/17442",null,null,null,"BAM"]
[null,null,null,null,null,null,null,null,null,null,null,null,null,null,null,null,"ARUBA","http://standards.iso.org/iso/17442",null,null,null,"BBD"]
["*","Period end date",":","2020-12-31",{"$f":"D14","v":"2020-12-31"},{"$f":"IF(D14=\"\",1,0)","v":0},null,null,null,null,null,null,null,null,null,null,"AUSTRALIA","http://standards.iso.org/iso/17442",null,null,null,"BDT"]
[null,null,null,null,null,null,null,null,null,null,null,null,null,null,null,null,"AUSTRIA","http://standards.iso.org/iso/17442",null,null,null,"BGN"]
[null,"Country",":","Not applicable/All geographical areas",null,null,null,null,null,null,null,null,null,null,null,null,"AZERBAIJAN","http://standards.iso.org/iso/17442",null,null,null,"BHD"]
[null,null,null,null,null,null,null,null,null,null,null,null,null,null,null,null,"BAHAMAS","http://standards.iso.org/iso/17442",null,null,null,"BIF"]
["*","Filing Currency",":","EUR",{"$f":"\"\"&D18","v":"EUR"},{"$f":"IF(D18=\"\",1,0)","v":0},null,null,null,null,null,null,null,null,null,null,"BAHRAIN","http://standards.iso.org/iso/17442",null,null,null,"BMD"]
[null,null,null,null,null,null,null,null,null,null,null,null,null,null,null,null,"BANGLADESH","http://standards.iso.org/iso/17442",null,null,null,"BND"]
["*","Taxonomy",":","SII 2.8.1 FICOD",null,{"$f":"IF(D20=\"\",1,0)","v":0},null,null,null,null,null,null,null,null,null,null,"BARBADOS","http://standards.iso.org/iso/17442",null,null,null,"BOB"]
[null,null,null,null,null,null,null,null,null,null,null,null,null,null,null,null,"BELARUS","http://standards.iso.org/iso/17442",null,null,null,"BRL"]
["*","Module",":","Annual FICO reporting",{"$f":"IFERROR(VLOOKUP(D22,S:T,2,FALSE),\"\")","v":"AFI"},{"$f":"IF(D22=\"\",1,0)","v":0},null,null,null,null,null,null,null,null,null,null,"BELGIUM","http://www.swift.com",null,null,null,"BSD"]
[null,null,null,null,null,null,null,null,null,null,null,null,null,null,null,null,"BELIZE","http://standards.iso.org/iso/17442",null,null,null,"BTN"]
[null,null,null,null,null,null,null,null,null,null,null,null,null,null,null,null,"BENIN","http://standards.iso.org/iso/17442",null,null,null,"BWP"]
[null,"Advanced Requirements",null,null,null,null,null,null,null,null,null,null,null,null,null,null,"BERMUDA","http://standards.iso.org/iso/17442",null,null,null,"BYN"]
[null,null,null,null,null,null,null,null,null,null,null,null,null,null,null,null,"BHUTAN","http://standards.iso.org/iso/17442",null,null,null,"BZD"]
[null,"Identifier scheme",":",{"$f":"IFERROR(VLOOKUP(D16,Q:R,2,FALSE),R1)","v":"http://standards.iso.org/iso/17442"},{"$f":"D27","v":"http://standards.iso.org/iso/17442"},null,null,null,null,null,null,null,null,null,null,null,"BOLIVIA, PLURINATIONAL STATE OF","http://standards.iso.org/iso/17442",null,null,null,"CAD"]
[null,null,null,null,null,null,null,null,null,null,null,null,null,null,null,null,"BRAZIL","http://standards.iso.org/iso/17442",null,null,null,"COP"]
[null,"Monetary decimals",":",null,null,null,null,null,null,null,null,null,null,null,null,null,"BRITISH INDIAN OCEAN TERRITORY","http://standards.iso.org/iso/17442",null,null,null,"CRC"]
[null,null,null,null,null,null,null,null,null,null,null,null,null,null,null,null,"BRUNEI DARUSSALAM","http://standards.iso.org/iso/17442",null,null,null,"CUC"]
[null,"Monetary precision",":",null,null,{"$f":" 0.5 * 10^(-1 * PP_MonetaryPrecision)","v":0.5},null,null,null,null,null,null,null,null,null,null,"BULGARIA","http://standards.iso.org/iso/17442",null,null,null,"CUP"]
[null,null,null,null,null,null,null,null,null,null,null,null,null,null,null,null,"BURKINA FASO","http://standards.iso.org/iso/17442",null,null,null,"CVE"]
[null,"Pure decimals",":",4,null,{"$f":" 0.5 * 10^(-1 * PP_DecimalPrecision)","v":5.0000000000000002E-5},null,null,null,null,null,null,null,null,null,null,"BURUNDI","http://standards.iso.org/iso/17442",null,null,null,"CZK"]
[null,null,null,null,null,null,null,null,null,null,null,null,null,null,null,null,"CAMBODIA","http://standards.iso.org/iso/17442",null,null,null,"DJF"]
[null,"Pure precision",":",4,null,null,null,"#XBRL made simple!",null,null,null,null,null,null,null,null,"CAMEROON","http://standards.iso.org/iso/17442",null,null,null,"DKK"]
[null,null,null,null,null,null,null,null,null,null,null,null,null,null,null,null,"CANADA","http://standards.iso.org/iso/17442",null,null,null,"DOP"]
[null,"Concatenate Errors",":",false,null,null,null,null,null,null,null,null,null,null,null,null,"CAPE VERDE","http://standards.iso.org/iso/17442",null,null,null,"DZD"]
[null,"Additional Requirements (Country specific)",null,null,null,null,null,null,null,null,null,null,null,null,null,null,"CAYMAN ISLANDS","http://standards.iso.org/iso/17442",null,null,null,"EGP"]
["BELGIUM",null,null,null,null,null,null,null,null,null,null,null,null,null,null,null,"CENTRAL AFRICAN REPUBLIC","http://standards.iso.org/iso/17442",null,null,null,"ERN"]
["BELGIUM","Post Parsing features",":",null,null,{"$f":"IF(AND(A40=PP_Country,D40=\"\"),1,0)","v":0},null,null,null,null,null,null,null,null,null,null,"CHAD","http://standards.iso.org/iso/17442",null,null,null,"ETB"]
["BELGIUM",null,null,null,null,null,null,null,null,null,null,null,null,null,null,null,"CHILE","http://standards.iso.org/iso/17442",null,null,null,"EUR"]
["BELGIUM","Reporter e-mail",":",null,null,null,null,null,null,null,null,null,null,null,null,null,"CHINA","http://standards.iso.org/iso/17442",null,null,null,"FJD"]
["BELGIUM",null,null,null,null,null,null,null,null,null,null,null,null,null,null,null,"CHRISTMAS ISLAND","http://standards.iso.org/iso/17442",null,null,null,"FKP"]
["BELGIUM","Declarer Type",":",null,{"$f":"\"\"&D44","v":""},{"$f":"IF(AND(A44=PP_Country,D44=\"\"),1,0)","v":0},null,null,null,null,null,null,null,null,null,null,"COCOS (KEELING) ISLANDS","http://standards.iso.org/iso/17442",null,null,null,"GBP"]
["BELGIUM",null,null,null,null,null,null,null,null,null,null,null,null,null,null,null,"COLOMBIA","http://standards.iso.org/iso/17442",null,null,null,"GEL"]
["BELGIUM","Domain",":",null,{"$f":"\"\"&D46","v":""},{"$f":"IF(AND(A46=PP_Country,D46=\"\"),1,0)","v":0},null,null,null,null,null,null,null,null,null,null,"COMOROS","http://standards.iso.org/iso/17442",null,null,null,"GGP"]
["BELGIUM",null,null,null,null,null,null,null,null,null,null,null,null,null,null,null,"CONGO","http://standards.iso.org/iso/17442",null,null,null,"GHS"]
[null,"ParsePort-specific parameters:",null,"SII_",null,null,null,null,null,null,null,null,null,null,null,null,"CONGO, THE DEMOCRATIC REPUBLIC OF THE","http://standards.iso.org/iso/17442",null,null,null,"GIP"]
[null,"Compress contexts",null,true,null,null,null,null,null,null,null,null,null,null,null,null,"COOK ISLANDS","http://standards.iso.org/iso/17442",null,null,null,"GMD"]
[null,"Language",null,"EN",null,null,null,null,null,null,null,null,null,null,null,null,"COSTA RICA","http://standards.iso.org/iso/17442",null,null,null,"GNF"]
[null,"Debug mode",null,false,null,null,null,null,null,null,null,null,null,null,null,null,"CÔTE D'IVOIRE","http://standards.iso.org/iso/17442",null,null,null,"GTQ"]
[null,"LookupValue fallback",null,false,null,null,null,null,null,null,null,null,null,null,null,null,"CROATIA","http://standards.iso.org/iso/17442",null,null,null,"GYD"]
[null,null,null,null,null,null,null,null,null,null,null,"//General data label{B}","//General data value{E}",null,null,null,"CUBA","http://standards.iso.org/iso/17442",null,null,null,"HKD"]
["BELGIUM",null,null,null,null,null,null,null,null,null,null,null,null,null,null,null,"CURAÇAO","http://standards.iso.org/iso/17442",null,null,null,"HNL"]
["BELGIUM",null,null,null,null,null,null,null,null,null,null,null,null,null,null,null,"CYPRUS","http://standards.iso.org/iso/17442",null,null,null,"HRK"]
[null,null,null,null,null,null,null,null,null,null,null,null,null,null,null,null,"CZECH REPUBLIC","http://standards.iso.org/iso/17442",null,null,null,"HTG"]
[null,null,null,null,null,null,null,null,null,null,null,null,null,null,null,null,"DENMARK","http://standards.iso.org/iso/17442",null,null,null,"HUF"]
[null,null,null,null,null,null,null,null,null,null,null,null,null,null,null,null,"DJIBOUTI","http://standards.iso.org/iso/17442",null,null,null,"IDR"]
[null,null,null,null,null,null,null,null,null,null,null,null,null,null,null,null,"DOMINICA","http://standards.iso.org/iso/17442",null,null,null,"ILS"]
[null,null,null,null,null,null,null,null,null,null,null,null,null,null,null,null,"DOMINICAN REPUBLIC","http://standards.iso.org/iso/17442",null,null,null,"IMP"]
[null,null,null,null,null,null,null,null,null,null,null,null,null,null,null,null,"ECUADOR","http://standards.iso.org/iso/17442",null,null,null,"INR"]
[null,null,null,null,null,null,null,null,null,null,null,null,null,null,null,null,"EGYPT","http://standards.iso.org/iso/17442",null,null,null,"IQD"]
[null,null,null,null,null,null,null,null,null,null,null,null,null,null,null,null,"EL SALVADOR","http://standards.iso.org/iso/17442",null,null,null,"IRR"]
[null,null,null,null,null,null,null,null,null,null,null,null,null,null,null,null,"EQUATORIAL GUINEA","http://standards.iso.org/iso/17442",null,null,null,"ISK"]
[null,null,null,null,null,null,null,null,null,null,null,null,null,null,null,null,"ERITREA","http://standards.iso.org/iso/17442",null,null,null,"JEP"]
[null,null,null,null,null,null,null,null,null,null,null,null,null,null,null,null,"ESTONIA","http://standards.iso.org/iso/17442",null,null,null,"JMD"]
[null,null,null,null,null,null,null,null,null,null,null,null,null,null,null,null,"ETHIOPIA","http://standards.iso.org/iso/17442",null,null,null,"JOD"]
[null,null,null,null,null,null,null,null,null,null,null,null,null,null,null,null,"FALKLAND ISLANDS (MALVINAS)","http://standards.iso.org/iso/17442",null,null,null,"JPY"]
[null,null,null,null,null,null,null,null,null,null,null,null,null,null,null,null,"FAROE ISLANDS","http://standards.iso.org/iso/17442",null,null,null,"KES"]
[null,null,null,null,null,null,null,null,null,null,null,null,null,null,null,null,"FIJI","http://standards.iso.org/iso/17442",null,null,null,"KGS"]
[null,null,null,null,null,null,null,null,null,null,null,null,null,null,null,null,"FINLAND","http://standards.iso.org/iso/17442",null,null,null,"KHR"]
[null,null,null,null,null,null,null,null,null,null,null,null,null,null,null,null,"FRANCE","http://standards.iso.org/iso/17442",null,null,null,"KMF"]
[null,null,null,null,null,null,null,null,null,null,null,null,null,null,null,null,"FRENCH GUIANA","http://standards.iso.org/iso/17442",null,null,null,"KPW"]
[null,null,null,null,null,null,null,null,null,null,null,null,null,null,null,null,"FRENCH POLYNESIA","http://standards.iso.org/iso/17442",null,null,null,"KRW"]
[null,null,null,null,null,null,null,null,null,null,null,null,null,null,null,null,"FRENCH SOUTHERN TERRITORIES","http://standards.iso.org/iso/17442",null,null,null,"KWD"]
[null,null,null,null,null,null,null,null,null,null,null,null,null,null,null,null,"GABON","http://standards.iso.org/iso/17442",null,null,null,"KYD"]
[null,null,null,null,null,null,null,null,null,null,null,null,null,null,null,null,"GAMBIA","http://standards.iso.org/iso/17442",null,null,null,"KZT"]
[null,null,null,null,null,null,null,null,null,null,null,null,null,null,null,null,"GEORGIA","http://standards.iso.org/iso/17442",null,null,null,"LAK"]
[null,null,null,null,null,null,null,null,null,null,null,null,null,null,null,null,"GERMANY","http://standards.iso.org/iso/17442",null,null,null,"LBP"]
[null,null,null,null,null,null,null,null,null,null,null,null,null,null,null,null,"GHANA","http://standards.iso.org/iso/17442",null,null,null,"LKR"]
[null,null,null,null,null,null,null,null,null,null,null,null,null,null,null,null,"GIBRALTAR","http://standards.iso.org/iso/17442",null,null,null,"LRD"]
[null,null,null,null,null,null,null,null,null,null,null,null,null,null,null,null,"GREECE","http://standards.iso.org/iso/17442",null,null,null,"LSL"]
[null,null,null,null,null,null,null,null,null,null,null,null,null,null,null,null,"GREENLAND","http://standards.iso.org/iso/17442",null,null,null,"LYD"]
[null,null,null,null,null,null,null,null,null,null,null,null,null,null,null,null,"GRENADA","http://standards.iso.org/iso/17442",null,null,null,"MAD"]
[null,null,null,null,null,null,null,null,null,null,null,null,null,null,null,null,"GUADELOUPE","http://standards.iso.org/iso/17442",null,null,null,"MDL"]
[null,null,null,null,null,null,null,null,null,null,null,null,null,null,null,null,"GUAM","http://standards.iso.org/iso/17442",null,null,null,"MGA"]
[null,null,null,null,null,null,null,null,null,null,null,null,null,null,null,null,"GUATEMALA","http://standards.iso.org/iso/17442",null,null,null,"MKD"]
[null,null,null,null,null,null,null,null,null,null,null,null,null,null,null,null,"GUERNSEY","http://standards.iso.org/iso/17442",null,null,null,"MMK"]
[null,null,null,null,null,null,null,null,null,null,null,null,null,null,null,null,"GUINEA","http://standards.iso.org/iso/17442",null,null,null,"MNT"]
[null,null,null,null,null,null,null,null,null,null,null,null,null,null,null,null,"GUINEA-BISSAU","http://standards.iso.org/iso/17442",null,null,null,"MOP"]
[null,null,null,null,null,null,null,null,null,null,null,null,null,null,null,null,"GUYANA","http://standards.iso.org/iso/17442",null,null,null,"MRO"]
[null,null,null,null,null,null,null,null,null,null,null,null,null,null,null,null,"HAITI","http://standards.iso.org/iso/17442",null,null,null,"MUR"]
[null,null,null,null,null,null,null,null,null,null,null,null,null,null,null,null,"HEARD ISLAND AND MCDONALD ISLANDS","http://standards.iso.org/iso/17442",null,null,null,"MVR"]
[null,null,null,null,null,null,null,null,null,null,null,null,null,null,null,null,"HOLY SEE (VATICAN CITY STATE)","http://standards.iso.org/iso/17442",null,null,null,"MWK"]
[null,null,null,null,null,null,null,null,null,null,null,null,null,null,null,null,"HONDURAS","http://standards.iso.org/iso/17442",null,null,null,"MXN"]
[null,null,null,null,null,null,null,null,null,null,null,null,null,null,null,null,"HONG KONG","http://standards.iso.org/iso/17442",null,null,null,"MYR"]
[null,null,null,null,null,null,null,null,null,null,null,null,null,null,null,null,"HUNGARY","http://standards.iso.org/iso/17442",null,null,null,"MZN"]
[null,null,null,null,null,null,null,null,null,null,null,null,null,null,null,null,"ICELAND","http://standards.iso.org/iso/17442",null,null,null,"NAD"]
[null,null,null,null,null,null,null,null,null,null,null,null,null,null,null,null,"INDIA","http://standards.iso.org/iso/17442",null,null,null,"NGN"]
[null,null,null,null,null,null,null,null,null,null,null,null,null,null,null,null,"INDONESIA","http://standards.iso.org/iso/17442",null,null,null,"NIO"]
[null,null,null,null,null,null,null,null,null,null,null,null,null,null,null,null,"IRAN, ISLAMIC REPUBLIC OF","http://standards.iso.org/iso/17442",null,null,null,"NOK"]
[null,null,null,null,null,null,null,null,null,null,null,null,null,null,null,null,"IRAQ","http://standards.iso.org/iso/17442",null,null,null,"NPR"]
[null,null,null,null,null,null,null,null,null,null,null,null,null,null,null,null,"IRELAND","http://standards.iso.org/iso/17442",null,null,null,"NZD"]
[null,null,null,null,null,null,null,null,null,null,null,null,null,null,null,null,"ISLE OF MAN","http://standards.iso.org/iso/17442",null,null,null,"OMR"]
[null,null,null,null,null,null,null,null,null,null,null,null,null,null,null,null,"ISRAEL","http://standards.iso.org/iso/17442",null,null,null,"PAB"]
[null,null,null,null,null,null,null,null,null,null,null,null,null,null,null,null,"ITALY","http://standards.iso.org/iso/17442",null,null,null,"PEN"]
[null,null,null,null,null,null,null,null,null,null,null,null,null,null,null,null,"JAMAICA","http://standards.iso.org/iso/17442",null,null,null,"PGK"]
[null,null,null,null,null,null,null,null,null,null,null,null,null,null,null,null,"JAPAN","http://standards.iso.org/iso/17442",null,null,null,"PHP"]
[null,null,null,null,null,null,null,null,null,null,null,null,null,null,null,null,"JERSEY","http://standards.iso.org/iso/17442",null,null,null,"PKR"]
[null,null,null,null,null,null,null,null,null,null,null,null,null,null,null,null,"JORDAN","http://standards.iso.org/iso/17442",null,null,null,"PLN"]
[null,null,null,null,null,null,null,null,null,null,null,null,null,null,null,null,"KAZAKHSTAN","http://standards.iso.org/iso/17442",null,null,null,"PYG"]
[null,null,null,null,null,null,null,null,null,null,null,null,null,null,null,null,"KENYA","http://standards.iso.org/iso/17442",null,null,null,"QAR"]
[null,null,null,null,null,null,null,null,null,null,null,null,null,null,null,null,"KIRIBATI","http://standards.iso.org/iso/17442",null,null,null,"RON"]
[null,null,null,null,null,null,null,null,null,null,null,null,null,null,null,null,"KOREA, DEMOCRATIC PEOPLE'S REPUBLIC OF","http://standards.iso.org/iso/17442",null,null,null,"RSD"]
[null,null,null,null,null,null,null,null,null,null,null,null,null,null,null,null,"KOREA, REPUBLIC OF","http://standards.iso.org/iso/17442",null,null,null,"RUB"]
[null,null,null,null,null,null,null,null,null,null,null,null,null,null,null,null,"KUWAIT","http://standards.iso.org/iso/17442",null,null,null,"RWF"]
[null,null,null,null,null,null,null,null,null,null,null,null,null,null,null,null,"KYRGYZSTAN","http://standards.iso.org/iso/17442",null,null,null,"SAR"]
[null,null,null,null,null,null,null,null,null,null,null,null,null,null,null,null,"LAO PEOPLE'S DEMOCRATIC REPUBLIC","http://standards.iso.org/iso/17442",null,null,null,"SBD"]
[null,null,null,null,null,null,null,null,null,null,null,null,null,null,null,null,"LATVIA","http://standards.iso.org/iso/17442",null,null,null,"SCR"]
[null,null,null,null,null,null,null,null,null,null,null,null,null,null,null,null,"LEBANON","http://standards.iso.org/iso/17442",null,null,null,"SDG"]
[null,null,null,null,null,null,null,null,null,null,null,null,null,null,null,null,"LESOTHO","http://standards.iso.org/iso/17442",null,null,null,"SEK"]
[null,null,null,null,null,null,null,null,null,null,null,null,null,null,null,null,"LIBERIA","http://standards.iso.org/iso/17442",null,null,null,"SGD"]
[null,null,null,null,null,null,null,null,null,null,null,null,null,null,null,null,"LIBYA","http://standards.iso.org/iso/17442",null,null,null,"SHP"]
[null,null,null,null,null,null,null,null,null,null,null,null,null,null,null,null,"LIECHTENSTEIN","http://standards.iso.org/iso/17442",null,null,null,"SLL"]
[null,null,null,null,null,null,null,null,null,null,null,null,null,null,null,null,"LITHUANIA","http://standards.iso.org/iso/17442",null,null,null,"SOS"]
[null,null,null,null,null,null,null,null,null,null,null,null,null,null,null,null,"LUXEMBOURG","http://www.cssf.lu",null,null,null,"SPL"]
[null,null,null,null,null,null,null,null,null,null,null,null,null,null,null,null,"MACAO","http://standards.iso.org/iso/17442",null,null,null,"SRD"]
[null,null,null,null,null,null,null,null,null,null,null,null,null,null,null,null,"MACEDONIA, THE FORMER YUGOSLAV REPUBLIC OF","http://standards.iso.org/iso/17442",null,null,null,"STD"]
[null,null,null,null,null,null,null,null,null,null,null,null,null,null,null,null,"MADAGASCAR","http://standards.iso.org/iso/17442",null,null,null,"SVC"]
[null,null,null,null,null,null,null,null,null,null,null,null,null,null,null,null,"MALAWI","http://standards.iso.org/iso/17442",null,null,null,"SYP"]
[null,null,null,null,null,null,null,null,null,null,null,null,null,null,null,null,"MALAYSIA","http://standards.iso.org/iso/17442",null,null,null,"SZL"]
[null,null,null,null,null,null,null,null,null,null,null,null,null,null,null,null,"MALDIVES","http://standards.iso.org/iso/17442",null,null,null,"THB"]
[null,null,null,null,null,null,null,null,null,null,null,null,null,null,null,null,"MALI","http://standards.iso.org/iso/17442",null,null,null,"TJS"]
[null,null,null,null,null,null,null,null,null,null,null,null,null,null,null,null,"MALTA","http://standards.iso.org/iso/17442",null,null,null,"TMT"]
[null,null,null,null,null,null,null,null,null,null,null,null,null,null,null,null,"MARSHALL ISLANDS","http://standards.iso.org/iso/17442",null,null,null,"TND"]
[null,null,null,null,null,null,null,null,null,null,null,null,null,null,null,null,"MARTINIQUE","http://standards.iso.org/iso/17442",null,null,null,"TOP"]
[null,null,null,null,null,null,null,null,null,null,null,null,null,null,null,null,"MAURITANIA","http://standards.iso.org/iso/17442",null,null,null,"TRY"]
[null,null,null,null,null,null,null,null,null,null,null,null,null,null,null,null,"MAURITIUS","http://standards.iso.org/iso/17442",null,null,null,"TTD"]
[null,null,null,null,null,null,null,null,null,null,null,null,null,null,null,null,"MAYOTTE","http://standards.iso.org/iso/17442",null,null,null,"TVD"]
[null,null,null,null,null,null,null,null,null,null,null,null,null,null,null,null,"MEXICO","http://standards.iso.org/iso/17442",null,null,null,"TWD"]
[null,null,null,null,null,null,null,null,null,null,null,null,null,null,null,null,"MICRONESIA, FEDERATED STATES OF","http://standards.iso.org/iso/17442",null,null,null,"TZS"]
[null,null,null,null,null,null,null,null,null,null,null,null,null,null,null,null,"MOLDOVA, REPUBLIC OF","http://standards.iso.org/iso/17442",null,null,null,"UAH"]
[null,null,null,null,null,null,null,null,null,null,null,null,null,null,null,null,"MONACO","http://standards.iso.org/iso/17442",null,null,null,"UGX"]
[null,null,null,null,null,null,null,null,null,null,null,null,null,null,null,null,"MONGOLIA","http://standards.iso.org/iso/17442",null,null,null,"USD"]
[null,null,null,null,null,null,null,null,null,null,null,null,null,null,null,null,"MONTENEGRO","http://standards.iso.org/iso/17442",null,null,null,"UYU"]
[null,null,null,null,null,null,null,null,null,null,null,null,null,null,null,null,"MONTSERRAT","http://standards.iso.org/iso/17442",null,null,null,"UZS"]
[null,null,null,null,null,null,null,null,null,null,null,null,null,null,null,null,"MOROCCO","http://standards.iso.org/iso/17442",null,null,null,"VEF"]
[null,null,null,null,null,null,null,null,null,null,null,null,null,null,null,null,"MOZAMBIQUE","http://standards.iso.org/iso/17442",null,null,null,"VND"]
[null,null,null,null,null,null,null,null,null,null,null,null,null,null,null,null,"MYANMAR","http://standards.iso.org/iso/17442",null,null,null,"VUV"]
[null,null,null,null,null,null,null,null,null,null,null,null,null,null,null,null,"NAMIBIA","http://standards.iso.org/iso/17442",null,null,null,"WST"]
[null,null,null,null,null,null,null,null,null,null,null,null,null,null,null,null,"NAURU","http://standards.iso.org/iso/17442",null,null,null,"XAF"]
[null,null,null,null,null,null,null,null,null,null,null,null,null,null,null,null,"NEPAL","http://standards.iso.org/iso/17442",null,null,null,"XCD"]
[null,null,null,null,null,null,null,null,null,null,null,null,null,null,null,null,"NETHERLANDS","http://standards.iso.org/iso/17442",null,null,null,"XDR"]
[null,null,null,null,null,null,null,null,null,null,null,null,null,null,null,null,"NEW CALEDONIA","http://standards.iso.org/iso/17442",null,null,null,"XOF"]
[null,null,null,null,null,null,null,null,null,null,null,null,null,null,null,null,"NEW ZEALAND","http://standards.iso.org/iso/17442",null,null,null,"XPF"]
[null,null,null,null,null,null,null,null,null,null,null,null,null,null,null,null,"NICARAGUA","http://standards.iso.org/iso/17442",null,null,null,"YER"]
[null,null,null,null,null,null,null,null,null,null,null,null,null,null,null,null,"NIGER","http://standards.iso.org/iso/17442",null,null,null,"ZAR"]
[null,null,null,null,null,null,null,null,null,null,null,null,null,null,null,null,"NIGERIA","http://standards.iso.org/iso/17442",null,null,null,"ZMW"]
[null,null,null,null,null,null,null,null,null,null,null,null,null,null,null,null,"NIUE","http://standards.iso.org/iso/17442",null,null,null,"ZWD"]
[null,null,null,null,null,null,null,null,null,null,null,null,null,null,null,null,"NORFOLK ISLAND","http://standards.iso.org/iso/17442"]
[null,null,null,null,null,null,null,null,null,null,null,null,null,null,null,null,"NORTHERN MARIANA ISLANDS","http://standards.iso.org/iso/17442"]
[null,null,null,null,null,null,null,null,null,null,null,null,null,null,null,null,"NORWAY","SC"]
[null,null,null,null,null,null,null,null,null,null,null,null,null,null,null,null,"OMAN","http://standards.iso.org/iso/17442"]
[null,null,null,null,null,null,null,null,null,null,null,null,null,null,null,null,"PAKISTAN","http://standards.iso.org/iso/17442"]
[null,null,null,null,null,null,null,null,null,null,null,null,null,null,null,null,"PALAU","http://standards.iso.org/iso/17442"]
[null,null,null,null,null,null,null,null,null,null,null,null,null,null,null,null,"PALESTINIAN TERRITORY, OCCUPIED","http://standards.iso.org/iso/17442"]
[null,null,null,null,null,null,null,null,null,null,null,null,null,null,null,null,"PANAMA","http://standards.iso.org/iso/17442"]
[null,null,null,null,null,null,null,null,null,null,null,null,null,null,null,null,"PAPUA NEW GUINEA","http://standards.iso.org/iso/17442"]
[null,null,null,null,null,null,null,null,null,null,null,null,null,null,null,null,"PARAGUAY","http://standards.iso.org/iso/17442"]
[null,null,null,null,null,null,null,null,null,null,null,null,null,null,null,null,"PERU","http://standards.iso.org/iso/17442"]
[null,null,null,null,null,null,null,null,null,null,null,null,null,null,null,null,"PHILIPPINES","http://standards.iso.org/iso/17442"]
[null,null,null,null,null,null,null,null,null,null,null,null,null,null,null,null,"PITCAIRN","http://standards.iso.org/iso/17442"]
[null,null,null,null,null,null,null,null,null,null,null,null,null,null,null,null,"POLAND","http://standards.iso.org/iso/17442"]
[null,null,null,null,null,null,null,null,null,null,null,null,null,null,null,null,"PORTUGAL","http://standards.iso.org/iso/17442"]
[null,null,null,null,null,null,null,null,null,null,null,null,null,null,null,null,"PUERTO RICO","http://standards.iso.org/iso/17442"]
[null,null,null,null,null,null,null,null,null,null,null,null,null,null,null,null,"QATAR","http://standards.iso.org/iso/17442"]
[null,null,null,null,null,null,null,null,null,null,null,null,null,null,null,null,"RÉUNION","http://standards.iso.org/iso/17442"]
[null,null,null,null,null,null,null,null,null,null,null,null,null,null,null,null,"ROMANIA","http://standards.iso.org/iso/17442"]
[null,null,null,null,null,null,null,null,null,null,null,null,null,null,null,null,"RUSSIAN FEDERATION","http://standards.iso.org/iso/17442"]
[null,null,null,null,null,null,null,null,null,null,null,null,null,null,null,null,"RWANDA","http://standards.iso.org/iso/17442"]
[null,null,null,null,null,null,null,null,null,null,null,null,null,null,null,null,"SAINT BARTHÉLEMY","http://standards.iso.org/iso/17442"]
[null,null,null,null,null,null,null,null,null,null,null,null,null,null,null,null,"SAINT HELENA, ASCENSION AND TRISTAN DA CUNHA","http://standards.iso.org/iso/17442"]
[null,null,null,null,null,null,null,null,null,null,null,null,null,null,null,null,"SAINT KITTS AND NEVIS","http://standards.iso.org/iso/17442"]
[null,null,null,null,null,null,null,null,null,null,null,null,null,null,null,null,"SAINT LUCIA","http://standards.iso.org/iso/17442"]
[null,null,null,null,null,null,null,null,null,null,null,null,null,null,null,null,"SAINT MARTIN (FRENCH PART)","http://standards.iso.org/iso/17442"]
[null,null,null,null,null,null,null,null,null,null,null,null,null,null,null,null,"SAINT PIERRE AND MIQUELON","http://standards.iso.org/iso/17442"]
[null,null,null,null,null,null,null,null,null,null,null,null,null,null,null,null,"SAINT VINCENT AND THE GRENADINES","http://standards.iso.org/iso/17442"]
[null,null,null,null,null,null,null,null,null,null,null,null,null,null,null,null,"SAMOA","http://standards.iso.org/iso/17442"]
[null,null,null,null,null,null,null,null,null,null,null,null,null,null,null,null,"SAN MARINO","http://standards.iso.org/iso/17442"]
[null,null,null,null,null,null,null,null,null,null,null,null,null,null,null,null,"SAO TOME AND PRINCIPE","http://standards.iso.org/iso/17442"]
[null,null,null,null,null,null,null,null,null,null,null,null,null,null,null,null,"SAUDI ARABIA","http://standards.iso.org/iso/17442"]
[null,null,null,null,null,null,null,null,null,null,null,null,null,null,null,null,"SENEGAL","http://standards.iso.org/iso/17442"]
[null,null,null,null,null,null,null,null,null,null,null,null,null,null,null,null,"SERBIA","http://standards.iso.org/iso/17442"]
[null,null,null,null,null,null,null,null,null,null,null,null,null,null,null,null,"SEYCHELLES","http://standards.iso.org/iso/17442"]
[null,null,null,null,null,null,null,null,null,null,null,null,null,null,null,null,"SIERRA LEONE","http://standards.iso.org/iso/17442"]
[null,null,null,null,null,null,null,null,null,null,null,null,null,null,null,null,"SINGAPORE","http://standards.iso.org/iso/17442"]
[null,null,null,null,null,null,null,null,null,null,null,null,null,null,null,null,"SINT MAARTEN (DUTCH PART)","http://standards.iso.org/iso/17442"]
[null,null,null,null,null,null,null,null,null,null,null,null,null,null,null,null,"SLOVAKIA","http://standards.iso.org/iso/17442"]
[null,null,null,null,null,null,null,null,null,null,null,null,null,null,null,null,"SLOVENIA","http://standards.iso.org/iso/17442"]
[null,null,null,null,null,null,null,null,null,null,null,null,null,null,null,null,"SOLOMON ISLANDS","http://standards.iso.org/iso/17442"]
[null,null,null,null,null,null,null,null,null,null,null,null,null,null,null,null,"SOMALIA","http://standards.iso.org/iso/17442"]
[null,null,null,null,null,null,null,null,null,null,null,null,null,null,null,null,"SOUTH AFRICA","http://standards.iso.org/iso/17442"]
[null,null,null,null,null,null,null,null,null,null,null,null,null,null,null,null,"SOUTH GEORGIA AND THE SOUTH SANDWICH ISLANDS","http://standards.iso.org/iso/17442"]
[null,null,null,null,null,null,null,null,null,null,null,null,null,null,null,null,"SOUTH SUDAN","http://standards.iso.org/iso/17442"]
[null,null,null,null,null,null,null,null,null,null,null,null,null,null,null,null,"SPAIN","http://standards.iso.org/iso/17442"]
[null,null,null,null,null,null,null,null,null,null,null,null,null,null,null,null,"SRI LANKA","http://standards.iso.org/iso/17442"]
[null,null,null,null,null,null,null,null,null,null,null,null,null,null,null,null,"SUDAN","http://standards.iso.org/iso/17442"]
[null,null,null,null,null,null,null,null,null,null,null,null,null,null,null,null,"SURINAME","http://standards.iso.org/iso/17442"]
[null,null,null,null,null,null,null,null,null,null,null,null,null,null,null,null,"SVALBARD AND JAN MAYEN","http://standards.iso.org/iso/17442"]
[null,null,null,null,null,null,null,null,null,null,null,null,null,null,null,null,"SWAZILAND","http://standards.iso.org/iso/17442"]
[null,null,null,null,null,null,null,null,null,null,null,null,null,null,null,null,"SWEDEN","http://www.fi.se/instnr"]
[null,null,null,null,null,null,null,null,null,null,null,null,null,null,null,null,"SWITZERLAND","http://standards.iso.org/iso/17442"]
[null,null,null,null,null,null,null,null,null,null,null,null,null,null,null,null,"SYRIAN ARAB REPUBLIC","http://standards.iso.org/iso/17442"]
[null,null,null,null,null,null,null,null,null,null,null,null,null,null,null,null,"TAIWAN, PROVINCE OF CHINA","http://standards.iso.org/iso/17442"]
[null,null,null,null,null,null,null,null,null,null,null,null,null,null,null,null,"TAJIKISTAN","http://standards.iso.org/iso/17442"]
[null,null,null,null,null,null,null,null,null,null,null,null,null,null,null,null,"TANZANIA, UNITED REPUBLIC OF","http://standards.iso.org/iso/17442"]
[null,null,null,null,null,null,null,null,null,null,null,null,null,null,null,null,"THAILAND","http://standards.iso.org/iso/17442"]
[null,null,null,null,null,null,null,null,null,null,null,null,null,null,null,null,"TIMOR-LESTE","http://standards.iso.org/iso/17442"]
[null,null,null,null,null,null,null,null,null,null,null,null,null,null,null,null,"TOGO","http://standards.iso.org/iso/17442"]
[null,null,null,null,null,null,null,null,null,null,null,null,null,null,null,null,"TOKELAU","http://standards.iso.org/iso/17442"]
[null,null,null,null,null,null,null,null,null,null,null,null,null,null,null,null,"TONGA","http://standards.iso.org/iso/17442"]
[null,null,null,null,null,null,null,null,null,null,null,null,null,null,null,null,"TRINIDAD AND TOBAGO","http://standards.iso.org/iso/17442"]
[null,null,null,null,null,null,null,null,null,null,null,null,null,null,null,null,"TUNISIA","http://standards.iso.org/iso/17442"]
[null,null,null,null,null,null,null,null,null,null,null,null,null,null,null,null,"TURKEY","http://standards.iso.org/iso/17442"]
[null,null,null,null,null,null,null,null,null,null,null,null,null,null,null,null,"TURKMENISTAN","http://standards.iso.org/iso/17442"]
[null,null,null,null,null,null,null,null,null,null,null,null,null,null,null,null,"TURKS AND CAICOS ISLANDS","http://standards.iso.org/iso/17442"]
[null,null,null,null,null,null,null,null,null,null,null,null,null,null,null,null,"TUVALU","http://standards.iso.org/iso/17442"]
[null,null,null,null,null,null,null,null,null,null,null,null,null,null,null,null,"UGANDA","http://standards.iso.org/iso/17442"]
[null,null,null,null,null,null,null,null,null,null,null,null,null,null,null,null,"UKRAINE","http://standards.iso.org/iso/17442"]
[null,null,null,null,null,null,null,null,null,null,null,null,null,null,null,null,"UNITED ARAB EMIRATES","http://standards.iso.org/iso/17442"]
[null,null,null,null,null,null,null,null,null,null,null,null,null,null,null,null,"UNITED KINGDOM","http://standards.iso.org/iso/17442"]
[null,null,null,null,null,null,null,null,null,null,null,null,null,null,null,null,"UNITED STATES","http://standards.iso.org/iso/17442"]
[null,null,null,null,null,null,null,null,null,null,null,null,null,null,null,null,"UNITED STATES MINOR OUTLYING ISLANDS","http://standards.iso.org/iso/17442"]
[null,null,null,null,null,null,null,null,null,null,null,null,null,null,null,null,"URUGUAY","http://standards.iso.org/iso/17442"]
[null,null,null,null,null,null,null,null,null,null,null,null,null,null,null,null,"UZBEKISTAN","http://standards.iso.org/iso/17442"]
[null,null,null,null,null,null,null,null,null,null,null,null,null,null,null,null,"VANUATU","http://standards.iso.org/iso/17442"]
[null,null,null,null,null,null,null,null,null,null,null,null,null,null,null,null,"VENEZUELA, BOLIVARIAN REPUBLIC OF","http://standards.iso.org/iso/17442"]
[null,null,null,null,null,null,null,null,null,null,null,null,null,null,null,null,"VIET NAM","http://standards.iso.org/iso/17442"]
[null,null,null,null,null,null,null,null,null,null,null,null,null,null,null,null,"VIRGIN ISLANDS, BRITISH","http://standards.iso.org/iso/17442"]
[null,null,null,null,null,null,null,null,null,null,null,null,null,null,null,null,"VIRGIN ISLANDS, U.S.","http://standards.iso.org/iso/17442"]
[null,null,null,null,null,null,null,null,null,null,null,null,null,null,null,null,"WALLIS AND FUTUNA","http://standards.iso.org/iso/17442"]
[null,null,null,null,null,null,null,null,null,null,null,null,null,null,null,null,"WESTERN SAHARA","http://standards.iso.org/iso/17442"]
[null,null,null,null,null,null,null,null,null,null,null,null,null,null,null,null,"YEMEN","http://standards.iso.org/iso/17442"]
[null,null,null,null,null,null,null,null,null,null,null,null,null,null,null,null,"ZAMBIA","http://standards.iso.org/iso/17442"]
[null,null,null,null,null,null,null,null,null,null,null,null,null,null,null,null,"ZIMBABWE","http://standards.iso.org/iso/17442"]
[null,null,null,null,null,null,null,null,null,null,null,null,null,null,null,null,"ÅLAND ISLANDS","http://standards.iso.org/iso/17442"]
[null,null,null,null,null,null,null,null,null,null,null,null,null,null,null,null,"Other Countries","http://standards.iso.org/iso/17442"]

{"sheet":"XBRL Errors","index":1,"n_rows":1,"n_cols":2,"rows_kept":1,"cut":false,"hidden":false,"merged":[]}
["Timestamp","Error"]

{"sheet":"Index","index":2,"n_rows":16,"n_cols":5,"rows_kept":16,"cut":false,"hidden":false,"merged":[[2,1,2,14]]}
[]
[]
[null,"Index"]
[]
[null,"Template Code","Template Name","Reporting Status"]
[null,"FC.00.00.36","Content of the submission",null,{"$f":"IF($D$6=\"Reported\",\"@ForceFilingCode:true\",IF($D$6=\"Not Reported\",\"@ForceFilingCode:false\",\"\"))","v":""}]
[null,"FC.00.01.36","Summary template",null,{"$f":"IF($D$7=\"Reported\",\"@ForceFilingCode:true\",IF($D$7=\"Not Reported\",\"@ForceFilingCode:false\",\"\"))","v":""}]
[null,"FC.01.01.36","IGT - Equity-type transactions, debt and asset transfer",null,{"$f":"IF($D$8=\"Reported\",\"@ForceFilingCode:true\",IF($D$8=\"Not Reported\",\"@ForceFilingCode:false\",\"\"))","v":""}]
[null,"FC.02.01.36","IGT - Derivatives",null,{"$f":"IF($D$9=\"Reported\",\"@ForceFilingCode:true\",IF($D$9=\"Not Reported\",\"@ForceFilingCode:false\",\"\"))","v":""}]
[null,"FC.03.01.36","IGT - Off-balance sheet and contingent liabilities",null,{"$f":"IF($D$10=\"Reported\",\"@ForceFilingCode:true\",IF($D$10=\"Not Reported\",\"@ForceFilingCode:false\",\"\"))","v":""}]
[null,"FC.04.01.36","IGT - Insurance-reinsurance",null,{"$f":"IF($D$11=\"Reported\",\"@ForceFilingCode:true\",IF($D$11=\"Not Reported\",\"@ForceFilingCode:false\",\"\"))","v":""}]
[null,"FC.05.01.36","IGT - P&L",null,{"$f":"IF($D$12=\"Reported\",\"@ForceFilingCode:true\",IF($D$12=\"Not Reported\",\"@ForceFilingCode:false\",\"\"))","v":""}]
[null,"FC.06.01.36","Risk concentration – Exposure to Counterparties",null,{"$f":"IF($D$13=\"Reported\",\"@ForceFilingCode:true\",IF($D$13=\"Not Reported\",\"@ForceFilingCode:false\",\"\"))","v":""}]
[null,"FC.07.01.36","Risk Concentration - Exposure by currency, sector, country",null,{"$f":"IF($D$14=\"Reported\",\"@ForceFilingCode:true\",IF($D$14=\"Not Reported\",\"@ForceFilingCode:false\",\"\"))","v":""}]
[null,"FC.08.01.36","Risk Concentration - Exposure by asset class and rating",null,{"$f":"IF($D$15=\"Reported\",\"@ForceFilingCode:true\",IF($D$15=\"Not Reported\",\"@ForceFilingCode:false\",\"\"))","v":""}]
[null,"FT.99.01.01","Technical table",null,{"$f":"IF($D$16=\"Reported\",\"@ForceFilingCode:true\",IF($D$16=\"Not Reported\",\"@ForceFilingCode:false\",\"\"))","v":""}]

{"sheet":"Show","index":3,"n_rows":12,"n_cols":5,"rows_kept":12,"cut":false,"hidden":true,"merged":[]}
["Sheet","Prefix","QFI","AFI","SFI"]
["FC.00.00.36",{"$f":"IF(AND(HLOOKUP('General data'!$E$22,$C$1:$F$2,2,FALSE)=\"X\",Index!D6=\"Reported\"),\"/\",\"!\")","v":"!"},"X","X","X"]
["FC.00.01.36",{"$f":"IF(AND(HLOOKUP('General data'!$E$22,$C$1:$F$3,3,FALSE)=\"X\",Index!D7=\"Reported\"),\"/\",\"!\")","v":"!"},"X","X","X"]
["FC.01.01.36",{"$f":"IF(AND(HLOOKUP('General data'!$E$22,$C$1:$F$4,4,FALSE)=\"X\",Index!D8=\"Reported\"),\"/\",\"!\")","v":"!"},"X","X","X"]
["FC.02.01.36",{"$f":"IF(AND(HLOOKUP('General data'!$E$22,$C$1:$F$5,5,FALSE)=\"X\",Index!D9=\"Reported\"),\"/\",\"!\")","v":"!"},"X","X","X"]
["FC.03.01.36",{"$f":"IF(AND(HLOOKUP('General data'!$E$22,$C$1:$F$6,6,FALSE)=\"X\",Index!D10=\"Reported\"),\"/\",\"!\")","v":"!"},"X","X","X"]
["FC.04.01.36",{"$f":"IF(AND(HLOOKUP('General data'!$E$22,$C$1:$F$7,7,FALSE)=\"X\",Index!D11=\"Reported\"),\"/\",\"!\")","v":"!"},"X","X","X"]
["FC.05.01.36",{"$f":"IF(AND(HLOOKUP('General data'!$E$22,$C$1:$F$8,8,FALSE)=\"X\",Index!D12=\"Reported\"),\"/\",\"!\")","v":"!"},"X","X","X"]
["FC.06.01.36",{"$f":"IF(AND(HLOOKUP('General data'!$E$22,$C$1:$F$9,9,FALSE)=\"X\",Index!D13=\"Reported\"),\"/\",\"!\")","v":"!"},"X","X","X"]
["FC.07.01.36",{"$f":"IF(AND(HLOOKUP('General data'!$E$22,$C$1:$F$10,10,FALSE)=\"X\",Index!D14=\"Reported\"),\"/\",\"!\")","v":"!"},"X","X","X"]
["FC.08.01.36",{"$f":"IF(AND(HLOOKUP('General data'!$E$22,$C$1:$F$11,11,FALSE)=\"X\",Index!D15=\"Reported\"),\"/\",\"!\")","v":"!"},"X","X","X"]
["FT.99.01.01",{"$f":"IF(AND(HLOOKUP('General data'!$E$22,$C$1:$F$12,12,FALSE)=\"X\",Index!D16=\"Reported\"),\"/\",\"!\")","v":"!"},"X","X","X"]

{"sheet":"Hierarchies","index":4,"n_rows":984,"n_cols":39,"rows_kept":984,"cut":false,"hidden":true,"merged":[]}
["hier_CN_2","hier_CN_61","hier_CN_63","hier_CN_65","hier_CN_147","hier_CN_140","hier_CN_1","hier_CU_5","hier_CS_13","hier_SE_34","hier_MC_70","hier_MC_35","hier_CU_1","hier_MC_71","hier_MC_72","hier_PU_41","hier_MC_73","hier_SE_35","hier_MC_74","hier_TB_14","hier_LB_57","hier_CE_801","hier_MC_800","hier_SE_33","hier_NC_1","hier_GA_18","hier_CU_7","hier_CU_7","hier_GA_43","hier_GA_43","hier_MC_76","hier_MC_76","hier_0","hier_0","hier_0","hier_0","hier_0","hier_0","hier_0"]
["Reported","Reported","Reported","Reported","Reported","Reported","Reported","EUR","Initial submission","Banks","Bonds/Debt","Bonds/Debt - collateralised","Total/NA","Futures","Credit default","Micro hedge [MI]","Financial guarantees","Insurance/reinsurance sector","Insurance","Quota share","Medical expense insurance [direct business]","Fees","Bonds/Debt","Scope Hamburg GmbH (previously Euler Hermes Rating GmbH) (LEI code: 391200QXGLWHK9VK6V27)","Total/NA","AFGHANISTAN","Total/NA","Total/NA","AFGHANISTAN","AFGHANISTAN","Government, International financial organisations and Central banks bonds","Government, International financial organisations and Central banks bonds"]
[null,"Not reported as no IGT on Equity-type transactions, debt and asset transfer","Not reported as no IGT on Derivatives","Not reported as no IGT on off-balance sheet and contingent liabilities","Not reported as no IGT on Insurance and Reinsurance","Not reported as no IGT","Not reported","AED","Re-submission","Investments services sector","Equity type","Bonds/Debt - uncollateralised","EUR","Forwards","Interest rate","Macro hedge [MA]","Legally binding commitment to subscribe and pay for subordinated liabilities",null,"Reinsurance","Variable quota share","Income protection insurance [direct business]","Commissions","Equity type","Japan Credit Rating Agency Ltd (LEI code: 35380002378CEGMRVW86)","A - Agriculture, forestry and fishing","ÅLAND ISLANDS","EUR","EUR","ÅLAND ISLANDS","ÅLAND ISLANDS","Regional governments, local authorities and public sector entities bonds","Regional governments, local authorities and public sector entities bonds"]
[null,"Not reported other reason","Not reported other reason","Not reported other reason","Not reported other reason","Not reported other reason",null,"AFN",null,"Insurance/reinsurance sector","Other asset transfer","Equity type - shares/participations","AED","Derivatives - options","Currency","Matching assets and liabilities cash-flows used in the context of matching adjustment portfolios","Letter of Credit",null,null,"Surplus","Workers' compensation insurance [direct business]","Interests","Other asset transfer","BCRA-Credit Rating Agency AD (LEI code: 747800Z0IC3P66HTQ142)","A1 - Crop and animal production, hunting and related service activities","ALBANIA","AED","AED","ALBANIA","ALBANIA","Corporate Bonds","Corporate Bonds"]
[null,null,null,null,null,null,null,"ALL",null,"Sector other than banking, investment services, insurance or reinsurance sectors",null,"Equity type - others","AFN","Derivatives - others","Other than credit default, interest rate and currency","Efficient portfolio management, other than “Matching assets and liabilities cash-flows used in the context of matching adjustment portfolios”","Undrawn credit facilities",null,null,"Excess of loss [per event and per risk]","Motor vehicle liability insurance [direct business]","Dividends","Derivatives","Creditreform Rating AG (LEI code: 391200PHL11KDUTTST66)","A1.1 - Growing of non-perennial crops","ALGERIA","AFN","AFN","ALGERIA","ALGERIA"]
[null,null,null,null,null,null,null,"AMD",null,null,null,"Other asset transfer - properties","ALL","Guarantees - credit protection",null,"Other than micro hedge, macro hedge, matching assets and liabilities cash-flows and efficient portfolio management, other than 'Matching assets and liabilities cash-flows'","Assets purchased under outright forward purchase agreements (currency or other)",null,null,"Excess of loss [per risk]","Other motor insurance [direct business]","Costs or revenues","Off balance sheet items","Scope Ratings GmbH (previously Scope Ratings AG and PSR Rating GmbH)(LEI code: 391200WU1EZUQFHDWE91)","A1.1.1 - Growing of cereals (except rice), leguminous crops and oil seeds","AMERICAN SAMOA","ALL","ALL","AMERICAN SAMOA","AMERICAN SAMOA"]
[null,null,null,null,null,null,null,"ANG",null,null,null,"Other asset transfer - others","AMD","Guarantees - others",null,null,"Asset sale and repurchase agreements as referred to in Article 12(3) and (5) of Directive 86/635/EEC",null,null,"Excess of loss [per event]","Marine, aviation and transport insurance [direct business]","Premiums [insurance]","Intragroup outsourcing, internal cost sharing and rental agreement","ICAP CRIF S.A. (previously ICAP S.A.)(LEI code: 2138008U6LKT8VG2UK85)","A1.1.2 - Growing of rice","ANDORRA","AMD","AMD","ANDORRA","ANDORRA"]
[null,null,null,null,null,null,null,"AOA",null,null,null,null,"ANG","Swaps",null,null,"Contingent liabilities",null,null,"Excess of loss “back-up”","Fire and other damage to property insurance [direct business]","Claims [insurance]","Internal insurance/reinsurance","GBB-Rating Gesellschaft für Bonitätsbeurteilung GmbH (LEI code: 391200OLWXCTKPADVV72)","A1.1.3 - Growing of vegetables and melons, roots and tubers","ANGOLA","ANG","ANG","ANGOLA","ANGOLA"]
[null,null,null,null,null,null,null,"ARS",null,null,null,null,"AOA","Other than derivatives, guarantees and swaps",null,null,"Other than guarantees, commitment, letter of credit, undrawn credit facilities, assets purchased under outright forward purchase agreements (currency or other), asset sale and repurchase agreements as referred to in Article 12(3) and (5) of Directive 86/6",null,null,"Excess of loss with basic risk","General liability insurance [direct business]","Technical result [reinsurance]","Other than bonds/debt, equity type, other assets transfer, derivatives, off balance sheet items, intragroup outsourcing, internal cost sharing and rental agreement and internal insurance/reinsurance","ASSEKURATA Assekuranz Rating-Agentur GmbH (LEI code: 529900977LETWLJF3295)","A1.1.4 - Growing of sugar cane","ANGUILLA","AOA","AOA","ANGUILLA","ANGUILLA"]
[null,null,null,null,null,null,null,"AUD",null,null,null,null,"ARS",null,null,null,null,null,null,"Reinstatement cover","Credit and suretyship insurance [direct business]","Other than fees, commissions, interests, dividends, costs of revenues, premiums for insurance, claims for insurance and technical result for reinsurance",null,"ARC Ratings, S.A. (previously Companhia Portuguesa de Rating, S.A) (LEI code: 213800OZNJQMV6UA7D79)","A1.1.5 - Growing of tobacco","ANTARCTICA","ARS","ARS","ANTARCTICA","ANTARCTICA"]
[null,null,null,null,null,null,null,"AWG",null,null,null,null,"AUD",null,null,null,null,null,null,"Aggregate excess of loss","Legal expenses insurance [direct business]",null,null,"AM Best Europe","A1.1.6 - Growing of fibre crops","ANTIGUA AND BARBUDA","AUD","AUD","ANTIGUA AND BARBUDA","ANTIGUA AND BARBUDA"]
[null,null,null,null,null,null,null,"AZN",null,null,null,null,"AWG",null,null,null,null,null,null,"Unlimited excess of loss","Assistance [direct business]",null,null,"A.M. Best (EU) Rating Services B.V. (LEI code: 549300Z2RUKFKV7GON79)","A1.1.9 - Growing of other non-perennial crops","ARGENTINA","AWG","AWG","ARGENTINA","ARGENTINA"]
[null,null,null,null,null,null,null,"BAM",null,null,null,null,"AZN",null,null,null,null,null,null,"Stop loss [SL]","Miscellaneous financial loss [direct business]",null,null,"Fitch","A1.2 - Growing of perennial crops","ARMENIA","AZN","AZN","ARMENIA","ARMENIA"]
[null,null,null,null,null,null,null,"BBD",null,null,null,null,"BAM",null,null,null,null,null,null,"Other proportional treaties","Medical expense insurance [accepted proportional reinsurance]",null,null,"Fitch Ratings Ireland Limited (merger of Fitch Deutschland GmbH, Fitch France S.A.S., Fitch Polska S.A., Fitch Italia S.p.A. and Fitch Ratings España S.A.U.) (LEI code: 213800BTXUQP1JZRO283)","A1.2.1 - Growing of grapes","ARUBA","BAM","BAM","ARUBA","ARUBA"]
[null,null,null,null,null,null,null,"BDT",null,null,null,null,"BBD",null,null,null,null,null,null,"Other non proportional treaties","Income protection insurance [accepted proportional reinsurance]",null,null,"Moody’s","A1.2.2 - Growing of tropical and subtropical fruits","AUSTRALIA","BBD","BBD","AUSTRALIA","AUSTRALIA"]
[null,null,null,null,null,null,null,"BGN",null,null,null,null,"BDT",null,null,null,null,null,null,"Financial reinsurance","Workers' compensation insurance [accepted proportional reinsurance]",null,null,"Moody’s Investors Service Cyprus Ltd (LEI code: 549300V4LCOYCMNUVR81)","A1.2.3 - Growing of citrus fruits","AUSTRIA","BDT","BDT","AUSTRIA","AUSTRIA"]
[null,null,null,null,null,null,null,"BHD",null,null,null,null,"BGN",null,null,null,null,null,null,"Facultative proportional","Motor vehicle liability insurance [accepted proportional reinsurance]",null,null,"Moody’s France S.A.S. (LEI code: 549300EB2XQYRSE54F02)","A1.2.4 - Growing of pome fruits and stone fruits","AZERBAIJAN","BGN","BGN","AZERBAIJAN","AZERBAIJAN"]
[null,null,null,null,null,null,null,"BIF",null,null,null,null,"BHD",null,null,null,null,null,null,"Facultative non-proportional","Other motor insurance [accepted proportional reinsurance]",null,null,"Moody’s Deutschland GmbH (LEI code: 549300M5JMGHVTWYZH47)","A1.2.5 - Growing of other tree and bush fruits and nuts","BAHAMAS","BHD","BHD","BAHAMAS","BAHAMAS"]
[null,null,null,null,null,null,null,"BMD",null,null,null,null,"BIF",null,null,null,null,null,null,null,"Marine, aviation and transport insurance [accepted proportional reinsurance]",null,null,"Moody’s Italia S.r.l. (LEI code: 549300GMXJ4QK70UOU68)","A1.2.6 - Growing of oleaginous fruits","BAHRAIN","BIF","BIF","BAHRAIN","BAHRAIN"]
[null,null,null,null,null,null,null,"BND",null,null,null,null,"BMD",null,null,null,null,null,null,null,"Fire and other damage to property insurance [accepted proportional reinsurance]",null,null,"Moody’s Investors Service España S.A. (LEI code: 5493005X59ILY4BGJK90)","A1.2.7 - Growing of beverage crops","BANGLADESH","BMD","BMD","BANGLADESH","BANGLADESH"]
[null,null,null,null,null,null,null,"BOB",null,null,null,null,"BND",null,null,null,null,null,null,null,"General liability insurance [accepted proportional reinsurance]",null,null,"Moody’s Investors Service (Nordics) AB (LEI code: 549300W79ZVFWJCD2Z23)","A1.2.8 - Growing of spices, aromatic, drug and pharmaceutical crops","BARBADOS","BND","BND","BARBADOS","BARBADOS"]
[null,null,null,null,null,null,null,"BOV",null,null,null,null,"BOB",null,null,null,null,null,null,null,"Credit and suretyship insurance [accepted proportional reinsurance]",null,null,"Standard & Poor's","A1.2.9 - Growing of other perennial crops","BELARUS","BOB","BOB","BELARUS","BELARUS"]
[null,null,null,null,null,null,null,"BRL",null,null,null,null,"BOV",null,null,null,null,null,null,null,"Legal expenses insurance [accepted proportional reinsurance]",null,null,"S&P Global Ratings Europe Limited (previously S&P Global Ratings Italy S.r.l, LEI 54930000NMOJ7ZBUQ063 - merger of 1 May 2018)(LEI code:5493008B2TU3S6QE1E12)","A1.3 - Plant propagation","BELGIUM","BOV","BOV","BELGIUM","BELGIUM"]
[null,null,null,null,null,null,null,"BSD",null,null,null,null,"BRL",null,null,null,null,null,null,null,"Assistance [accepted proportional reinsurance]",null,null,"CRIF Ratings S.r.l. (previously CRIF S.p.a.) (LEI code: 8156001AB6A1D740F237)","A1.3.0 - Plant propagation","BELIZE","BRL","BRL","BELIZE","BELIZE"]
[null,null,null,null,null,null,null,"BTN",null,null,null,null,"BSD",null,null,null,null,null,null,null,"Miscellaneous financial loss [accepted proportional reinsurance]",null,null,"Capital Intelligence Ratings Ltd (LEI code: 549300RE88OJP9J24Z18)","A1.4 - Animal production","BENIN","BSD","BSD","BENIN","BENIN"]
[null,null,null,null,null,null,null,"BWP",null,null,null,null,"BTN",null,null,null,null,null,null,null,"Health [accepted non-proportional reinsurance]",null,null,"EthiFinance Ratings, S.L. (previously Axesor Risk Management, S.L.)(LEI code: 959800EC2RH76JYS3844)","A1.4.1 - Raising of dairy cattle","BERMUDA","BTN","BTN","BERMUDA","BERMUDA"]
[null,null,null,null,null,null,null,"BYN",null,null,null,null,"BWP",null,null,null,null,null,null,null,"Casualty [accepted non-proportional reinsurance]",null,null,"Cerved Rating Agency S.p.A. (previously CERVED Group S.p.A. ) (LEI code: 8156004AB6C992A99368)","A1.4.2 - Raising of other cattle and buffaloes","BHUTAN","BWP","BWP","BHUTAN","BHUTAN"]
[null,null,null,null,null,null,null,"BYR",null,null,null,null,"BYN",null,null,null,null,null,null,null,"Marine, aviation, transport [accepted non-proportional reinsurance]",null,null,"EuroRating Sp. z o.o. (LEI code: 25940027QWS5GMO74O03)","A1.4.3 - Raising of horses and other equines","BOLIVIA, PLURINATIONAL STATE OF","BYN","BYN","BOLIVIA, PLURINATIONAL STATE OF","BOLIVIA, PLURINATIONAL STATE OF"]
[null,null,null,null,null,null,null,"BZD",null,null,null,null,"BYR",null,null,null,null,null,null,null,"Property [accepted non-proportional reinsurance]",null,null,"HR Ratings de México, S.A. de C.V. (HR Ratings) (LEI code: 549300IFL3XJKTRHZ480)","A1.4.4 - Raising of camels and camelids","BONAIRE, SINT EUSTATIUS AND SABA","BYR","BYR","BONAIRE, SINT EUSTATIUS AND SABA","BONAIRE, SINT EUSTATIUS AND SABA"]
[null,null,null,null,null,null,null,"CAD",null,null,null,null,"BZD",null,null,null,null,null,null,null,"Insurance with profit participation",null,null,"Egan-Jones Ratings Co. (EJR) (LEI code: 54930016113PD33V1H31)","A1.4.5 - Raising of sheep and goats","BOSNIA AND HERZEGOVINA","BZD","BZD","BOSNIA AND HERZEGOVINA","BOSNIA AND HERZEGOVINA"]
[null,null,null,null,null,null,null,"CDF",null,null,null,null,"CAD",null,null,null,null,null,null,null,"Unit-linked or index-linked",null,null,"modeFinance S.r.l. (LEI code: 815600B85A94A0122614)","A1.4.6 - Raising of swine/pigs","BOTSWANA","CAD","CAD","BOTSWANA","BOTSWANA"]
[null,null,null,null,null,null,null,"CHE",null,null,null,null,"CDF",null,null,null,null,null,null,null,"Other life",null,null,"Kroll Bond Rating Agency Europe Limited (LEI code: 5493001NGHOLC41ZSK05)","A1.4.7 - Raising of poultry","BOUVET ISLAND","CDF","CDF","BOUVET ISLAND","BOUVET ISLAND"]
[null,null,null,null,null,null,null,"CHF",null,null,null,null,"CHE",null,null,null,null,null,null,null,"Annuities stemming from non-life insurance contracts and relating to health insurance obligations",null,null,"Nordic Credit Rating AS (LEI code: 549300MLUDYVRQOOXS22)","A1.4.9 - Raising of other animals","BRAZIL","CHE","CHE","BRAZIL","BRAZIL"]
[null,null,null,null,null,null,null,"CHW",null,null,null,null,"CHF",null,null,null,null,null,null,null,"Annuities stemming from non-life insurance contracts and relating to insurance obligations other than health insurance obligations",null,null,"DBRS Rating GmbH (LEI code: 54930033N1HPUEY7I370)","A1.5 - Mixed farming","BRITISH INDIAN OCEAN TERRITORY","CHF","CHF","BRITISH INDIAN OCEAN TERRITORY","BRITISH INDIAN OCEAN TERRITORY"]
[null,null,null,null,null,null,null,"CLF",null,null,null,null,"CHW",null,null,null,null,null,null,null,"Life reinsurance",null,null,"Inbonis S.A. (LEI code: 875500OYQK8S5AGGBZ02)","A1.5.0 - Mixed farming","BRUNEI DARUSSALAM","CHW","CHW","BRUNEI DARUSSALAM","BRUNEI DARUSSALAM"]
[null,null,null,null,null,null,null,"CLP",null,null,null,null,"CLF",null,null,null,null,null,null,null,"Health insurance",null,null,"Other nominated ECAI","A1.6 - Support activities to agriculture and post-harvest crop activities","BULGARIA","CLF","CLF","BULGARIA","BULGARIA"]
[null,null,null,null,null,null,null,"CNY",null,null,null,null,"CLP",null,null,null,null,null,null,null,"Health reinsurance",null,null,null,"A1.6.1 - Support activities for crop production","BURKINA FASO","CLP","CLP","BURKINA FASO","BURKINA FASO"]
[null,null,null,null,null,null,null,"COP",null,null,null,null,"CNY",null,null,null,null,null,null,null,null,null,null,null,"A1.6.2 - Support activities for animal production","BURUNDI","CNY","CNY","BURUNDI","BURUNDI"]
[null,null,null,null,null,null,null,"COU",null,null,null,null,"COP",null,null,null,null,null,null,null,null,null,null,null,"A1.6.3 - Post-harvest crop activities","CAMBODIA","COP","COP","CAMBODIA","CAMBODIA"]
[null,null,null,null,null,null,null,"CRC",null,null,null,null,"COU",null,null,null,null,null,null,null,null,null,null,null,"A1.6.4 - Seed processing for propagation","CAMEROON","COU","COU","CAMEROON","CAMEROON"]
[null,null,null,null,null,null,null,"CUC",null,null,null,null,"CRC",null,null,null,null,null,null,null,null,null,null,null,"A1.7 - Hunting, trapping and related service activities","CANADA","CRC","CRC","CANADA","CANADA"]
[null,null,null,null,null,null,null,"CUP",null,null,null,null,"CUC",null,null,null,null,null,null,null,null,null,null,null,"A1.7.0 - Hunting, trapping and related service activities","CAPE VERDE","CUC","CUC","CAPE VERDE","CAPE VERDE"]
[null,null,null,null,null,null,null,"CVE",null,null,null,null,"CUP",null,null,null,null,null,null,null,null,null,null,null,"A2 - Forestry and logging","CAYMAN ISLANDS","CUP","CUP","CAYMAN ISLANDS","CAYMAN ISLANDS"]
[null,null,null,null,null,null,null,"CZK",null,null,null,null,"CVE",null,null,null,null,null,null,null,null,null,null,null,"A2.1 - Silviculture and other forestry activities","CENTRAL AFRICAN REPUBLIC","CVE","CVE","CENTRAL AFRICAN REPUBLIC","CENTRAL AFRICAN REPUBLIC"]
[null,null,null,null,null,null,null,"DJF",null,null,null,null,"CZK",null,null,null,null,null,null,null,null,null,null,null,"A2.1.0 - Silviculture and other forestry activities","CHAD","CZK","CZK","CHAD","CHAD"]
[null,null,null,null,null,null,null,"DKK",null,null,null,null,"DJF",null,null,null,null,null,null,null,null,null,null,null,"A2.2 - Logging","CHILE","DJF","DJF","CHILE","CHILE"]
[null,null,null,null,null,null,null,"DOP",null,null,null,null,"DKK",null,null,null,null,null,null,null,null,null,null,null,"A2.2.0 - Logging","CHINA","DKK","DKK","CHINA","CHINA"]
[null,null,null,null,null,null,null,"DZD",null,null,null,null,"DOP",null,null,null,null,null,null,null,null,null,null,null,"A2.3 - Gathering of wild growing non-wood products","CHRISTMAS ISLAND","DOP","DOP","CHRISTMAS ISLAND","CHRISTMAS ISLAND"]
[null,null,null,null,null,null,null,"EEK",null,null,null,null,"DZD",null,null,null,null,null,null,null,null,null,null,null,"A2.3.0 - Gathering of wild growing non-wood products","COCOS (KEELING) ISLANDS","DZD","DZD","COCOS (KEELING) ISLANDS","COCOS (KEELING) ISLANDS"]
[null,null,null,null,null,null,null,"EGP",null,null,null,null,"EEK",null,null,null,null,null,null,null,null,null,null,null,"A2.4 - Support services to forestry","COLOMBIA","EEK","EEK","COLOMBIA","COLOMBIA"]
[null,null,null,null,null,null,null,"ERN",null,null,null,null,"EGP",null,null,null,null,null,null,null,null,null,null,null,"A2.4.0 - Support services to forestry","COMOROS","EGP","EGP","COMOROS","COMOROS"]
[null,null,null,null,null,null,null,"ETB",null,null,null,null,"ERN",null,null,null,null,null,null,null,null,null,null,null,"A3 - Fishing and aquaculture","CONGO","ERN","ERN","CONGO","CONGO"]
[null,null,null,null,null,null,null,"FJD",null,null,null,null,"ETB",null,null,null,null,null,null,null,null,null,null,null,"A3.1 - Fishing","CONGO, THE DEMOCRATIC REPUBLIC OF THE","ETB","ETB","CONGO, THE DEMOCRATIC REPUBLIC OF THE","CONGO, THE DEMOCRATIC REPUBLIC OF THE"]
[null,null,null,null,null,null,null,"FKP",null,null,null,null,"FJD",null,null,null,null,null,null,null,null,null,null,null,"A3.1.1 - Marine fishing","COOK ISLANDS","FJD","FJD","COOK ISLANDS","COOK ISLANDS"]
[null,null,null,null,null,null,null,"GBP",null,null,null,null,"FKP",null,null,null,null,null,null,null,null,null,null,null,"A3.1.2 - Freshwater fishing","COSTA RICA","FKP","FKP","COSTA RICA","COSTA RICA"]
[null,null,null,null,null,null,null,"GEL",null,null,null,null,"GBP",null,null,null,null,null,null,null,null,null,null,null,"A3.2 - Aquaculture","CÔTE D'IVOIRE","GBP","GBP","CÔTE D'IVOIRE","CÔTE D'IVOIRE"]
[null,null,null,null,null,null,null,"GHS",null,null,null,null,"GEL",null,null,null,null,null,null,null,null,null,null,null,"A3.2.1 - Marine aquaculture","CROATIA","GEL","GEL","CROATIA","CROATIA"]
[null,null,null,null,null,null,null,"GIP",null,null,null,null,"GHS",null,null,null,null,null,null,null,null,null,null,null,"A3.2.2 - Freshwater aquaculture","CUBA","GHS","GHS","CUBA","CUBA"]
[null,null,null,null,null,null,null,"GMD",null,null,null,null,"GIP",null,null,null,null,null,null,null,null,null,null,null,"B - Mining and quarrying","CURAÇAO","GIP","GIP","CURAÇAO","CURAÇAO"]
[null,null,null,null,null,null,null,"GNF",null,null,null,null,"GMD",null,null,null,null,null,null,null,null,null,null,null,"B5 - Mining of coal and lignite","CYPRUS","GMD","GMD","CYPRUS","CYPRUS"]
[null,null,null,null,null,null,null,"GTQ",null,null,null,null,"GNF",null,null,null,null,null,null,null,null,null,null,null,"B5.1 - Mining of hard coal","CZECHIA","GNF","GNF","CZECHIA","CZECHIA"]
[null,null,null,null,null,null,null,"GYD",null,null,null,null,"GTQ",null,null,null,null,null,null,null,null,null,null,null,"B5.1.0 - Mining of hard coal","DENMARK","GTQ","GTQ","DENMARK","DENMARK"]
[null,null,null,null,null,null,null,"HKD",null,null,null,null,"GYD",null,null,null,null,null,null,null,null,null,null,null,"B5.2 - Mining of lignite","DJIBOUTI","GYD","GYD","DJIBOUTI","DJIBOUTI"]
[null,null,null,null,null,null,null,"HNL",null,null,null,null,"HKD",null,null,null,null,null,null,null,null,null,null,null,"B5.2.0 - Mining of lignite","DOMINICA","HKD","HKD","DOMINICA","DOMINICA"]
[null,null,null,null,null,null,null,"HRK",null,null,null,null,"HNL",null,null,null,null,null,null,null,null,null,null,null,"B6 - Extraction of crude petroleum and natural gas","DOMINICAN REPUBLIC","HNL","HNL","DOMINICAN REPUBLIC","DOMINICAN REPUBLIC"]
[null,null,null,null,null,null,null,"HTG",null,null,null,null,"HRK",null,null,null,null,null,null,null,null,null,null,null,"B6.1 - Extraction of crude petroleum","ECUADOR","HRK","HRK","ECUADOR","ECUADOR"]
[null,null,null,null,null,null,null,"HUF",null,null,null,null,"HTG",null,null,null,null,null,null,null,null,null,null,null,"B6.1.0 - Extraction of crude petroleum","EGYPT","HTG","HTG","EGYPT","EGYPT"]
[null,null,null,null,null,null,null,"IDR",null,null,null,null,"HUF",null,null,null,null,null,null,null,null,null,null,null,"B6.2 - Extraction of natural gas","EL SALVADOR","HUF","HUF","EL SALVADOR","EL SALVADOR"]
[null,null,null,null,null,null,null,"ILS",null,null,null,null,"IDR",null,null,null,null,null,null,null,null,null,null,null,"B6.2.0 - Extraction of natural gas","EQUATORIAL GUINEA","IDR","IDR","EQUATORIAL GUINEA","EQUATORIAL GUINEA"]
[null,null,null,null,null,null,null,"INR",null,null,null,null,"ILS",null,null,null,null,null,null,null,null,null,null,null,"B7 - Mining of metal ores","ERITREA","ILS","ILS","ERITREA","ERITREA"]
[null,null,null,null,null,null,null,"IQD",null,null,null,null,"INR",null,null,null,null,null,null,null,null,null,null,null,"B7.1 - Mining of iron ores","ESTONIA","INR","INR","ESTONIA","ESTONIA"]
[null,null,null,null,null,null,null,"IRR",null,null,null,null,"IQD",null,null,null,null,null,null,null,null,null,null,null,"B7.1.0 - Mining of iron ores","ETHIOPIA","IQD","IQD","ETHIOPIA","ETHIOPIA"]
[null,null,null,null,null,null,null,"ISK",null,null,null,null,"IRR",null,null,null,null,null,null,null,null,null,null,null,"B7.2 - Mining of non-ferrous metal ores","FALKLAND ISLANDS (MALVINAS)","IRR","IRR","FALKLAND ISLANDS (MALVINAS)","FALKLAND ISLANDS (MALVINAS)"]
[null,null,null,null,null,null,null,"JMD",null,null,null,null,"ISK",null,null,null,null,null,null,null,null,null,null,null,"B7.2.1 - Mining of uranium and thorium ores","FAROE ISLANDS","ISK","ISK","FAROE ISLANDS","FAROE ISLANDS"]
[null,null,null,null,null,null,null,"JOD",null,null,null,null,"JMD",null,null,null,null,null,null,null,null,null,null,null,"B7.2.9 - Mining of other non-ferrous metal ores","FIJI","JMD","JMD","FIJI","FIJI"]
[null,null,null,null,null,null,null,"JPY",null,null,null,null,"JOD",null,null,null,null,null,null,null,null,null,null,null,"B8 - Other mining and quarrying","FINLAND","JOD","JOD","FINLAND","FINLAND"]
[null,null,null,null,null,null,null,"KES",null,null,null,null,"JPY",null,null,null,null,null,null,null,null,null,null,null,"B8.1 - Quarrying of stone, sand and clay","FRANCE","JPY","JPY","FRANCE","FRANCE"]
[null,null,null,null,null,null,null,"KGS",null,null,null,null,"KES",null,null,null,null,null,null,null,null,null,null,null,"B8.1.1 - Quarrying of ornamental and building stone, limestone, gypsum, chalk and slate","FRENCH GUIANA","KES","KES","FRENCH GUIANA","FRENCH GUIANA"]
[null,null,null,null,null,null,null,"KHR",null,null,null,null,"KGS",null,null,null,null,null,null,null,null,null,null,null,"B8.1.2 - Operation of gravel and sand pits; mining of clays and kaolin","FRENCH POLYNESIA","KGS","KGS","FRENCH POLYNESIA","FRENCH POLYNESIA"]
[null,null,null,null,null,null,null,"KMF",null,null,null,null,"KHR",null,null,null,null,null,null,null,null,null,null,null,"B8.9 - Mining and quarrying n.e.c.","FRENCH SOUTHERN TERRITORIES","KHR","KHR","FRENCH SOUTHERN TERRITORIES","FRENCH SOUTHERN TERRITORIES"]
[null,null,null,null,null,null,null,"KPW",null,null,null,null,"KMF",null,null,null,null,null,null,null,null,null,null,null,"B8.9.1 - Mining of chemical and fertiliser minerals","GABON","KMF","KMF","GABON","GABON"]
[null,null,null,null,null,null,null,"KRW",null,null,null,null,"KPW",null,null,null,null,null,null,null,null,null,null,null,"B8.9.2 - Extraction of peat","GAMBIA","KPW","KPW","GAMBIA","GAMBIA"]
[null,null,null,null,null,null,null,"KWD",null,null,null,null,"KRW",null,null,null,null,null,null,null,null,null,null,null,"B8.9.3 - Extraction of salt","GEORGIA","KRW","KRW","GEORGIA","GEORGIA"]
[null,null,null,null,null,null,null,"KYD",null,null,null,null,"KWD",null,null,null,null,null,null,null,null,null,null,null,"B8.9.9 - Other mining and quarrying n.e.c.","GERMANY","KWD","KWD","GERMANY","GERMANY"]
[null,null,null,null,null,null,null,"KZT",null,null,null,null,"KYD",null,null,null,null,null,null,null,null,null,null,null,"B9 - Mining support service activities","GHANA","KYD","KYD","GHANA","GHANA"]
[null,null,null,null,null,null,null,"LAK",null,null,null,null,"KZT",null,null,null,null,null,null,null,null,null,null,null,"B9.1 - Support activities for petroleum and natural gas extraction","GREECE","KZT","KZT","GREECE","GREECE"]
[null,null,null,null,null,null,null,"LBP",null,null,null,null,"LAK",null,null,null,null,null,null,null,null,null,null,null,"B9.1.0 - Support activities for petroleum and natural gas extraction","GREENLAND","LAK","LAK","GREENLAND","GREENLAND"]
[null,null,null,null,null,null,null,"LKR",null,null,null,null,"LBP",null,null,null,null,null,null,null,null,null,null,null,"B9.9 - Support activities for other mining and quarrying","GRENADA","LBP","LBP","GRENADA","GRENADA"]
[null,null,null,null,null,null,null,"LRD",null,null,null,null,"LKR",null,null,null,null,null,null,null,null,null,null,null,"B9.9.0 - Support activities for other mining and quarrying","GUADELOUPE","LKR","LKR","GUADELOUPE","GUADELOUPE"]
[null,null,null,null,null,null,null,"LSL",null,null,null,null,"LRD",null,null,null,null,null,null,null,null,null,null,null,"C - Manufacturing","GUAM","LRD","LRD","GUAM","GUAM"]
[null,null,null,null,null,null,null,"LTL",null,null,null,null,"LSL",null,null,null,null,null,null,null,null,null,null,null,"C10 - Manufacture of food products","GUATEMALA","LSL","LSL","GUATEMALA","GUATEMALA"]
[null,null,null,null,null,null,null,"LVL",null,null,null,null,"LTL",null,null,null,null,null,null,null,null,null,null,null,"C10.1 - Processing and preserving of meat and production of meat products","GUERNSEY","LTL","LTL","GUERNSEY","GUERNSEY"]
[null,null,null,null,null,null,null,"LYD",null,null,null,null,"LVL",null,null,null,null,null,null,null,null,null,null,null,"C10.1.1 - Processing and preserving of meat","GUINEA","LVL","LVL","GUINEA","GUINEA"]
[null,null,null,null,null,null,null,"MAD",null,null,null,null,"LYD",null,null,null,null,null,null,null,null,null,null,null,"C10.1.2 - Processing and preserving of poultry meat","GUINEA-BISSAU","LYD","LYD","GUINEA-BISSAU","GUINEA-BISSAU"]
[null,null,null,null,null,null,null,"MDL",null,null,null,null,"MAD",null,null,null,null,null,null,null,null,null,null,null,"C10.1.3 - Production of meat and poultry meat products","GUYANA","MAD","MAD","GUYANA","GUYANA"]
[null,null,null,null,null,null,null,"MGA",null,null,null,null,"MDL",null,null,null,null,null,null,null,null,null,null,null,"C10.2 - Processing and preserving of fish, crustaceans and molluscs","HAITI","MDL","MDL","HAITI","HAITI"]
[null,null,null,null,null,null,null,"MKD",null,null,null,null,"MGA",null,null,null,null,null,null,null,null,null,null,null,"C10.2.0 - Processing and preserving of fish, crustaceans and molluscs","HEARD ISLAND AND MCDONALD ISLANDS","MGA","MGA","HEARD ISLAND AND MCDONALD ISLANDS","HEARD ISLAND AND MCDONALD ISLANDS"]
[null,null,null,null,null,null,null,"MMK",null,null,null,null,"MKD",null,null,null,null,null,null,null,null,null,null,null,"C10.3 - Processing and preserving of fruit and vegetables","HOLY SEE (VATICAN CITY STATE)","MKD","MKD","HOLY SEE (VATICAN CITY STATE)","HOLY SEE (VATICAN CITY STATE)"]
[null,null,null,null,null,null,null,"MNT",null,null,null,null,"MMK",null,null,null,null,null,null,null,null,null,null,null,"C10.3.1 - Processing and preserving of potatoes","HONDURAS","MMK","MMK","HONDURAS","HONDURAS"]
[null,null,null,null,null,null,null,"MOP",null,null,null,null,"MNT",null,null,null,null,null,null,null,null,null,null,null,"C10.3.2 - Manufacture of fruit and vegetable juice","HONG KONG","MNT","MNT","HONG KONG","HONG KONG"]
[null,null,null,null,null,null,null,"MRO",null,null,null,null,"MOP",null,null,null,null,null,null,null,null,null,null,null,"C10.3.9 - Other processing and preserving of fruit and vegetables","HUNGARY","MOP","MOP","HUNGARY","HUNGARY"]
[null,null,null,null,null,null,null,"MRU",null,null,null,null,"MRO",null,null,null,null,null,null,null,null,null,null,null,"C10.4 - Manufacture of vegetable and animal oils and fats","ICELAND","MRO","MRO","ICELAND","ICELAND"]
[null,null,null,null,null,null,null,"MUR",null,null,null,null,"MRU",null,null,null,null,null,null,null,null,null,null,null,"C10.4.1 - Manufacture of oils and fats","INDIA","MRU","MRU","INDIA","INDIA"]
[null,null,null,null,null,null,null,"MVR",null,null,null,null,"MUR",null,null,null,null,null,null,null,null,null,null,null,"C10.4.2 - Manufacture of margarine and similar edible fats","INDONESIA","MUR","MUR","INDONESIA","INDONESIA"]
[null,null,null,null,null,null,null,"MWK",null,null,null,null,"MVR",null,null,null,null,null,null,null,null,null,null,null,"C10.5 - Manufacture of dairy products","IRAN, ISLAMIC REPUBLIC OF","MVR","MVR","IRAN, ISLAMIC REPUBLIC OF","IRAN, ISLAMIC REPUBLIC OF"]
[null,null,null,null,null,null,null,"MXN",null,null,null,null,"MWK",null,null,null,null,null,null,null,null,null,null,null,"C10.5.1 - Operation of dairies and cheese making","IRAQ","MWK","MWK","IRAQ","IRAQ"]
[null,null,null,null,null,null,null,"MXV",null,null,null,null,"MXN",null,null,null,null,null,null,null,null,null,null,null,"C10.5.2 - Manufacture of ice cream","IRELAND","MXN","MXN","IRELAND","IRELAND"]
[null,null,null,null,null,null,null,"MYR",null,null,null,null,"MXV",null,null,null,null,null,null,null,null,null,null,null,"C10.6 - Manufacture of grain mill products, starches and starch products","ISLE OF MAN","MXV","MXV","ISLE OF MAN","ISLE OF MAN"]
[null,null,null,null,null,null,null,"MZN",null,null,null,null,"MYR",null,null,null,null,null,null,null,null,null,null,null,"C10.6.1 - Manufacture of grain mill products","ISRAEL","MYR","MYR","ISRAEL","ISRAEL"]
[null,null,null,null,null,null,null,"NAD",null,null,null,null,"MZN",null,null,null,null,null,null,null,null,null,null,null,"C10.6.2 - Manufacture of starches and starch products","ITALY","MZN","MZN","ITALY","ITALY"]
[null,null,null,null,null,null,null,"NGN",null,null,null,null,"NAD",null,null,null,null,null,null,null,null,null,null,null,"C10.7 - Manufacture of bakery and farinaceous products","JAMAICA","NAD","NAD","JAMAICA","JAMAICA"]
[null,null,null,null,null,null,null,"NIO",null,null,null,null,"NGN",null,null,null,null,null,null,null,null,null,null,null,"C10.7.1 - Manufacture of bread; manufacture of fresh pastry goods and cakes","JAPAN","NGN","NGN","JAPAN","JAPAN"]
[null,null,null,null,null,null,null,"NOK",null,null,null,null,"NIO",null,null,null,null,null,null,null,null,null,null,null,"C10.7.2 - Manufacture of rusks and biscuits; manufacture of preserved pastry goods and cakes","JERSEY","NIO","NIO","JERSEY","JERSEY"]
[null,null,null,null,null,null,null,"NPR",null,null,null,null,"NOK",null,null,null,null,null,null,null,null,null,null,null,"C10.7.3 - Manufacture of macaroni, noodles, couscous and similar farinaceous products","JORDAN","NOK","NOK","JORDAN","JORDAN"]
[null,null,null,null,null,null,null,"NZD",null,null,null,null,"NPR",null,null,null,null,null,null,null,null,null,null,null,"C10.8 - Manufacture of other food products","KAZAKHSTAN","NPR","NPR","KAZAKHSTAN","KAZAKHSTAN"]
[null,null,null,null,null,null,null,"OMR",null,null,null,null,"NZD",null,null,null,null,null,null,null,null,null,null,null,"C10.8.1 - Manufacture of sugar","KENYA","NZD","NZD","KENYA","KENYA"]
[null,null,null,null,null,null,null,"PAB",null,null,null,null,"OMR",null,null,null,null,null,null,null,null,null,null,null,"C10.8.2 - Manufacture of cocoa, chocolate and sugar confectionery","KIRIBATI","OMR","OMR","KIRIBATI","KIRIBATI"]
[null,null,null,null,null,null,null,"PEN",null,null,null,null,"PAB",null,null,null,null,null,null,null,null,null,null,null,"C10.8.3 - Processing of tea and coffee","KOREA, DEMOCRATIC PEOPLE'S REPUBLIC OF","PAB","PAB","KOREA, DEMOCRATIC PEOPLE'S REPUBLIC OF","KOREA, DEMOCRATIC PEOPLE'S REPUBLIC OF"]
[null,null,null,null,null,null,null,"PGK",null,null,null,null,"PEN",null,null,null,null,null,null,null,null,null,null,null,"C10.8.4 - Manufacture of condiments and seasonings","KOREA, REPUBLIC OF","PEN","PEN","KOREA, REPUBLIC OF","KOREA, REPUBLIC OF"]
[null,null,null,null,null,null,null,"PHP",null,null,null,null,"PGK",null,null,null,null,null,null,null,null,null,null,null,"C10.8.5 - Manufacture of prepared meals and dishes","KOSOVO","PGK","PGK","KOSOVO","KOSOVO"]
[null,null,null,null,null,null,null,"PKR",null,null,null,null,"PHP",null,null,null,null,null,null,null,null,null,null,null,"C10.8.6 - Manufacture of homogenised food preparations and dietetic food","KUWAIT","PHP","PHP","KUWAIT","KUWAIT"]
[null,null,null,null,null,null,null,"PLN",null,null,null,null,"PKR",null,null,null,null,null,null,null,null,null,null,null,"C10.8.9 - Manufacture of other food products n.e.c.","KYRGYZSTAN","PKR","PKR","KYRGYZSTAN","KYRGYZSTAN"]
[null,null,null,null,null,null,null,"PYG",null,null,null,null,"PLN",null,null,null,null,null,null,null,null,null,null,null,"C10.9 - Manufacture of prepared animal feeds","LAO PEOPLE'S DEMOCRATIC REPUBLIC","PLN","PLN","LAO PEOPLE'S DEMOCRATIC REPUBLIC","LAO PEOPLE'S DEMOCRATIC REPUBLIC"]
[null,null,null,null,null,null,null,"QAR",null,null,null,null,"PYG",null,null,null,null,null,null,null,null,null,null,null,"C10.9.1 - Manufacture of prepared feeds for farm animals","LATVIA","PYG","PYG","LATVIA","LATVIA"]
[null,null,null,null,null,null,null,"RON",null,null,null,null,"QAR",null,null,null,null,null,null,null,null,null,null,null,"C10.9.2 - Manufacture of prepared pet foods","LEBANON","QAR","QAR","LEBANON","LEBANON"]
[null,null,null,null,null,null,null,"RSD",null,null,null,null,"RON",null,null,null,null,null,null,null,null,null,null,null,"C11 - Manufacture of beverages","LESOTHO","RON","RON","LESOTHO","LESOTHO"]
[null,null,null,null,null,null,null,"RUB",null,null,null,null,"RSD",null,null,null,null,null,null,null,null,null,null,null,"C11.0 - Manufacture of beverages","LIBERIA","RSD","RSD","LIBERIA","LIBERIA"]
[null,null,null,null,null,null,null,"RWF",null,null,null,null,"RUB",null,null,null,null,null,null,null,null,null,null,null,"C11.0.1 - Distilling, rectifying and blending of spirits","LIBYA","RUB","RUB","LIBYA","LIBYA"]
[null,null,null,null,null,null,null,"SAR",null,null,null,null,"RWF",null,null,null,null,null,null,null,null,null,null,null,"C11.0.2 - Manufacture of wine from grape","LIECHTENSTEIN","RWF","RWF","LIECHTENSTEIN","LIECHTENSTEIN"]
[null,null,null,null,null,null,null,"SBD",null,null,null,null,"SAR",null,null,null,null,null,null,null,null,null,null,null,"C11.0.3 - Manufacture of cider and other fruit wines","LITHUANIA","SAR","SAR","LITHUANIA","LITHUANIA"]
[null,null,null,null,null,null,null,"SCR",null,null,null,null,"SBD",null,null,null,null,null,null,null,null,null,null,null,"C11.0.4 - Manufacture of other non-distilled fermented beverages","LUXEMBOURG","SBD","SBD","LUXEMBOURG","LUXEMBOURG"]
[null,null,null,null,null,null,null,"SDG",null,null,null,null,"SCR",null,null,null,null,null,null,null,null,null,null,null,"C11.0.5 - Manufacture of beer","MACAO","SCR","SCR","MACAO","MACAO"]
[null,null,null,null,null,null,null,"SEK",null,null,null,null,"SDG",null,null,null,null,null,null,null,null,null,null,null,"C11.0.6 - Manufacture of malt","NORTH MACEDONIA","SDG","SDG","NORTH MACEDONIA","NORTH MACEDONIA"]
[null,null,null,null,null,null,null,"SGD",null,null,null,null,"SEK",null,null,null,null,null,null,null,null,null,null,null,"C11.0.7 - Manufacture of soft drinks; production of mineral waters and other bottled waters","MADAGASCAR","SEK","SEK","MADAGASCAR","MADAGASCAR"]
[null,null,null,null,null,null,null,"SHP",null,null,null,null,"SGD",null,null,null,null,null,null,null,null,null,null,null,"C12 - Manufacture of tobacco products","MALAWI","SGD","SGD","MALAWI","MALAWI"]
[null,null,null,null,null,null,null,"SLL",null,null,null,null,"SHP",null,null,null,null,null,null,null,null,null,null,null,"C12.0 - Manufacture of tobacco products","MALAYSIA","SHP","SHP","MALAYSIA","MALAYSIA"]
[null,null,null,null,null,null,null,"SLE",null,null,null,null,"SLL",null,null,null,null,null,null,null,null,null,null,null,"C12.0.0 - Manufacture of tobacco products","MALDIVES","SLL","SLL","MALDIVES","MALDIVES"]
[null,null,null,null,null,null,null,"SOS",null,null,null,null,"SLE",null,null,null,null,null,null,null,null,null,null,null,"C13 - Manufacture of textiles","MALI","SLE","SLE","MALI","MALI"]
[null,null,null,null,null,null,null,"SRD",null,null,null,null,"SOS",null,null,null,null,null,null,null,null,null,null,null,"C13.1 - Preparation and spinning of textile fibres","MALTA","SOS","SOS","MALTA","MALTA"]
[null,null,null,null,null,null,null,"SSP",null,null,null,null,"SRD",null,null,null,null,null,null,null,null,null,null,null,"C13.1.0 - Preparation and spinning of textile fibres","MARSHALL ISLANDS","SRD","SRD","MARSHALL ISLANDS","MARSHALL ISLANDS"]
[null,null,null,null,null,null,null,"STD",null,null,null,null,"SSP",null,null,null,null,null,null,null,null,null,null,null,"C13.2 - Weaving of textiles","MARTINIQUE","SSP","SSP","MARTINIQUE","MARTINIQUE"]
[null,null,null,null,null,null,null,"STN",null,null,null,null,"STD",null,null,null,null,null,null,null,null,null,null,null,"C13.2.0 - Weaving of textiles","MAURITANIA","STD","STD","MAURITANIA","MAURITANIA"]
[null,null,null,null,null,null,null,"SVC",null,null,null,null,"STN",null,null,null,null,null,null,null,null,null,null,null,"C13.3 - Finishing of textiles","MAURITIUS","STN","STN","MAURITIUS","MAURITIUS"]
[null,null,null,null,null,null,null,"SYP",null,null,null,null,"SVC",null,null,null,null,null,null,null,null,null,null,null,"C13.3.0 - Finishing of textiles","MAYOTTE","SVC","SVC","MAYOTTE","MAYOTTE"]
[null,null,null,null,null,null,null,"SZL",null,null,null,null,"SYP",null,null,null,null,null,null,null,null,null,null,null,"C13.9 - Manufacture of other textiles","MEXICO","SYP","SYP","MEXICO","MEXICO"]
[null,null,null,null,null,null,null,"THB",null,null,null,null,"SZL",null,null,null,null,null,null,null,null,null,null,null,"C13.9.1 - Manufacture of knitted and crocheted fabrics","MICRONESIA, FEDERATED STATES OF","SZL","SZL","MICRONESIA, FEDERATED STATES OF","MICRONESIA, FEDERATED STATES OF"]
[null,null,null,null,null,null,null,"TJS",null,null,null,null,"THB",null,null,null,null,null,null,null,null,null,null,null,"C13.9.2 - Manufacture of made-up textile articles, except apparel","MOLDOVA, REPUBLIC OF","THB","THB","MOLDOVA, REPUBLIC OF","MOLDOVA, REPUBLIC OF"]
[null,null,null,null,null,null,null,"TMT",null,null,null,null,"TJS",null,null,null,null,null,null,null,null,null,null,null,"C13.9.3 - Manufacture of carpets and rugs","MONACO","TJS","TJS","MONACO","MONACO"]
[null,null,null,null,null,null,null,"TND",null,null,null,null,"TMT",null,null,null,null,null,null,null,null,null,null,null,"C13.9.4 - Manufacture of cordage, rope, twine and netting","MONGOLIA","TMT","TMT","MONGOLIA","MONGOLIA"]
[null,null,null,null,null,null,null,"TOP",null,null,null,null,"TND",null,null,null,null,null,null,null,null,null,null,null,"C13.9.5 - Manufacture of non-wovens and articles made from non-wovens, except apparel","MONTENEGRO","TND","TND","MONTENEGRO","MONTENEGRO"]
[null,null,null,null,null,null,null,"TRY",null,null,null,null,"TOP",null,null,null,null,null,null,null,null,null,null,null,"C13.9.6 - Manufacture of other technical and industrial textiles","MONTSERRAT","TOP","TOP","MONTSERRAT","MONTSERRAT"]
[null,null,null,null,null,null,null,"TTD",null,null,null,null,"TRY",null,null,null,null,null,null,null,null,null,null,null,"C13.9.9 - Manufacture of other textiles n.e.c.","MOROCCO","TRY","TRY","MOROCCO","MOROCCO"]
[null,null,null,null,null,null,null,"TWD",null,null,null,null,"TTD",null,null,null,null,null,null,null,null,null,null,null,"C14 - Manufacture of wearing apparel","MOZAMBIQUE","TTD","TTD","MOZAMBIQUE","MOZAMBIQUE"]
[null,null,null,null,null,null,null,"TZS",null,null,null,null,"TWD",null,null,null,null,null,null,null,null,null,null,null,"C14.1 - Manufacture of wearing apparel, except fur apparel","MYANMAR","TWD","TWD","MYANMAR","MYANMAR"]
[null,null,null,null,null,null,null,"UAH",null,null,null,null,"TZS",null,null,null,null,null,null,null,null,null,null,null,"C14.1.1 - Manufacture of leather clothes","NAMIBIA","TZS","TZS","NAMIBIA","NAMIBIA"]
[null,null,null,null,null,null,null,"UGX",null,null,null,null,"UAH",null,null,null,null,null,null,null,null,null,null,null,"C14.1.2 - Manufacture of workwear","NAURU","UAH","UAH","NAURU","NAURU"]
[null,null,null,null,null,null,null,"USD",null,null,null,null,"UGX",null,null,null,null,null,null,null,null,null,null,null,"C14.1.3 - Manufacture of other outerwear","NEPAL","UGX","UGX","NEPAL","NEPAL"]
[null,null,null,null,null,null,null,"USN",null,null,null,null,"USD",null,null,null,null,null,null,null,null,null,null,null,"C14.1.4 - Manufacture of underwear","NETHERLANDS","USD","USD","NETHERLANDS","NETHERLANDS"]
[null,null,null,null,null,null,null,"USS",null,null,null,null,"USN",null,null,null,null,null,null,null,null,null,null,null,"C14.1.9 - Manufacture of other wearing apparel and accessories","NEW CALEDONIA","USN","USN","NEW CALEDONIA","NEW CALEDONIA"]
[null,null,null,null,null,null,null,"UYI",null,null,null,null,"USS",null,null,null,null,null,null,null,null,null,null,null,"C14.2 - Manufacture of articles of fur","NEW ZEALAND","USS","USS","NEW ZEALAND","NEW ZEALAND"]
[null,null,null,null,null,null,null,"UYU",null,null,null,null,"UYI",null,null,null,null,null,null,null,null,null,null,null,"C14.2.0 - Manufacture of articles of fur","NICARAGUA","UYI","UYI","NICARAGUA","NICARAGUA"]
[null,null,null,null,null,null,null,"UYW",null,null,null,null,"UYU",null,null,null,null,null,null,null,null,null,null,null,"C14.3 - Manufacture of knitted and crocheted apparel","NIGER","UYU","UYU","NIGER","NIGER"]
[null,null,null,null,null,null,null,"UZS",null,null,null,null,"UYW",null,null,null,null,null,null,null,null,null,null,null,"C14.3.1 - Manufacture of knitted and crocheted hosiery","NIGERIA","UYW","UYW","NIGERIA","NIGERIA"]
[null,null,null,null,null,null,null,"VEF",null,null,null,null,"UZS",null,null,null,null,null,null,null,null,null,null,null,"C14.3.9 - Manufacture of other knitted and crocheted apparel","NIUE","UZS","UZS","NIUE","NIUE"]
[null,null,null,null,null,null,null,"VES",null,null,null,null,"VEF",null,null,null,null,null,null,null,null,null,null,null,"C15 - Manufacture of leather and related products","NORFOLK ISLAND","VEF","VEF","NORFOLK ISLAND","NORFOLK ISLAND"]
[null,null,null,null,null,null,null,"VND",null,null,null,null,"VES",null,null,null,null,null,null,null,null,null,null,null,"C15.1 - Tanning and dressing of leather; manufacture of luggage, handbags, saddlery and harness; dressing and dyeing of fur","NORTHERN MARIANA ISLANDS","VES","VES","NORTHERN MARIANA ISLANDS","NORTHERN MARIANA ISLANDS"]
[null,null,null,null,null,null,null,"VUV",null,null,null,null,"VND",null,null,null,null,null,null,null,null,null,null,null,"C15.1.1 - Tanning and dressing of leather; dressing and dyeing of fur","NORWAY","VND","VND","NORWAY","NORWAY"]
[null,null,null,null,null,null,null,"WST",null,null,null,null,"VUV",null,null,null,null,null,null,null,null,null,null,null,"C15.1.2 - Manufacture of luggage, handbags and the like, saddlery and harness","OMAN","VUV","VUV","OMAN","OMAN"]
[null,null,null,null,null,null,null,"XAF",null,null,null,null,"WST",null,null,null,null,null,null,null,null,null,null,null,"C15.2 - Manufacture of footwear","PAKISTAN","WST","WST","PAKISTAN","PAKISTAN"]
[null,null,null,null,null,null,null,"XAG",null,null,null,null,"XAF",null,null,null,null,null,null,null,null,null,null,null,"C15.2.0 - Manufacture of footwear","PALAU","XAF","XAF","PALAU","PALAU"]
[null,null,null,null,null,null,null,"XAU",null,null,null,null,"XAG",null,null,null,null,null,null,null,null,null,null,null,"C16 - Manufacture of wood and of products of wood and cork, except furniture; manufacture of articles of straw and plaiting materials","PALESTINE, STATE OF","XAG","XAG","PALESTINE, STATE OF","PALESTINE, STATE OF"]
[null,null,null,null,null,null,null,"XBA",null,null,null,null,"XAU",null,null,null,null,null,null,null,null,null,null,null,"C16.1 - Sawmilling and planing of wood","PANAMA","XAU","XAU","PANAMA","PANAMA"]
[null,null,null,null,null,null,null,"XBB",null,null,null,null,"XBA",null,null,null,null,null,null,null,null,null,null,null,"C16.1.0 - Sawmilling and planing of wood","PAPUA NEW GUINEA","XBA","XBA","PAPUA NEW GUINEA","PAPUA NEW GUINEA"]
[null,null,null,null,null,null,null,"XBC",null,null,null,null,"XBB",null,null,null,null,null,null,null,null,null,null,null,"C16.2 - Manufacture of products of wood, cork, straw and plaiting materials","PARAGUAY","XBB","XBB","PARAGUAY","PARAGUAY"]
[null,null,null,null,null,null,null,"XBD",null,null,null,null,"XBC",null,null,null,null,null,null,null,null,null,null,null,"C16.2.1 - Manufacture of veneer sheets and wood-based panels","PERU","XBC","XBC","PERU","PERU"]
[null,null,null,null,null,null,null,"XCD",null,null,null,null,"XBD",null,null,null,null,null,null,null,null,null,null,null,"C16.2.2 - Manufacture of assembled parquet floors","PHILIPPINES","XBD","XBD","PHILIPPINES","PHILIPPINES"]
[null,null,null,null,null,null,null,"XDR",null,null,null,null,"XCD",null,null,null,null,null,null,null,null,null,null,null,"C16.2.3 - Manufacture of other builders' carpentry and joinery","PITCAIRN","XCD","XCD","PITCAIRN","PITCAIRN"]
[null,null,null,null,null,null,null,"XFU",null,null,null,null,"XDR",null,null,null,null,null,null,null,null,null,null,null,"C16.2.4 - Manufacture of wooden containers","POLAND","XDR","XDR","POLAND","POLAND"]
[null,null,null,null,null,null,null,"XOF",null,null,null,null,"XFU",null,null,null,null,null,null,null,null,null,null,null,"C16.2.9 - Manufacture of other products of wood; manufacture of articles of cork, straw and plaiting materials","PORTUGAL","XFU","XFU","PORTUGAL","PORTUGAL"]
[null,null,null,null,null,null,null,"XPD",null,null,null,null,"XOF",null,null,null,null,null,null,null,null,null,null,null,"C17 - Manufacture of paper and paper products","PUERTO RICO","XOF","XOF","PUERTO RICO","PUERTO RICO"]
[null,null,null,null,null,null,null,"XPF",null,null,null,null,"XPD",null,null,null,null,null,null,null,null,null,null,null,"C17.1 - Manufacture of pulp, paper and paperboard","QATAR","XPD","XPD","QATAR","QATAR"]
[null,null,null,null,null,null,null,"XPT",null,null,null,null,"XPF",null,null,null,null,null,null,null,null,null,null,null,"C17.1.1 - Manufacture of pulp","RÉUNION","XPF","XPF","RÉUNION","RÉUNION"]
[null,null,null,null,null,null,null,"XSU",null,null,null,null,"XPT",null,null,null,null,null,null,null,null,null,null,null,"C17.1.2 - Manufacture of paper and paperboard","ROMANIA","XPT","XPT","ROMANIA","ROMANIA"]
[null,null,null,null,null,null,null,"XTS",null,null,null,null,"XSU",null,null,null,null,null,null,null,null,null,null,null,"C17.2 - Manufacture of articles of paper and paperboard","RUSSIAN FEDERATION","XSU","XSU","RUSSIAN FEDERATION","RUSSIAN FEDERATION"]
[null,null,null,null,null,null,null,"XUA",null,null,null,null,"XTS",null,null,null,null,null,null,null,null,null,null,null,"C17.2.1 - Manufacture of corrugated paper and paperboard and of containers of paper and paperboard","RWANDA","XTS","XTS","RWANDA","RWANDA"]
[null,null,null,null,null,null,null,"YER",null,null,null,null,"XUA",null,null,null,null,null,null,null,null,null,null,null,"C17.2.2 - Manufacture of household and sanitary goods and of toilet requisites","SAINT BARTHÉLEMY","XUA","XUA","SAINT BARTHÉLEMY","SAINT BARTHÉLEMY"]
[null,null,null,null,null,null,null,"ZAR",null,null,null,null,"YER",null,null,null,null,null,null,null,null,null,null,null,"C17.2.3 - Manufacture of paper stationery","SAINT HELENA, ASCENSION AND TRISTAN DA CUNHA","YER","YER","SAINT HELENA, ASCENSION AND TRISTAN DA CUNHA","SAINT HELENA, ASCENSION AND TRISTAN DA CUNHA"]
[null,null,null,null,null,null,null,"ZMK",null,null,null,null,"ZAR",null,null,null,null,null,null,null,null,null,null,null,"C17.2.4 - Manufacture of wallpaper","SAINT KITTS AND NEVIS","ZAR","ZAR","SAINT KITTS AND NEVIS","SAINT KITTS AND NEVIS"]
[null,null,null,null,null,null,null,"ZMW",null,null,null,null,"ZMK",null,null,null,null,null,null,null,null,null,null,null,"C17.2.9 - Manufacture of other articles of paper and paperboard","SAINT LUCIA","ZMK","ZMK","SAINT LUCIA","SAINT LUCIA"]
[null,null,null,null,null,null,null,"ZWL",null,null,null,null,"ZMW",null,null,null,null,null,null,null,null,null,null,null,"C18 - Printing and reproduction of recorded media","SAINT MARTIN (FRENCH PART)","ZMW","ZMW","SAINT MARTIN (FRENCH PART)","SAINT MARTIN (FRENCH PART)"]
[null,null,null,null,null,null,null,"Temporary identifier for currency 1",null,null,null,null,"ZWL",null,null,null,null,null,null,null,null,null,null,null,"C18.1 - Printing and service activities related to printing","SAINT PIERRE AND MIQUELON","ZWL","ZWL","SAINT PIERRE AND MIQUELON","SAINT PIERRE AND MIQUELON"]
[null,null,null,null,null,null,null,"Temporary identifier for currency 2",null,null,null,null,"Temporary identifier for currency 1",null,null,null,null,null,null,null,null,null,null,null,"C18.1.1 - Printing of newspapers","SAINT VINCENT AND THE GRENADINES","Other currencies","Other currencies","SAINT VINCENT AND THE GRENADINES","SAINT VINCENT AND THE GRENADINES"]
[null,null,null,null,null,null,null,"Temporary identifier for currency 3",null,null,null,null,"Temporary identifier for currency 2",null,null,null,null,null,null,null,null,null,null,null,"C18.1.2 - Other printing","SAMOA","Temporary identifier for currency 1","Temporary identifier for currency 1","SAMOA","SAMOA"]
[null,null,null,null,null,null,null,null,null,null,null,null,"Temporary identifier for currency 3",null,null,null,null,null,null,null,null,null,null,null,"C18.1.3 - Pre-press and pre-media services","SAN MARINO","Temporary identifier for currency 2","Temporary identifier for currency 2","SAN MARINO","SAN MARINO"]
[null,null,null,null,null,null,null,null,null,null,null,null,null,null,null,null,null,null,null,null,null,null,null,null,"C18.1.4 - Binding and related services","SAO TOME AND PRINCIPE","Temporary identifier for currency 3","Temporary identifier for currency 3","SAO TOME AND PRINCIPE","SAO TOME AND PRINCIPE"]
[null,null,null,null,null,null,null,null,null,null,null,null,null,null,null,null,null,null,null,null,null,null,null,null,"C18.2 - Reproduction of recorded media","SAUDI ARABIA",null,null,"SAUDI ARABIA","SAUDI ARABIA"]
[null,null,null,null,null,null,null,null,null,null,null,null,null,null,null,null,null,null,null,null,null,null,null,null,"C18.2.0 - Reproduction of recorded media","SENEGAL",null,null,"SENEGAL","SENEGAL"]
[null,null,null,null,null,null,null,null,null,null,null,null,null,null,null,null,null,null,null,null,null,null,null,null,"C19 - Manufacture of coke and refined petroleum products","SERBIA",null,null,"SERBIA","SERBIA"]
[null,null,null,null,null,null,null,null,null,null,null,null,null,null,null,null,null,null,null,null,null,null,null,null,"C19.1 - Manufacture of coke oven products","SEYCHELLES",null,null,"SEYCHELLES","SEYCHELLES"]
[null,null,null,null,null,null,null,null,null,null,null,null,null,null,null,null,null,null,null,null,null,null,null,null,"C19.1.0 - Manufacture of coke oven products","SIERRA LEONE",null,null,"SIERRA LEONE","SIERRA LEONE"]
[null,null,null,null,null,null,null,null,null,null,null,null,null,null,null,null,null,null,null,null,null,null,null,null,"C19.2 - Manufacture of refined petroleum products","SINGAPORE",null,null,"SINGAPORE","SINGAPORE"]
[null,null,null,null,null,null,null,null,null,null,null,null,null,null,null,null,null,null,null,null,null,null,null,null,"C19.2.0 - Manufacture of refined petroleum products","SINT MAARTEN (DUTCH PART)",null,null,"SINT MAARTEN (DUTCH PART)","SINT MAARTEN (DUTCH PART)"]
[null,null,null,null,null,null,null,null,null,null,null,null,null,null,null,null,null,null,null,null,null,null,null,null,"C20 - Manufacture of chemicals and chemical products","SLOVAKIA",null,null,"SLOVAKIA","SLOVAKIA"]
[null,null,null,null,null,null,null,null,null,null,null,null,null,null,null,null,null,null,null,null,null,null,null,null,"C20.1 - Manufacture of basic chemicals, fertilisers and nitrogen compounds, plastics and synthetic rubber in primary forms","SLOVENIA",null,null,"SLOVENIA","SLOVENIA"]
[null,null,null,null,null,null,null,null,null,null,null,null,null,null,null,null,null,null,null,null,null,null,null,null,"C20.1.1 - Manufacture of industrial gases","SOLOMON ISLANDS",null,null,"SOLOMON ISLANDS","SOLOMON ISLANDS"]
[null,null,null,null,null,null,null,null,null,null,null,null,null,null,null,null,null,null,null,null,null,null,null,null,"C20.1.2 - Manufacture of dyes and pigments","SOMALIA",null,null,"SOMALIA","SOMALIA"]
[null,null,null,null,null,null,null,null,null,null,null,null,null,null,null,null,null,null,null,null,null,null,null,null,"C20.1.3 - Manufacture of other inorganic basic chemicals","SOUTH AFRICA",null,null,"SOUTH AFRICA","SOUTH AFRICA"]
[null,null,null,null,null,null,null,null,null,null,null,null,null,null,null,null,null,null,null,null,null,null,null,null,"C20.1.4 - Manufacture of other organic basic chemicals","SOUTH GEORGIA AND THE SOUTH SANDWICH ISLANDS",null,null,"SOUTH GEORGIA AND THE SOUTH SANDWICH ISLANDS","SOUTH GEORGIA AND THE SOUTH SANDWICH ISLANDS"]
[null,null,null,null,null,null,null,null,null,null,null,null,null,null,null,null,null,null,null,null,null,null,null,null,"C20.1.5 - Manufacture of fertilisers and nitrogen compounds","SPAIN",null,null,"SPAIN","SPAIN"]
[null,null,null,null,null,null,null,null,null,null,null,null,null,null,null,null,null,null,null,null,null,null,null,null,"C20.1.6 - Manufacture of plastics in primary forms","SRI LANKA",null,null,"SRI LANKA","SRI LANKA"]
[null,null,null,null,null,null,null,null,null,null,null,null,null,null,null,null,null,null,null,null,null,null,null,null,"C20.1.7 - Manufacture of synthetic rubber in primary forms","SUDAN",null,null,"SUDAN","SUDAN"]
[null,null,null,null,null,null,null,null,null,null,null,null,null,null,null,null,null,null,null,null,null,null,null,null,"C20.2 - Manufacture of pesticides and other agrochemical products","SURINAME",null,null,"SURINAME","SURINAME"]
[null,null,null,null,null,null,null,null,null,null,null,null,null,null,null,null,null,null,null,null,null,null,null,null,"C20.2.0 - Manufacture of pesticides and other agrochemical products","SVALBARD AND JAN MAYEN",null,null,"SVALBARD AND JAN MAYEN","SVALBARD AND JAN MAYEN"]
[null,null,null,null,null,null,null,null,null,null,null,null,null,null,null,null,null,null,null,null,null,null,null,null,"C20.3 - Manufacture of paints, varnishes and similar coatings, printing ink and mastics","ESWATINI",null,null,"ESWATINI","ESWATINI"]
[null,null,null,null,null,null,null,null,null,null,null,null,null,null,null,null,null,null,null,null,null,null,null,null,"C20.3.0 - Manufacture of paints, varnishes and similar coatings, printing ink and mastics","SWEDEN",null,null,"SWEDEN","SWEDEN"]
[null,null,null,null,null,null,null,null,null,null,null,null,null,null,null,null,null,null,null,null,null,null,null,null,"C20.4 - Manufacture of soap and detergents, cleaning and polishing preparations, perfumes and toilet preparations","SWITZERLAND",null,null,"SWITZERLAND","SWITZERLAND"]
[null,null,null,null,null,null,null,null,null,null,null,null,null,null,null,null,null,null,null,null,null,null,null,null,"C20.4.1 - Manufacture of soap and detergents, cleaning and polishing preparations","SYRIAN ARAB REPUBLIC",null,null,"SYRIAN ARAB REPUBLIC","SYRIAN ARAB REPUBLIC"]
[null,null,null,null,null,null,null,null,null,null,null,null,null,null,null,null,null,null,null,null,null,null,null,null,"C20.4.2 - Manufacture of perfumes and toilet preparations","TAIWAN, PROVINCE OF CHINA",null,null,"TAIWAN, PROVINCE OF CHINA","TAIWAN, PROVINCE OF CHINA"]
[null,null,null,null,null,null,null,null,null,null,null,null,null,null,null,null,null,null,null,null,null,null,null,null,"C20.5 - Manufacture of other chemical products","TAJIKISTAN",null,null,"TAJIKISTAN","TAJIKISTAN"]
[null,null,null,null,null,null,null,null,null,null,null,null,null,null,null,null,null,null,null,null,null,null,null,null,"C20.5.1 - Manufacture of explosives","TANZANIA, UNITED REPUBLIC OF",null,null,"TANZANIA, UNITED REPUBLIC OF","TANZANIA, UNITED REPUBLIC OF"]
[null,null,null,null,null,null,null,null,null,null,null,null,null,null,null,null,null,null,null,null,null,null,null,null,"C20.5.2 - Manufacture of glues","THAILAND",null,null,"THAILAND","THAILAND"]
[null,null,null,null,null,null,null,null,null,null,null,null,null,null,null,null,null,null,null,null,null,null,null,null,"C20.5.3 - Manufacture of essential oils","TIMOR-LESTE",null,null,"TIMOR-LESTE","TIMOR-LESTE"]
[null,null,null,null,null,null,null,null,null,null,null,null,null,null,null,null,null,null,null,null,null,null,null,null,"C20.5.9 - Manufacture of other chemical products n.e.c.","TOGO",null,null,"TOGO","TOGO"]
[null,null,null,null,null,null,null,null,null,null,null,null,null,null,null,null,null,null,null,null,null,null,null,null,"C20.6 - Manufacture of man-made fibres","TOKELAU",null,null,"TOKELAU","TOKELAU"]
[null,null,null,null,null,null,null,null,null,null,null,null,null,null,null,null,null,null,null,null,null,null,null,null,"C20.6.0 - Manufacture of man-made fibres","TONGA",null,null,"TONGA","TONGA"]
[null,null,null,null,null,null,null,null,null,null,null,null,null,null,null,null,null,null,null,null,null,null,null,null,"C21 - Manufacture of basic pharmaceutical products and pharmaceutical preparations","TRINIDAD AND TOBAGO",null,null,"TRINIDAD AND TOBAGO","TRINIDAD AND TOBAGO"]
[null,null,null,null,null,null,null,null,null,null,null,null,null,null,null,null,null,null,null,null,null,null,null,null,"C21.1 - Manufacture of basic pharmaceutical products","TUNISIA",null,null,"TUNISIA","TUNISIA"]
[null,null,null,null,null,null,null,null,null,null,null,null,null,null,null,null,null,null,null,null,null,null,null,null,"C21.1.0 - Manufacture of basic pharmaceutical products","TURKEY",null,null,"TURKEY","TURKEY"]
[null,null,null,null,null,null,null,null,null,null,null,null,null,null,null,null,null,null,null,null,null,null,null,null,"C21.2 - Manufacture of pharmaceutical preparations","TURKMENISTAN",null,null,"TURKMENISTAN","TURKMENISTAN"]
[null,null,null,null,null,null,null,null,null,null,null,null,null,null,null,null,null,null,null,null,null,null,null,null,"C21.2.0 - Manufacture of pharmaceutical preparations","TURKS AND CAICOS ISLANDS",null,null,"TURKS AND CAICOS ISLANDS","TURKS AND CAICOS ISLANDS"]
[null,null,null,null,null,null,null,null,null,null,null,null,null,null,null,null,null,null,null,null,null,null,null,null,"C22 - Manufacture of rubber and plastic products","TUVALU",null,null,"TUVALU","TUVALU"]
[null,null,null,null,null,null,null,null,null,null,null,null,null,null,null,null,null,null,null,null,null,null,null,null,"C22.1 - Manufacture of rubber products","UGANDA",null,null,"UGANDA","UGANDA"]
[null,null,null,null,null,null,null,null,null,null,null,null,null,null,null,null,null,null,null,null,null,null,null,null,"C22.1.1 - Manufacture of rubber tyres and tubes; retreading and rebuilding of rubber tyres","UKRAINE",null,null,"UKRAINE","UKRAINE"]
[null,null,null,null,null,null,null,null,null,null,null,null,null,null,null,null,null,null,null,null,null,null,null,null,"C22.1.9 - Manufacture of other rubber products","UNITED ARAB EMIRATES",null,null,"UNITED ARAB EMIRATES","UNITED ARAB EMIRATES"]
[null,null,null,null,null,null,null,null,null,null,null,null,null,null,null,null,null,null,null,null,null,null,null,null,"C22.2 - Manufacture of plastics products","UNITED KINGDOM",null,null,"UNITED KINGDOM","UNITED KINGDOM"]
[null,null,null,null,null,null,null,null,null,null,null,null,null,null,null,null,null,null,null,null,null,null,null,null,"C22.2.1 - Manufacture of plastic plates, sheets, tubes and profiles","UNITED KINGDOM (GIBRALTAR)",null,null,"UNITED KINGDOM (GIBRALTAR)","UNITED KINGDOM (GIBRALTAR)"]
[null,null,null,null,null,null,null,null,null,null,null,null,null,null,null,null,null,null,null,null,null,null,null,null,"C22.2.2 - Manufacture of plastic packing goods","UNITED STATES",null,null,"UNITED STATES","UNITED STATES"]
[null,null,null,null,null,null,null,null,null,null,null,null,null,null,null,null,null,null,null,null,null,null,null,null,"C22.2.3 - Manufacture of builders’ ware of plastic","UNITED STATES MINOR OUTLYING ISLANDS",null,null,"UNITED STATES MINOR OUTLYING ISLANDS","UNITED STATES MINOR OUTLYING ISLANDS"]
[null,null,null,null,null,null,null,null,null,null,null,null,null,null,null,null,null,null,null,null,null,null,null,null,"C22.2.9 - Manufacture of other plastic products","URUGUAY",null,null,"URUGUAY","URUGUAY"]
[null,null,null,null,null,null,null,null,null,null,null,null,null,null,null,null,null,null,null,null,null,null,null,null,"C23 - Manufacture of other non-metallic mineral products","UZBEKISTAN",null,null,"UZBEKISTAN","UZBEKISTAN"]
[null,null,null,null,null,null,null,null,null,null,null,null,null,null,null,null,null,null,null,null,null,null,null,null,"C23.1 - Manufacture of glass and glass products","VANUATU",null,null,"VANUATU","VANUATU"]
[null,null,null,null,null,null,null,null,null,null,null,null,null,null,null,null,null,null,null,null,null,null,null,null,"C23.1.1 - Manufacture of flat glass","VENEZUELA, BOLIVARIAN REPUBLIC OF",null,null,"VENEZUELA, BOLIVARIAN REPUBLIC OF","VENEZUELA, BOLIVARIAN REPUBLIC OF"]
[null,null,null,null,null,null,null,null,null,null,null,null,null,null,null,null,null,null,null,null,null,null,null,null,"C23.1.2 - Shaping and processing of flat glass","VIET NAM",null,null,"VIET NAM","VIET NAM"]
[null,null,null,null,null,null,null,null,null,null,null,null,null,null,null,null,null,null,null,null,null,null,null,null,"C23.1.3 - Manufacture of hollow glass","VIRGIN ISLANDS, BRITISH",null,null,"VIRGIN ISLANDS, BRITISH","VIRGIN ISLANDS, BRITISH"]
[null,null,null,null,null,null,null,null,null,null,null,null,null,null,null,null,null,null,null,null,null,null,null,null,"C23.1.4 - Manufacture of glass fibres","VIRGIN ISLANDS, U.S.",null,null,"VIRGIN ISLANDS, U.S.","VIRGIN ISLANDS, U.S."]
[null,null,null,null,null,null,null,null,null,null,null,null,null,null,null,null,null,null,null,null,null,null,null,null,"C23.1.9 - Manufacture and processing of other glass, including technical glassware","WALLIS AND FUTUNA",null,null,"WALLIS AND FUTUNA","WALLIS AND FUTUNA"]
[null,null,null,null,null,null,null,null,null,null,null,null,null,null,null,null,null,null,null,null,null,null,null,null,"C23.2 - Manufacture of refractory products","WESTERN SAHARA",null,null,"WESTERN SAHARA","WESTERN SAHARA"]
[null,null,null,null,null,null,null,null,null,null,null,null,null,null,null,null,null,null,null,null,null,null,null,null,"C23.2.0 - Manufacture of refractory products","YEMEN",null,null,"YEMEN","YEMEN"]
[null,null,null,null,null,null,null,null,null,null,null,null,null,null,null,null,null,null,null,null,null,null,null,null,"C23.3 - Manufacture of clay building materials","ZAMBIA",null,null,"ZAMBIA","ZAMBIA"]
[null,null,null,null,null,null,null,null,null,null,null,null,null,null,null,null,null,null,null,null,null,null,null,null,"C23.3.1 - Manufacture of ceramic tiles and flags","ZIMBABWE",null,null,"ZIMBABWE","ZIMBABWE"]
[null,null,null,null,null,null,null,null,null,null,null,null,null,null,null,null,null,null,null,null,null,null,null,null,"C23.3.2 - Manufacture of bricks, tiles and construction products, in baked clay","SOUTH SUDAN",null,null,"SOUTH SUDAN","SOUTH SUDAN"]
[null,null,null,null,null,null,null,null,null,null,null,null,null,null,null,null,null,null,null,null,null,null,null,null,"C23.4 - Manufacture of other porcelain and ceramic products","UNITED KINGDOM (AFTER BREXIT)",null,null,"Other countries","Other countries"]
[null,null,null,null,null,null,null,null,null,null,null,null,null,null,null,null,null,null,null,null,null,null,null,null,"C23.4.1 - Manufacture of ceramic household and ornamental articles","UNITED KINGDOM (GIBRALTAR) (AFTER BREXIT)",null,null,"Temporary identifier for country 1","Temporary identifier for country 1"]
[null,null,null,null,null,null,null,null,null,null,null,null,null,null,null,null,null,null,null,null,null,null,null,null,"C23.4.2 - Manufacture of ceramic sanitary fixtures","Temporary identifier for country 1",null,null,"Temporary identifier for country 2","Temporary identifier for country 2"]
[null,null,null,null,null,null,null,null,null,null,null,null,null,null,null,null,null,null,null,null,null,null,null,null,"C23.4.3 - Manufacture of ceramic insulators and insulating fittings","Temporary identifier for country 2",null,null,"Temporary identifier for country 3","Temporary identifier for country 3"]
[null,null,null,null,null,null,null,null,null,null,null,null,null,null,null,null,null,null,null,null,null,null,null,null,"C23.4.4 - Manufacture of other technical ceramic products","Temporary identifier for country 3"]
[null,null,null,null,null,null,null,null,null,null,null,null,null,null,null,null,null,null,null,null,null,null,null,null,"C23.4.9 - Manufacture of other ceramic products"]
[null,null,null,null,null,null,null,null,null,null,null,null,null,null,null,null,null,null,null,null,null,null,null,null,"C23.5 - Manufacture of cement, lime and plaster"]
[null,null,null,null,null,null,null,null,null,null,null,null,null,null,null,null,null,null,null,null,null,null,null,null,"C23.5.1 - Manufacture of cement"]
[null,null,null,null,null,null,null,null,null,null,null,null,null,null,null,null,null,null,null,null,null,null,null,null,"C23.5.2 - Manufacture of lime and plaster"]
[null,null,null,null,null,null,null,null,null,null,null,null,null,null,null,null,null,null,null,null,null,null,null,null,"C23.6 - Manufacture of articles of concrete, cement and plaster"]
[null,null,null,null,null,null,null,null,null,null,null,null,null,null,null,null,null,null,null,null,null,null,null,null,"C23.6.1 - Manufacture of concrete products for construction purposes"]
[null,null,null,null,null,null,null,null,null,null,null,null,null,null,null,null,null,null,null,null,null,null,null,null,"C23.6.2 - Manufacture of plaster products for construction purposes"]
[null,null,null,null,null,null,null,null,null,null,null,null,null,null,null,null,null,null,null,null,null,null,null,null,"C23.6.3 - Manufacture of ready-mixed concrete"]
[null,null,null,null,null,null,null,null,null,null,null,null,null,null,null,null,null,null,null,null,null,null,null,null,"C23.6.4 - Manufacture of mortars"]
[null,null,null,null,null,null,null,null,null,null,null,null,null,null,null,null,null,null,null,null,null,null,null,null,"C23.6.5 - Manufacture of fibre cement"]
[null,null,null,null,null,null,null,null,null,null,null,null,null,null,null,null,null,null,null,null,null,null,null,null,"C23.6.9 - Manufacture of other articles of concrete, plaster and cement"]
[null,null,null,null,null,null,null,null,null,null,null,null,null,null,null,null,null,null,null,null,null,null,null,null,"C23.7 - Cutting, shaping and finishing of stone"]
[null,null,null,null,null,null,null,null,null,null,null,null,null,null,null,null,null,null,null,null,null,null,null,null,"C23.7.0 - Cutting, shaping and finishing of stone"]
[null,null,null,null,null,null,null,null,null,null,null,null,null,null,null,null,null,null,null,null,null,null,null,null,"C23.9 - Manufacture of abrasive products and non-metallic mineral products n.e.c."]
[null,null,null,null,null,null,null,null,null,null,null,null,null,null,null,null,null,null,null,null,null,null,null,null,"C23.9.1 - Production of abrasive products"]
[null,null,null,null,null,null,null,null,null,null,null,null,null,null,null,null,null,null,null,null,null,null,null,null,"C23.9.9 - Manufacture of other non-metallic mineral products n.e.c."]
[null,null,null,null,null,null,null,null,null,null,null,null,null,null,null,null,null,null,null,null,null,null,null,null,"C24 - Manufacture of basic metals"]
[null,null,null,null,null,null,null,null,null,null,null,null,null,null,null,null,null,null,null,null,null,null,null,null,"C24.1 - Manufacture of basic iron and steel and of ferro-alloys"]
[null,null,null,null,null,null,null,null,null,null,null,null,null,null,null,null,null,null,null,null,null,null,null,null,"C24.1.0 - Manufacture of basic iron and steel and of ferro-alloys"]
[null,null,null,null,null,null,null,null,null,null,null,null,null,null,null,null,null,null,null,null,null,null,null,null,"C24.2 - Manufacture of tubes, pipes, hollow profiles and related fittings, of steel"]
[null,null,null,null,null,null,null,null,null,null,null,null,null,null,null,null,null,null,null,null,null,null,null,null,"C24.2.0 - Manufacture of tubes, pipes, hollow profiles and related fittings, of steel"]
[null,null,null,null,null,null,null,null,null,null,null,null,null,null,null,null,null,null,null,null,null,null,null,null,"C24.3 - Manufacture of other products of first processing of steel"]
[null,null,null,null,null,null,null,null,null,null,null,null,null,null,null,null,null,null,null,null,null,null,null,null,"C24.3.1 - Cold drawing of bars"]
[null,null,null,null,null,null,null,null,null,null,null,null,null,null,null,null,null,null,null,null,null,null,null,null,"C24.3.2 - Cold rolling of narrow strip"]
[null,null,null,null,null,null,null,null,null,null,null,null,null,null,null,null,null,null,null,null,null,null,null,null,"C24.3.3 - Cold forming or folding"]
[null,null,null,null,null,null,null,null,null,null,null,null,null,null,null,null,null,null,null,null,null,null,null,null,"C24.3.4 - Cold drawing of wire"]
[null,null,null,null,null,null,null,null,null,null,null,null,null,null,null,null,null,null,null,null,null,null,null,null,"C24.4 - Manufacture of basic precious and other non-ferrous metals"]
[null,null,null,null,null,null,null,null,null,null,null,null,null,null,null,null,null,null,null,null,null,null,null,null,"C24.4.1 - Precious metals production"]
[null,null,null,null,null,null,null,null,null,null,null,null,null,null,null,null,null,null,null,null,null,null,null,null,"C24.4.2 - Aluminium production"]
[null,null,null,null,null,null,null,null,null,null,null,null,null,null,null,null,null,null,null,null,null,null,null,null,"C24.4.3 - Lead, zinc and tin production"]
[null,null,null,null,null,null,null,null,null,null,null,null,null,null,null,null,null,null,null,null,null,null,null,null,"C24.4.4 - Copper production"]
[null,null,null,null,null,null,null,null,null,null,null,null,null,null,null,null,null,null,null,null,null,null,null,null,"C24.4.5 - Other non-ferrous metal production"]
[null,null,null,null,null,null,null,null,null,null,null,null,null,null,null,null,null,null,null,null,null,null,null,null,"C24.4.6 - Processing of nuclear fuel"]
[null,null,null,null,null,null,null,null,null,null,null,null,null,null,null,null,null,null,null,null,null,null,null,null,"C24.5 - Casting of metals"]
[null,null,null,null,null,null,null,null,null,null,null,null,null,null,null,null,null,null,null,null,null,null,null,null,"C24.5.1 - Casting of iron"]
[null,null,null,null,null,null,null,null,null,null,null,null,null,null,null,null,null,null,null,null,null,null,null,null,"C24.5.2 - Casting of steel"]
[null,null,null,null,null,null,null,null,null,null,null,null,null,null,null,null,null,null,null,null,null,null,null,null,"C24.5.3 - Casting of light metals"]
[null,null,null,null,null,null,null,null,null,null,null,null,null,null,null,null,null,null,null,null,null,null,null,null,"C24.5.4 - Casting of other non-ferrous metals"]
[null,null,null,null,null,null,null,null,null,null,null,null,null,null,null,null,null,null,null,null,null,null,null,null,"C25 - Manufacture of fabricated metal products, except machinery and equipment"]
[null,null,null,null,null,null,null,null,null,null,null,null,null,null,null,null,null,null,null,null,null,null,null,null,"C25.1 - Manufacture of structural metal products"]
[null,null,null,null,null,null,null,null,null,null,null,null,null,null,null,null,null,null,null,null,null,null,null,null,"C25.1.1 - Manufacture of metal structures and parts of structures"]
[null,null,null,null,null,null,null,null,null,null,null,null,null,null,null,null,null,null,null,null,null,null,null,null,"C25.1.2 - Manufacture of doors and windows of metal"]
[null,null,null,null,null,null,null,null,null,null,null,null,null,null,null,null,null,null,null,null,null,null,null,null,"C25.2 - Manufacture of tanks, reservoirs and containers of metal"]
[null,null,null,null,null,null,null,null,null,null,null,null,null,null,null,null,null,null,null,null,null,null,null,null,"C25.2.1 - Manufacture of central heating radiators and boilers"]
[null,null,null,null,null,null,null,null,null,null,null,null,null,null,null,null,null,null,null,null,null,null,null,null,"C25.2.9 - Manufacture of other tanks, reservoirs and containers of metal"]
[null,null,null,null,null,null,null,null,null,null,null,null,null,null,null,null,null,null,null,null,null,null,null,null,"C25.3 - Manufacture of steam generators, except central heating hot water boilers"]
[null,null,null,null,null,null,null,null,null,null,null,null,null,null,null,null,null,null,null,null,null,null,null,null,"C25.3.0 - Manufacture of steam generators, except central heating hot water boilers"]
[null,null,null,null,null,null,null,null,null,null,null,null,null,null,null,null,null,null,null,null,null,null,null,null,"C25.4 - Manufacture of weapons and ammunition"]
[null,null,null,null,null,null,null,null,null,null,null,null,null,null,null,null,null,null,null,null,null,null,null,null,"C25.4.0 - Manufacture of weapons and ammunition"]
[null,null,null,null,null,null,null,null,null,null,null,null,null,null,null,null,null,null,null,null,null,null,null,null,"C25.5 - Forging, pressing, stamping and roll-forming of metal; powder metallurgy"]
[null,null,null,null,null,null,null,null,null,null,null,null,null,null,null,null,null,null,null,null,null,null,null,null,"C25.5.0 - Forging, pressing, stamping and roll-forming of metal; powder metallurgy"]
[null,null,null,null,null,null,null,null,null,null,null,null,null,null,null,null,null,null,null,null,null,null,null,null,"C25.6 - Treatment and coating of metals; machining"]
[null,null,null,null,null,null,null,null,null,null,null,null,null,null,null,null,null,null,null,null,null,null,null,null,"C25.6.1 - Treatment and coating of metals"]
[null,null,null,null,null,null,null,null,null,null,null,null,null,null,null,null,null,null,null,null,null,null,null,null,"C25.6.2 - Machining"]
[null,null,null,null,null,null,null,null,null,null,null,null,null,null,null,null,null,null,null,null,null,null,null,null,"C25.7 - Manufacture of cutlery, tools and general hardware"]
[null,null,null,null,null,null,null,null,null,null,null,null,null,null,null,null,null,null,null,null,null,null,null,null,"C25.7.1 - Manufacture of cutlery"]
[null,null,null,null,null,null,null,null,null,null,null,null,null,null,null,null,null,null,null,null,null,null,null,null,"C25.7.2 - Manufacture of locks and hinges"]
[null,null,null,null,null,null,null,null,null,null,null,null,null,null,null,null,null,null,null,null,null,null,null,null,"C25.7.3 - Manufacture of tools"]
[null,null,null,null,null,null,null,null,null,null,null,null,null,null,null,null,null,null,null,null,null,null,null,null,"C25.9 - Manufacture of other fabricated metal products"]
[null,null,null,null,null,null,null,null,null,null,null,null,null,null,null,null,null,null,null,null,null,null,null,null,"C25.9.1 - Manufacture of steel drums and similar containers"]
[null,null,null,null,null,null,null,null,null,null,null,null,null,null,null,null,null,null,null,null,null,null,null,null,"C25.9.2 - Manufacture of light metal packaging"]
[null,null,null,null,null,null,null,null,null,null,null,null,null,null,null,null,null,null,null,null,null,null,null,null,"C25.9.3 - Manufacture of wire products, chain and springs"]
[null,null,null,null,null,null,null,null,null,null,null,null,null,null,null,null,null,null,null,null,null,null,null,null,"C25.9.4 - Manufacture of fasteners and screw machine products"]
[null,null,null,null,null,null,null,null,null,null,null,null,null,null,null,null,null,null,null,null,null,null,null,null,"C25.9.9 - Manufacture of other fabricated metal products n.e.c."]
[null,null,null,null,null,null,null,null,null,null,null,null,null,null,null,null,null,null,null,null,null,null,null,null,"C26 - Manufacture of computer, electronic and optical products"]
[null,null,null,null,null,null,null,null,null,null,null,null,null,null,null,null,null,null,null,null,null,null,null,null,"C26.1 - Manufacture of electronic components and boards"]
[null,null,null,null,null,null,null,null,null,null,null,null,null,null,null,null,null,null,null,null,null,null,null,null,"C26.1.1 - Manufacture of electronic components"]
[null,null,null,null,null,null,null,null,null,null,null,null,null,null,null,null,null,null,null,null,null,null,null,null,"C26.1.2 - Manufacture of loaded electronic boards"]
[null,null,null,null,null,null,null,null,null,null,null,null,null,null,null,null,null,null,null,null,null,null,null,null,"C26.2 - Manufacture of computers and peripheral equipment"]
[null,null,null,null,null,null,null,null,null,null,null,null,null,null,null,null,null,null,null,null,null,null,null,null,"C26.2.0 - Manufacture of computers and peripheral equipment"]
[null,null,null,null,null,null,null,null,null,null,null,null,null,null,null,null,null,null,null,null,null,null,null,null,"C26.3 - Manufacture of communication equipment"]
[null,null,null,null,null,null,null,null,null,null,null,null,null,null,null,null,null,null,null,null,null,null,null,null,"C26.3.0 - Manufacture of communication equipment"]
[null,null,null,null,null,null,null,null,null,null,null,null,null,null,null,null,null,null,null,null,null,null,null,null,"C26.4 - Manufacture of consumer electronics"]
[null,null,null,null,null,null,null,null,null,null,null,null,null,null,null,null,null,null,null,null,null,null,null,null,"C26.4.0 - Manufacture of consumer electronics"]
[null,null,null,null,null,null,null,null,null,null,null,null,null,null,null,null,null,null,null,null,null,null,null,null,"C26.5 - Manufacture of instruments and appliances for measuring, testing and navigation; watches and clocks"]
[null,null,null,null,null,null,null,null,null,null,null,null,null,null,null,null,null,null,null,null,null,null,null,null,"C26.5.1 - Manufacture of instruments and appliances for measuring, testing and navigation"]
[null,null,null,null,null,null,null,null,null,null,null,null,null,null,null,null,null,null,null,null,null,null,null,null,"C26.5.2 - Manufacture of watches and clocks"]
[null,null,null,null,null,null,null,null,null,null,null,null,null,null,null,null,null,null,null,null,null,null,null,null,"C26.6 - Manufacture of irradiation, electromedical and electrotherapeutic equipment"]
[null,null,null,null,null,null,null,null,null,null,null,null,null,null,null,null,null,null,null,null,null,null,null,null,"C26.6.0 - Manufacture of irradiation, electromedical and electrotherapeutic equipment"]
[null,null,null,null,null,null,null,null,null,null,null,null,null,null,null,null,null,null,null,null,null,null,null,null,"C26.7 - Manufacture of optical instruments and photographic equipment"]
[null,null,null,null,null,null,null,null,null,null,null,null,null,null,null,null,null,null,null,null,null,null,null,null,"C26.7.0 - Manufacture of optical instruments and photographic equipment"]
[null,null,null,null,null,null,null,null,null,null,null,null,null,null,null,null,null,null,null,null,null,null,null,null,"C26.8 - Manufacture of magnetic and optical media"]
[null,null,null,null,null,null,null,null,null,null,null,null,null,null,null,null,null,null,null,null,null,null,null,null,"C26.8.0 - Manufacture of magnetic and optical media"]
[null,null,null,null,null,null,null,null,null,null,null,null,null,null,null,null,null,null,null,null,null,null,null,null,"C27 - Manufacture of electrical equipment"]
[null,null,null,null,null,null,null,null,null,null,null,null,null,null,null,null,null,null,null,null,null,null,null,null,"C27.1 - Manufacture of electric motors, generators, transformers and electricity distribution and control apparatus"]
[null,null,null,null,null,null,null,null,null,null,null,null,null,null,null,null,null,null,null,null,null,null,null,null,"C27.1.1 - Manufacture of electric motors, generators and transformers"]
[null,null,null,null,null,null,null,null,null,null,null,null,null,null,null,null,null,null,null,null,null,null,null,null,"C27.1.2 - Manufacture of electricity distribution and control apparatus"]
[null,null,null,null,null,null,null,null,null,null,null,null,null,null,null,null,null,null,null,null,null,null,null,null,"C27.2 - Manufacture of batteries and accumulators"]
[null,null,null,null,null,null,null,null,null,null,null,null,null,null,null,null,null,null,null,null,null,null,null,null,"C27.2.0 - Manufacture of batteries and accumulators"]
[null,null,null,null,null,null,null,null,null,null,null,null,null,null,null,null,null,null,null,null,null,null,null,null,"C27.3 - Manufacture of wiring and wiring devices"]
[null,null,null,null,null,null,null,null,null,null,null,null,null,null,null,null,null,null,null,null,null,null,null,null,"C27.3.1 - Manufacture of fibre optic cables"]
[null,null,null,null,null,null,null,null,null,null,null,null,null,null,null,null,null,null,null,null,null,null,null,null,"C27.3.2 - Manufacture of other electronic and electric wires and cables"]
[null,null,null,null,null,null,null,null,null,null,null,null,null,null,null,null,null,null,null,null,null,null,null,null,"C27.3.3 - Manufacture of wiring devices"]
[null,null,null,null,null,null,null,null,null,null,null,null,null,null,null,null,null,null,null,null,null,null,null,null,"C27.4 - Manufacture of electric lighting equipment"]
[null,null,null,null,null,null,null,null,null,null,null,null,null,null,null,null,null,null,null,null,null,null,null,null,"C27.4.0 - Manufacture of electric lighting equipment"]
[null,null,null,null,null,null,null,null,null,null,null,null,null,null,null,null,null,null,null,null,null,null,null,null,"C27.5 - Manufacture of domestic appliances"]
[null,null,null,null,null,null,null,null,null,null,null,null,null,null,null,null,null,null,null,null,null,null,null,null,"C27.5.1 - Manufacture of electric domestic appliances"]
[null,null,null,null,null,null,null,null,null,null,null,null,null,null,null,null,null,null,null,null,null,null,null,null,"C27.5.2 - Manufacture of non-electric domestic appliances"]
[null,null,null,null,null,null,null,null,null,null,null,null,null,null,null,null,null,null,null,null,null,null,null,null,"C27.9 - Manufacture of other electrical equipment"]
[null,null,null,null,null,null,null,null,null,null,null,null,null,null,null,null,null,null,null,null,null,null,null,null,"C27.9.0 - Manufacture of other electrical equipment"]
[null,null,null,null,null,null,null,null,null,null,null,null,null,null,null,null,null,null,null,null,null,null,null,null,"C28 - Manufacture of machinery and equipment n.e.c."]
[null,null,null,null,null,null,null,null,null,null,null,null,null,null,null,null,null,null,null,null,null,null,null,null,"C28.1 - Manufacture of general-purpose machinery"]
[null,null,null,null,null,null,null,null,null,null,null,null,null,null,null,null,null,null,null,null,null,null,null,null,"C28.1.1 - Manufacture of engines and turbines, except aircraft, vehicle and cycle engines"]
[null,null,null,null,null,null,null,null,null,null,null,null,null,null,null,null,null,null,null,null,null,null,null,null,"C28.1.2 - Manufacture of fluid power equipment"]
[null,null,null,null,null,null,null,null,null,null,null,null,null,null,null,null,null,null,null,null,null,null,null,null,"C28.1.3 - Manufacture of other pumps and compressors"]
[null,null,null,null,null,null,null,null,null,null,null,null,null,null,null,null,null,null,null,null,null,null,null,null,"C28.1.4 - Manufacture of other taps and valves"]
[null,null,null,null,null,null,null,null,null,null,null,null,null,null,null,null,null,null,null,null,null,null,null,null,"C28.1.5 - Manufacture of bearings, gears, gearing and driving elements"]
[null,null,null,null,null,null,null,null,null,null,null,null,null,null,null,null,null,null,null,null,null,null,null,null,"C28.2 - Manufacture of other general-purpose machinery"]
[null,null,null,null,null,null,null,null,null,null,null,null,null,null,null,null,null,null,null,null,null,null,null,null,"C28.2.1 - Manufacture of ovens, furnaces and furnace burners"]
[null,null,null,null,null,null,null,null,null,null,null,null,null,null,null,null,null,null,null,null,null,null,null,null,"C28.2.2 - Manufacture of lifting and handling equipment"]
[null,null,null,null,null,null,null,null,null,null,null,null,null,null,null,null,null,null,null,null,null,null,null,null,"C28.2.3 - Manufacture of office machinery and equipment (except computers and peripheral equipment)"]
[null,null,null,null,null,null,null,null,null,null,null,null,null,null,null,null,null,null,null,null,null,null,null,null,"C28.2.4 - Manufacture of power-driven hand tools"]
[null,null,null,null,null,null,null,null,null,null,null,null,null,null,null,null,null,null,null,null,null,null,null,null,"C28.2.5 - Manufacture of non-domestic cooling and ventilation equipment"]
[null,null,null,null,null,null,null,null,null,null,null,null,null,null,null,null,null,null,null,null,null,null,null,null,"C28.2.9 - Manufacture of other general-purpose machinery n.e.c."]
[null,null,null,null,null,null,null,null,null,null,null,null,null,null,null,null,null,null,null,null,null,null,null,null,"C28.3 - Manufacture of agricultural and forestry machinery"]
[null,null,null,null,null,null,null,null,null,null,null,null,null,null,null,null,null,null,null,null,null,null,null,null,"C28.3.0 - Manufacture of agricultural and forestry machinery"]
[null,null,null,null,null,null,null,null,null,null,null,null,null,null,null,null,null,null,null,null,null,null,null,null,"C28.4 - Manufacture of metal forming machinery and machine tools"]
[null,null,null,null,null,null,null,null,null,null,null,null,null,null,null,null,null,null,null,null,null,null,null,null,"C28.4.1 - Manufacture of metal forming machinery"]
[null,null,null,null,null,null,null,null,null,null,null,null,null,null,null,null,null,null,null,null,null,null,null,null,"C28.4.9 - Manufacture of other machine tools"]
[null,null,null,null,null,null,null,null,null,null,null,null,null,null,null,null,null,null,null,null,null,null,null,null,"C28.9 - Manufacture of other special-purpose machinery"]
[null,null,null,null,null,null,null,null,null,null,null,null,null,null,null,null,null,null,null,null,null,null,null,null,"C28.9.1 - Manufacture of machinery for metallurgy"]
[null,null,null,null,null,null,null,null,null,null,null,null,null,null,null,null,null,null,null,null,null,null,null,null,"C28.9.2 - Manufacture of machinery for mining, quarrying and construction"]
[null,null,null,null,null,null,null,null,null,null,null,null,null,null,null,null,null,null,null,null,null,null,null,null,"C28.9.3 - Manufacture of machinery for food, beverage and tobacco processing"]
[null,null,null,null,null,null,null,null,null,null,null,null,null,null,null,null,null,null,null,null,null,null,null,null,"C28.9.4 - Manufacture of machinery for textile, apparel and leather production"]
[null,null,null,null,null,null,null,null,null,null,null,null,null,null,null,null,null,null,null,null,null,null,null,null,"C28.9.5 - Manufacture of machinery for paper and paperboard production"]
[null,null,null,null,null,null,null,null,null,null,null,null,null,null,null,null,null,null,null,null,null,null,null,null,"C28.9.6 - Manufacture of plastics and rubber machinery"]
[null,null,null,null,null,null,null,null,null,null,null,null,null,null,null,null,null,null,null,null,null,null,null,null,"C28.9.9 - Manufacture of other special-purpose machinery n.e.c."]
[null,null,null,null,null,null,null,null,null,null,null,null,null,null,null,null,null,null,null,null,null,null,null,null,"C29 - Manufacture of motor vehicles, trailers and semi-trailers"]
[null,null,null,null,null,null,null,null,null,null,null,null,null,null,null,null,null,null,null,null,null,null,null,null,"C29.1 - Manufacture of motor vehicles"]
[null,null,null,null,null,null,null,null,null,null,null,null,null,null,null,null,null,null,null,null,null,null,null,null,"C29.1.0 - Manufacture of motor vehicles"]
[null,null,null,null,null,null,null,null,null,null,null,null,null,null,null,null,null,null,null,null,null,null,null,null,"C29.2 - Manufacture of bodies (coachwork) for motor vehicles; manufacture of trailers and semi-trailers"]
[null,null,null,null,null,null,null,null,null,null,null,null,null,null,null,null,null,null,null,null,null,null,null,null,"C29.2.0 - Manufacture of bodies (coachwork) for motor vehicles; manufacture of trailers and semi-trailers"]
[null,null,null,null,null,null,null,null,null,null,null,null,null,null,null,null,null,null,null,null,null,null,null,null,"C29.3 - Manufacture of parts and accessories for motor vehicles"]
[null,null,null,null,null,null,null,null,null,null,null,null,null,null,null,null,null,null,null,null,null,null,null,null,"C29.3.1 - Manufacture of electrical and electronic equipment for motor vehicles"]
[null,null,null,null,null,null,null,null,null,null,null,null,null,null,null,null,null,null,null,null,null,null,null,null,"C29.3.2 - Manufacture of other parts and accessories for motor vehicles"]
[null,null,null,null,null,null,null,null,null,null,null,null,null,null,null,null,null,null,null,null,null,null,null,null,"C30 - Manufacture of other transport equipment"]
[null,null,null,null,null,null,null,null,null,null,null,null,null,null,null,null,null,null,null,null,null,null,null,null,"C30.1 - Building of ships and boats"]
[null,null,null,null,null,null,null,null,null,null,null,null,null,null,null,null,null,null,null,null,null,null,null,null,"C30.1.1 - Building of ships and floating structures"]
[null,null,null,null,null,null,null,null,null,null,null,null,null,null,null,null,null,null,null,null,null,null,null,null,"C30.1.2 - Building of pleasure and sporting boats"]
[null,null,null,null,null,null,null,null,null,null,null,null,null,null,null,null,null,null,null,null,null,null,null,null,"C30.2 - Manufacture of railway locomotives and rolling stock"]
[null,null,null,null,null,null,null,null,null,null,null,null,null,null,null,null,null,null,null,null,null,null,null,null,"C30.2.0 - Manufacture of railway locomotives and rolling stock"]
[null,null,null,null,null,null,null,null,null,null,null,null,null,null,null,null,null,null,null,null,null,null,null,null,"C30.3 - Manufacture of air and spacecraft and related machinery"]
[null,null,null,null,null,null,null,null,null,null,null,null,null,null,null,null,null,null,null,null,null,null,null,null,"C30.3.0 - Manufacture of air and spacecraft and related machinery"]
[null,null,null,null,null,null,null,null,null,null,null,null,null,null,null,null,null,null,null,null,null,null,null,null,"C30.4 - Manufacture of military fighting vehicles"]
[null,null,null,null,null,null,null,null,null,null,null,null,null,null,null,null,null,null,null,null,null,null,null,null,"C30.4.0 - Manufacture of military fighting vehicles"]
[null,null,null,null,null,null,null,null,null,null,null,null,null,null,null,null,null,null,null,null,null,null,null,null,"C30.9 - Manufacture of transport equipment n.e.c."]
[null,null,null,null,null,null,null,null,null,null,null,null,null,null,null,null,null,null,null,null,null,null,null,null,"C30.9.1 - Manufacture of motorcycles"]
[null,null,null,null,null,null,null,null,null,null,null,null,null,null,null,null,null,null,null,null,null,null,null,null,"C30.9.2 - Manufacture of bicycles and invalid carriages"]
[null,null,null,null,null,null,null,null,null,null,null,null,null,null,null,null,null,null,null,null,null,null,null,null,"C30.9.9 - Manufacture of other transport equipment n.e.c."]
[null,null,null,null,null,null,null,null,null,null,null,null,null,null,null,null,null,null,null,null,null,null,null,null,"C31 - Manufacture of furniture"]
[null,null,null,null,null,null,null,null,null,null,null,null,null,null,null,null,null,null,null,null,null,null,null,null,"C31.0 - Manufacture of furniture"]
[null,null,null,null,null,null,null,null,null,null,null,null,null,null,null,null,null,null,null,null,null,null,null,null,"C31.0.1 - Manufacture of office and shop furniture"]
[null,null,null,null,null,null,null,null,null,null,null,null,null,null,null,null,null,null,null,null,null,null,null,null,"C31.0.2 - Manufacture of kitchen furniture"]
[null,null,null,null,null,null,null,null,null,null,null,null,null,null,null,null,null,null,null,null,null,null,null,null,"C31.0.3 - Manufacture of mattresses"]
[null,null,null,null,null,null,null,null,null,null,null,null,null,null,null,null,null,null,null,null,null,null,null,null,"C31.0.9 - Manufacture of other furniture"]
[null,null,null,null,null,null,null,null,null,null,null,null,null,null,null,null,null,null,null,null,null,null,null,null,"C32 - Other manufacturing"]
[null,null,null,null,null,null,null,null,null,null,null,null,null,null,null,null,null,null,null,null,null,null,null,null,"C32.1 - Manufacture of jewellery, bijouterie and related articles"]
[null,null,null,null,null,null,null,null,null,null,null,null,null,null,null,null,null,null,null,null,null,null,null,null,"C32.1.1 - Striking of coins"]
[null,null,null,null,null,null,null,null,null,null,null,null,null,null,null,null,null,null,null,null,null,null,null,null,"C32.1.2 - Manufacture of jewellery and related articles"]
[null,null,null,null,null,null,null,null,null,null,null,null,null,null,null,null,null,null,null,null,null,null,null,null,"C32.1.3 - Manufacture of imitation jewellery and related articles"]
[null,null,null,null,null,null,null,null,null,null,null,null,null,null,null,null,null,null,null,null,null,null,null,null,"C32.2 - Manufacture of musical instruments"]
[null,null,null,null,null,null,null,null,null,null,null,null,null,null,null,null,null,null,null,null,null,null,null,null,"C32.2.0 - Manufacture of musical instruments"]
[null,null,null,null,null,null,null,null,null,null,null,null,null,null,null,null,null,null,null,null,null,null,null,null,"C32.3 - Manufacture of sports goods"]
[null,null,null,null,null,null,null,null,null,null,null,null,null,null,null,null,null,null,null,null,null,null,null,null,"C32.3.0 - Manufacture of sports goods"]
[null,null,null,null,null,null,null,null,null,null,null,null,null,null,null,null,null,null,null,null,null,null,null,null,"C32.4 - Manufacture of games and toys"]
[null,null,null,null,null,null,null,null,null,null,null,null,null,null,null,null,null,null,null,null,null,null,null,null,"C32.4.0 - Manufacture of games and toys"]
[null,null,null,null,null,null,null,null,null,null,null,null,null,null,null,null,null,null,null,null,null,null,null,null,"C32.5 - Manufacture of medical and dental instruments and supplies"]
[null,null,null,null,null,null,null,null,null,null,null,null,null,null,null,null,null,null,null,null,null,null,null,null,"C32.5.0 - Manufacture of medical and dental instruments and supplies"]
[null,null,null,null,null,null,null,null,null,null,null,null,null,null,null,null,null,null,null,null,null,null,null,null,"C32.9 - Manufacturing n.e.c."]
[null,null,null,null,null,null,null,null,null,null,null,null,null,null,null,null,null,null,null,null,null,null,null,null,"C32.9.1 - Manufacture of brooms and brushes"]
[null,null,null,null,null,null,null,null,null,null,null,null,null,null,null,null,null,null,null,null,null,null,null,null,"C32.9.9 - Other manufacturing n.e.c."]
[null,null,null,null,null,null,null,null,null,null,null,null,null,null,null,null,null,null,null,null,null,null,null,null,"C33 - Repair and installation of machinery and equipment"]
[null,null,null,null,null,null,null,null,null,null,null,null,null,null,null,null,null,null,null,null,null,null,null,null,"C33.1 - Repair of fabricated metal products, machinery and equipment"]
[null,null,null,null,null,null,null,null,null,null,null,null,null,null,null,null,null,null,null,null,null,null,null,null,"C33.1.1 - Repair of fabricated metal products"]
[null,null,null,null,null,null,null,null,null,null,null,null,null,null,null,null,null,null,null,null,null,null,null,null,"C33.1.2 - Repair of machinery"]
[null,null,null,null,null,null,null,null,null,null,null,null,null,null,null,null,null,null,null,null,null,null,null,null,"C33.1.3 - Repair of electronic and optical equipment"]
[null,null,null,null,null,null,null,null,null,null,null,null,null,null,null,null,null,null,null,null,null,null,null,null,"C33.1.4 - Repair of electrical equipment"]
[null,null,null,null,null,null,null,null,null,null,null,null,null,null,null,null,null,null,null,null,null,null,null,null,"C33.1.5 - Repair and maintenance of ships and boats"]
[null,null,null,null,null,null,null,null,null,null,null,null,null,null,null,null,null,null,null,null,null,null,null,null,"C33.1.6 - Repair and maintenance of aircraft and spacecraft"]
[null,null,null,null,null,null,null,null,null,null,null,null,null,null,null,null,null,null,null,null,null,null,null,null,"C33.1.7 - Repair and maintenance of other transport equipment"]
[null,null,null,null,null,null,null,null,null,null,null,null,null,null,null,null,null,null,null,null,null,null,null,null,"C33.1.9 - Repair of other equipment"]
[null,null,null,null,null,null,null,null,null,null,null,null,null,null,null,null,null,null,null,null,null,null,null,null,"C33.2 - Installation of industrial machinery and equipment"]
[null,null,null,null,null,null,null,null,null,null,null,null,null,null,null,null,null,null,null,null,null,null,null,null,"C33.2.0 - Installation of industrial machinery and equipment"]
[null,null,null,null,null,null,null,null,null,null,null,null,null,null,null,null,null,null,null,null,null,null,null,null,"D - Electricity, gas, steam and air conditioning supply"]
[null,null,null,null,null,null,null,null,null,null,null,null,null,null,null,null,null,null,null,null,null,null,null,null,"D35 - Electricity, gas, steam and air conditioning supply"]
[null,null,null,null,null,null,null,null,null,null,null,null,null,null,null,null,null,null,null,null,null,null,null,null,"D35.1 - Electric power generation, transmission and distribution"]
[null,null,null,null,null,null,null,null,null,null,null,null,null,null,null,null,null,null,null,null,null,null,null,null,"D35.1.1 - Production of electricity"]
[null,null,null,null,null,null,null,null,null,null,null,null,null,null,null,null,null,null,null,null,null,null,null,null,"D35.1.2 - Transmission of electricity"]
[null,null,null,null,null,null,null,null,null,null,null,null,null,null,null,null,null,null,null,null,null,null,null,null,"D35.1.3 - Distribution of electricity"]
[null,null,null,null,null,null,null,null,null,null,null,null,null,null,null,null,null,null,null,null,null,null,null,null,"D35.1.4 - Trade of electricity"]
[null,null,null,null,null,null,null,null,null,null,null,null,null,null,null,null,null,null,null,null,null,null,null,null,"D35.2 - Manufacture of gas; distribution of gaseous fuels through mains"]
[null,null,null,null,null,null,null,null,null,null,null,null,null,null,null,null,null,null,null,null,null,null,null,null,"D35.2.1 - Manufacture of gas"]
[null,null,null,null,null,null,null,null,null,null,null,null,null,null,null,null,null,null,null,null,null,null,null,null,"D35.2.2 - Distribution of gaseous fuels through mains"]
[null,null,null,null,null,null,null,null,null,null,null,null,null,null,null,null,null,null,null,null,null,null,null,null,"D35.2.3 - Trade of gas through mains"]
[null,null,null,null,null,null,null,null,null,null,null,null,null,null,null,null,null,null,null,null,null,null,null,null,"D35.3 - Steam and air conditioning supply"]
[null,null,null,null,null,null,null,null,null,null,null,null,null,null,null,null,null,null,null,null,null,null,null,null,"D35.3.0 - Steam and air conditioning supply"]
[null,null,null,null,null,null,null,null,null,null,null,null,null,null,null,null,null,null,null,null,null,null,null,null,"E - Water supply; sewerage; waste management and remediation activities"]
[null,null,null,null,null,null,null,null,null,null,null,null,null,null,null,null,null,null,null,null,null,null,null,null,"E36 - Water collection, treatment and supply"]
[null,null,null,null,null,null,null,null,null,null,null,null,null,null,null,null,null,null,null,null,null,null,null,null,"E36.0 - Water collection, treatment and supply"]
[null,null,null,null,null,null,null,null,null,null,null,null,null,null,null,null,null,null,null,null,null,null,null,null,"E36.0.0 - Water collection, treatment and supply"]
[null,null,null,null,null,null,null,null,null,null,null,null,null,null,null,null,null,null,null,null,null,null,null,null,"E37 - Sewerage"]
[null,null,null,null,null,null,null,null,null,null,null,null,null,null,null,null,null,null,null,null,null,null,null,null,"E37.0 - Sewerage"]
[null,null,null,null,null,null,null,null,null,null,null,null,null,null,null,null,null,null,null,null,null,null,null,null,"E37.0.0 - Sewerage"]
[null,null,null,null,null,null,null,null,null,null,null,null,null,null,null,null,null,null,null,null,null,null,null,null,"E38 - Waste collection, treatment and disposal activities; materials recovery"]
[null,null,null,null,null,null,null,null,null,null,null,null,null,null,null,null,null,null,null,null,null,null,null,null,"E38.1 - Waste collection"]
[null,null,null,null,null,null,null,null,null,null,null,null,null,null,null,null,null,null,null,null,null,null,null,null,"E38.1.1 - Collection of non-hazardous waste"]
[null,null,null,null,null,null,null,null,null,null,null,null,null,null,null,null,null,null,null,null,null,null,null,null,"E38.1.2 - Collection of hazardous waste"]
[null,null,null,null,null,null,null,null,null,null,null,null,null,null,null,null,null,null,null,null,null,null,null,null,"E38.2 - Waste treatment and disposal"]
[null,null,null,null,null,null,null,null,null,null,null,null,null,null,null,null,null,null,null,null,null,null,null,null,"E38.2.1 - Treatment and disposal of non-hazardous waste"]
[null,null,null,null,null,null,null,null,null,null,null,null,null,null,null,null,null,null,null,null,null,null,null,null,"E38.2.2 - Treatment and disposal of hazardous waste"]
[null,null,null,null,null,null,null,null,null,null,null,null,null,null,null,null,null,null,null,null,null,null,null,null,"E38.3 - Materials recovery"]
[null,null,null,null,null,null,null,null,null,null,null,null,null,null,null,null,null,null,null,null,null,null,null,null,"E38.3.1 - Dismantling of wrecks"]
[null,null,null,null,null,null,null,null,null,null,null,null,null,null,null,null,null,null,null,null,null,null,null,null,"E38.3.2 - Recovery of sorted materials"]
[null,null,null,null,null,null,null,null,null,null,null,null,null,null,null,null,null,null,null,null,null,null,null,null,"E39 - Remediation activities and other waste management services"]
[null,null,null,null,null,null,null,null,null,null,null,null,null,null,null,null,null,null,null,null,null,null,null,null,"E39.0 - Remediation activities and other waste management services"]
[null,null,null,null,null,null,null,null,null,null,null,null,null,null,null,null,null,null,null,null,null,null,null,null,"E39.0.0 - Remediation activities and other waste management services"]
[null,null,null,null,null,null,null,null,null,null,null,null,null,null,null,null,null,null,null,null,null,null,null,null,"F - Construction"]
[null,null,null,null,null,null,null,null,null,null,null,null,null,null,null,null,null,null,null,null,null,null,null,null,"F41 - Construction of buildings"]
[null,null,null,null,null,null,null,null,null,null,null,null,null,null,null,null,null,null,null,null,null,null,null,null,"F41.1 - Development of building projects"]
[null,null,null,null,null,null,null,null,null,null,null,null,null,null,null,null,null,null,null,null,null,null,null,null,"F41.1.0 - Development of building projects"]
[null,null,null,null,null,null,null,null,null,null,null,null,null,null,null,null,null,null,null,null,null,null,null,null,"F41.2 - Construction of residential and non-residential buildings"]
[null,null,null,null,null,null,null,null,null,null,null,null,null,null,null,null,null,null,null,null,null,null,null,null,"F41.2.0 - Construction of residential and non-residential buildings"]
[null,null,null,null,null,null,null,null,null,null,null,null,null,null,null,null,null,null,null,null,null,null,null,null,"F42 - Civil engineering"]
[null,null,null,null,null,null,null,null,null,null,null,null,null,null,null,null,null,null,null,null,null,null,null,null,"F42.1 - Construction of roads and railways"]
[null,null,null,null,null,null,null,null,null,null,null,null,null,null,null,null,null,null,null,null,null,null,null,null,"F42.1.1 - Construction of roads and motorways"]
[null,null,null,null,null,null,null,null,null,null,null,null,null,null,null,null,null,null,null,null,null,null,null,null,"F42.1.2 - Construction of railways and underground railways"]
[null,null,null,null,null,null,null,null,null,null,null,null,null,null,null,null,null,null,null,null,null,null,null,null,"F42.1.3 - Construction of bridges and tunnels"]
[null,null,null,null,null,null,null,null,null,null,null,null,null,null,null,null,null,null,null,null,null,null,null,null,"F42.2 - Construction of utility projects"]
[null,null,null,null,null,null,null,null,null,null,null,null,null,null,null,null,null,null,null,null,null,null,null,null,"F42.2.1 - Construction of utility projects for fluids"]
[null,null,null,null,null,null,null,null,null,null,null,null,null,null,null,null,null,null,null,null,null,null,null,null,"F42.2.2 - Construction of utility projects for electricity and telecommunications"]
[null,null,null,null,null,null,null,null,null,null,null,null,null,null,null,null,null,null,null,null,null,null,null,null,"F42.9 - Construction of other civil engineering projects"]
[null,null,null,null,null,null,null,null,null,null,null,null,null,null,null,null,null,null,null,null,null,null,null,null,"F42.9.1 - Construction of water projects"]
[null,null,null,null,null,null,null,null,null,null,null,null,null,null,null,null,null,null,null,null,null,null,null,null,"F42.9.9 - Construction of other civil engineering projects n.e.c."]
[null,null,null,null,null,null,null,null,null,null,null,null,null,null,null,null,null,null,null,null,null,null,null,null,"F43 - Specialised construction activities"]
[null,null,null,null,null,null,null,null,null,null,null,null,null,null,null,null,null,null,null,null,null,null,null,null,"F43.1 - Demolition and site preparation"]
[null,null,null,null,null,null,null,null,null,null,null,null,null,null,null,null,null,null,null,null,null,null,null,null,"F43.1.1 - Demolition"]
[null,null,null,null,null,null,null,null,null,null,null,null,null,null,null,null,null,null,null,null,null,null,null,null,"F43.1.2 - Site preparation"]
[null,null,null,null,null,null,null,null,null,null,null,null,null,null,null,null,null,null,null,null,null,null,null,null,"F43.1.3 - Test drilling and boring"]
[null,null,null,null,null,null,null,null,null,null,null,null,null,null,null,null,null,null,null,null,null,null,null,null,"F43.2 - Electrical, plumbing and other construction installation activities"]
[null,null,null,null,null,null,null,null,null,null,null,null,null,null,null,null,null,null,null,null,null,null,null,null,"F43.2.1 - Electrical installation"]
[null,null,null,null,null,null,null,null,null,null,null,null,null,null,null,null,null,null,null,null,null,null,null,null,"F43.2.2 - Plumbing, heat and air-conditioning installation"]
[null,null,null,null,null,null,null,null,null,null,null,null,null,null,null,null,null,null,null,null,null,null,null,null,"F43.2.9 - Other construction installation"]
[null,null,null,null,null,null,null,null,null,null,null,null,null,null,null,null,null,null,null,null,null,null,null,null,"F43.3 - Building completion and finishing"]
[null,null,null,null,null,null,null,null,null,null,null,null,null,null,null,null,null,null,null,null,null,null,null,null,"F43.3.1 - Plastering"]
[null,null,null,null,null,null,null,null,null,null,null,null,null,null,null,null,null,null,null,null,null,null,null,null,"F43.3.2 - Joinery installation"]
[null,null,null,null,null,null,null,null,null,null,null,null,null,null,null,null,null,null,null,null,null,null,null,null,"F43.3.3 - Floor and wall covering"]
[null,null,null,null,null,null,null,null,null,null,null,null,null,null,null,null,null,null,null,null,null,null,null,null,"F43.3.4 - Painting and glazing"]
[null,null,null,null,null,null,null,null,null,null,null,null,null,null,null,null,null,null,null,null,null,null,null,null,"F43.3.9 - Other building completion and finishing"]
[null,null,null,null,null,null,null,null,null,null,null,null,null,null,null,null,null,null,null,null,null,null,null,null,"F43.9 - Other specialised construction activities"]
[null,null,null,null,null,null,null,null,null,null,null,null,null,null,null,null,null,null,null,null,null,null,null,null,"F43.9.1 - Roofing activities"]
[null,null,null,null,null,null,null,null,null,null,null,null,null,null,null,null,null,null,null,null,null,null,null,null,"F43.9.9 - Other specialised construction activities n.e.c."]
[null,null,null,null,null,null,null,null,null,null,null,null,null,null,null,null,null,null,null,null,null,null,null,null,"G - Wholesale and retail trade; repair of motor vehicles and motorcycles"]
[null,null,null,null,null,null,null,null,null,null,null,null,null,null,null,null,null,null,null,null,null,null,null,null,"G45 - Wholesale and retail trade and repair of motor vehicles and motorcycles"]
[null,null,null,null,null,null,null,null,null,null,null,null,null,null,null,null,null,null,null,null,null,null,null,null,"G45.1 - Sale of motor vehicles"]
[null,null,null,null,null,null,null,null,null,null,null,null,null,null,null,null,null,null,null,null,null,null,null,null,"G45.1.1 - Sale of cars and light motor vehicles"]
[null,null,null,null,null,null,null,null,null,null,null,null,null,null,null,null,null,null,null,null,null,null,null,null,"G45.1.9 - Sale of other motor vehicles"]
[null,null,null,null,null,null,null,null,null,null,null,null,null,null,null,null,null,null,null,null,null,null,null,null,"G45.2 - Maintenance and repair of motor vehicles"]
[null,null,null,null,null,null,null,null,null,null,null,null,null,null,null,null,null,null,null,null,null,null,null,null,"G45.2.0 - Maintenance and repair of motor vehicles"]
[null,null,null,null,null,null,null,null,null,null,null,null,null,null,null,null,null,null,null,null,null,null,null,null,"G45.3 - Sale of motor vehicle parts and accessories"]
[null,null,null,null,null,null,null,null,null,null,null,null,null,null,null,null,null,null,null,null,null,null,null,null,"G45.3.1 - Wholesale trade of motor vehicle parts and accessories"]
[null,null,null,null,null,null,null,null,null,null,null,null,null,null,null,null,null,null,null,null,null,null,null,null,"G45.3.2 - Retail trade of motor vehicle parts and accessories"]
[null,null,null,null,null,null,null,null,null,null,null,null,null,null,null,null,null,null,null,null,null,null,null,null,"G45.4 - Sale, maintenance and repair of motorcycles and related parts and accessories"]
[null,null,null,null,null,null,null,null,null,null,null,null,null,null,null,null,null,null,null,null,null,null,null,null,"G45.4.0 - Sale, maintenance and repair of motorcycles and related parts and accessories"]
[null,null,null,null,null,null,null,null,null,null,null,null,null,null,null,null,null,null,null,null,null,null,null,null,"G46 - Wholesale trade, except of motor vehicles and motorcycles"]
[null,null,null,null,null,null,null,null,null,null,null,null,null,null,null,null,null,null,null,null,null,null,null,null,"G46.1 - Wholesale on a fee or contract basis"]
[null,null,null,null,null,null,null,null,null,null,null,null,null,null,null,null,null,null,null,null,null,null,null,null,"G46.1.1 - Agents involved in the sale of agricultural raw materials, live animals, textile raw materials and semi-finished goods"]
[null,null,null,null,null,null,null,null,null,null,null,null,null,null,null,null,null,null,null,null,null,null,null,null,"G46.1.2 - Agents involved in the sale of fuels, ores, metals and industrial chemicals"]
[null,null,null,null,null,null,null,null,null,null,null,null,null,null,null,null,null,null,null,null,null,null,null,null,"G46.1.3 - Agents involved in the sale of timber and building materials"]
[null,null,null,null,null,null,null,null,null,null,null,null,null,null,null,null,null,null,null,null,null,null,null,null,"G46.1.4 - Agents involved in the sale of machinery, industrial equipment, ships and aircraft"]
[null,null,null,null,null,null,null,null,null,null,null,null,null,null,null,null,null,null,null,null,null,null,null,null,"G46.1.5 - Agents involved in the sale of furniture, household goods, hardware and ironmongery"]
[null,null,null,null,null,null,null,null,null,null,null,null,null,null,null,null,null,null,null,null,null,null,null,null,"G46.1.6 - Agents involved in the sale of textiles, clothing, fur, footwear and leather goods"]
[null,null,null,null,null,null,null,null,null,null,null,null,null,null,null,null,null,null,null,null,null,null,null,null,"G46.1.7 - Agents involved in the sale of food, beverages and tobacco"]
[null,null,null,null,null,null,null,null,null,null,null,null,null,null,null,null,null,null,null,null,null,null,null,null,"G46.1.8 - Agents specialised in the sale of other particular products"]
[null,null,null,null,null,null,null,null,null,null,null,null,null,null,null,null,null,null,null,null,null,null,null,null,"G46.1.9 - Agents involved in the sale of a variety of goods"]
[null,null,null,null,null,null,null,null,null,null,null,null,null,null,null,null,null,null,null,null,null,null,null,null,"G46.2 - Wholesale of agricultural raw materials and live animals"]
[null,null,null,null,null,null,null,null,null,null,null,null,null,null,null,null,null,null,null,null,null,null,null,null,"G46.2.1 - Wholesale of grain, unmanufactured tobacco, seeds and animal feeds"]
[null,null,null,null,null,null,null,null,null,null,null,null,null,null,null,null,null,null,null,null,null,null,null,null,"G46.2.2 - Wholesale of flowers and plants"]
[null,null,null,null,null,null,null,null,null,null,null,null,null,null,null,null,null,null,null,null,null,null,null,null,"G46.2.3 - Wholesale of live animals"]
[null,null,null,null,null,null,null,null,null,null,null,null,null,null,null,null,null,null,null,null,null,null,null,null,"G46.2.4 - Wholesale of hides, skins and leather"]
[null,null,null,null,null,null,null,null,null,null,null,null,null,null,null,null,null,null,null,null,null,null,null,null,"G46.3 - Wholesale of food, beverages and tobacco"]
[null,null,null,null,null,null,null,null,null,null,null,null,null,null,null,null,null,null,null,null,null,null,null,null,"G46.3.1 - Wholesale of fruit and vegetables"]
[null,null,null,null,null,null,null,null,null,null,null,null,null,null,null,null,null,null,null,null,null,null,null,null,"G46.3.2 - Wholesale of meat and meat products"]
[null,null,null,null,null,null,null,null,null,null,null,null,null,null,null,null,null,null,null,null,null,null,null,null,"G46.3.3 - Wholesale of dairy products, eggs and edible oils and fats"]
[null,null,null,null,null,null,null,null,null,null,null,null,null,null,null,null,null,null,null,null,null,null,null,null,"G46.3.4 - Wholesale of beverages"]
[null,null,null,null,null,null,null,null,null,null,null,null,null,null,null,null,null,null,null,null,null,null,null,null,"G46.3.5 - Wholesale of tobacco products"]
[null,null,null,null,null,null,null,null,null,null,null,null,null,null,null,null,null,null,null,null,null,null,null,null,"G46.3.6 - Wholesale of sugar and chocolate and sugar confectionery"]
[null,null,null,null,null,null,null,null,null,null,null,null,null,null,null,null,null,null,null,null,null,null,null,null,"G46.3.7 - Wholesale of coffee, tea, cocoa and spices"]
[null,null,null,null,null,null,null,null,null,null,null,null,null,null,null,null,null,null,null,null,null,null,null,null,"G46.3.8 - Wholesale of other food, including fish, crustaceans and molluscs"]
[null,null,null,null,null,null,null,null,null,null,null,null,null,null,null,null,null,null,null,null,null,null,null,null,"G46.3.9 - Non-specialised wholesale of food, beverages and tobacco"]
[null,null,null,null,null,null,null,null,null,null,null,null,null,null,null,null,null,null,null,null,null,null,null,null,"G46.4 - Wholesale of household goods"]
[null,null,null,null,null,null,null,null,null,null,null,null,null,null,null,null,null,null,null,null,null,null,null,null,"G46.4.1 - Wholesale of textiles"]
[null,null,null,null,null,null,null,null,null,null,null,null,null,null,null,null,null,null,null,null,null,null,null,null,"G46.4.2 - Wholesale of clothing and footwear"]
[null,null,null,null,null,null,null,null,null,null,null,null,null,null,null,null,null,null,null,null,null,null,null,null,"G46.4.3 - Wholesale of electrical household appliances"]
[null,null,null,null,null,null,null,null,null,null,null,null,null,null,null,null,null,null,null,null,null,null,null,null,"G46.4.4 - Wholesale of china and glassware and cleaning materials"]
[null,null,null,null,null,null,null,null,null,null,null,null,null,null,null,null,null,null,null,null,null,null,null,null,"G46.4.5 - Wholesale of perfume and cosmetics"]
[null,null,null,null,null,null,null,null,null,null,null,null,null,null,null,null,null,null,null,null,null,null,null,null,"G46.4.6 - Wholesale of pharmaceutical goods"]
[null,null,null,null,null,null,null,null,null,null,null,null,null,null,null,null,null,null,null,null,null,null,null,null,"G46.4.7 - Wholesale of furniture, carpets and lighting equipment"]
[null,null,null,null,null,null,null,null,null,null,null,null,null,null,null,null,null,null,null,null,null,null,null,null,"G46.4.8 - Wholesale of watches and jewellery"]
[null,null,null,null,null,null,null,null,null,null,null,null,null,null,null,null,null,null,null,null,null,null,null,null,"G46.4.9 - Wholesale of other household goods"]
[null,null,null,null,null,null,null,null,null,null,null,null,null,null,null,null,null,null,null,null,null,null,null,null,"G46.5 - Wholesale of information and communication equipment"]
[null,null,null,null,null,null,null,null,null,null,null,null,null,null,null,null,null,null,null,null,null,null,null,null,"G46.5.1 - Wholesale of computers, computer peripheral equipment and software"]
[null,null,null,null,null,null,null,null,null,null,null,null,null,null,null,null,null,null,null,null,null,null,null,null,"G46.5.2 - Wholesale of electronic and telecommunications equipment and parts"]
[null,null,null,null,null,null,null,null,null,null,null,null,null,null,null,null,null,null,null,null,null,null,null,null,"G46.6 - Wholesale of other machinery, equipment and supplies"]
[null,null,null,null,null,null,null,null,null,null,null,null,null,null,null,null,null,null,null,null,null,null,null,null,"G46.6.1 - Wholesale of agricultural machinery, equipment and supplies"]
[null,null,null,null,null,null,null,null,null,null,null,null,null,null,null,null,null,null,null,null,null,null,null,null,"G46.6.2 - Wholesale of machine tools"]
[null,null,null,null,null,null,null,null,null,null,null,null,null,null,null,null,null,null,null,null,null,null,null,null,"G46.6.3 - Wholesale of mining, construction and civil engineering machinery"]
[null,null,null,null,null,null,null,null,null,null,null,null,null,null,null,null,null,null,null,null,null,null,null,null,"G46.6.4 - Wholesale of machinery for the textile industry and of sewing and knitting machines"]
[null,null,null,null,null,null,null,null,null,null,null,null,null,null,null,null,null,null,null,null,null,null,null,null,"G46.6.5 - Wholesale of office furniture"]
[null,null,null,null,null,null,null,null,null,null,null,null,null,null,null,null,null,null,null,null,null,null,null,null,"G46.6.6 - Wholesale of other office machinery and equipment"]
[null,null,null,null,null,null,null,null,null,null,null,null,null,null,null,null,null,null,null,null,null,null,null,null,"G46.6.9 - Wholesale of other machinery and equipment"]
[null,null,null,null,null,null,null,null,null,null,null,null,null,null,null,null,null,null,null,null,null,null,null,null,"G46.7 - Other specialised wholesale"]
[null,null,null,null,null,null,null,null,null,null,null,null,null,null,null,null,null,null,null,null,null,null,null,null,"G46.7.1 - Wholesale of solid, liquid and gaseous fuels and related products"]
[null,null,null,null,null,null,null,null,null,null,null,null,null,null,null,null,null,null,null,null,null,null,null,null,"G46.7.2 - Wholesale of metals and metal ores"]
[null,null,null,null,null,null,null,null,null,null,null,null,null,null,null,null,null,null,null,null,null,null,null,null,"G46.7.3 - Wholesale of wood, construction materials and sanitary equipment"]
[null,null,null,null,null,null,null,null,null,null,null,null,null,null,null,null,null,null,null,null,null,null,null,null,"G46.7.4 - Wholesale of hardware, plumbing and heating equipment and supplies"]
[null,null,null,null,null,null,null,null,null,null,null,null,null,null,null,null,null,null,null,null,null,null,null,null,"G46.7.5 - Wholesale of chemical products"]
[null,null,null,null,null,null,null,null,null,null,null,null,null,null,null,null,null,null,null,null,null,null,null,null,"G46.7.6 - Wholesale of other intermediate products"]
[null,null,null,null,null,null,null,null,null,null,null,null,null,null,null,null,null,null,null,null,null,null,null,null,"G46.7.7 - Wholesale of waste and scrap"]
[null,null,null,null,null,null,null,null,null,null,null,null,null,null,null,null,null,null,null,null,null,null,null,null,"G46.9 - Non-specialised wholesale trade"]
[null,null,null,null,null,null,null,null,null,null,null,null,null,null,null,null,null,null,null,null,null,null,null,null,"G46.9.0 - Non-specialised wholesale trade"]
[null,null,null,null,null,null,null,null,null,null,null,null,null,null,null,null,null,null,null,null,null,null,null,null,"G47 - Retail trade, except of motor vehicles and motorcycles"]
[null,null,null,null,null,null,null,null,null,null,null,null,null,null,null,null,null,null,null,null,null,null,null,null,"G47.1 - Retail sale in non-specialised stores"]
[null,null,null,null,null,null,null,null,null,null,null,null,null,null,null,null,null,null,null,null,null,null,null,null,"G47.1.1 - Retail sale in non-specialised stores with food, beverages or tobacco predominating"]
[null,null,null,null,null,null,null,null,null,null,null,null,null,null,null,null,null,null,null,null,null,null,null,null,"G47.1.9 - Other retail sale in non-specialised stores"]
[null,null,null,null,null,null,null,null,null,null,null,null,null,null,null,null,null,null,null,null,null,null,null,null,"G47.2 - Retail sale of food, beverages and tobacco in specialised stores"]
[null,null,null,null,null,null,null,null,null,null,null,null,null,null,null,null,null,null,null,null,null,null,null,null,"G47.2.1 - Retail sale of fruit and vegetables in specialised stores"]
[null,null,null,null,null,null,null,null,null,null,null,null,null,null,null,null,null,null,null,null,null,null,null,null,"G47.2.2 - Retail sale of meat and meat products in specialised stores"]
[null,null,null,null,null,null,null,null,null,null,null,null,null,null,null,null,null,null,null,null,null,null,null,null,"G47.2.3 - Retail sale of fish, crustaceans and molluscs in specialised stores"]
[null,null,null,null,null,null,null,null,null,null,null,null,null,null,null,null,null,null,null,null,null,null,null,null,"G47.2.4 - Retail sale of bread, cakes, flour confectionery and sugar confectionery in specialised stores"]
[null,null,null,null,null,null,null,null,null,null,null,null,null,null,null,null,null,null,null,null,null,null,null,null,"G47.2.5 - Retail sale of beverages in specialised stores"]
[null,null,null,null,null,null,null,null,null,null,null,null,null,null,null,null,null,null,null,null,null,null,null,null,"G47.2.6 - Retail sale of tobacco products in specialised stores"]
[null,null,null,null,null,null,null,null,null,null,null,null,null,null,null,null,null,null,null,null,null,null,null,null,"G47.2.9 - Other retail sale of food in specialised stores"]
[null,null,null,null,null,null,null,null,null,null,null,null,null,null,null,null,null,null,null,null,null,null,null,null,"G47.3 - Retail sale of automotive fuel in specialised stores"]
[null,null,null,null,null,null,null,null,null,null,null,null,null,null,null,null,null,null,null,null,null,null,null,null,"G47.3.0 - Retail sale of automotive fuel in specialised stores"]
[null,null,null,null,null,null,null,null,null,null,null,null,null,null,null,null,null,null,null,null,null,null,null,null,"G47.4 - Retail sale of information and communication equipment in specialised stores"]
[null,null,null,null,null,null,null,null,null,null,null,null,null,null,null,null,null,null,null,null,null,null,null,null,"G47.4.1 - Retail sale of computers, peripheral units and software in specialised stores"]
[null,null,null,null,null,null,null,null,null,null,null,null,null,null,null,null,null,null,null,null,null,null,null,null,"G47.4.2 - Retail sale of telecommunications equipment in specialised stores"]
[null,null,null,null,null,null,null,null,null,null,null,null,null,null,null,null,null,null,null,null,null,null,null,null,"G47.4.3 - Retail sale of audio and video equipment in specialised stores"]
[null,null,null,null,null,null,null,null,null,null,null,null,null,null,null,null,null,null,null,null,null,null,null,null,"G47.5 - Retail sale of other household equipment in specialised stores"]
[null,null,null,null,null,null,null,null,null,null,null,null,null,null,null,null,null,null,null,null,null,null,null,null,"G47.5.1 - Retail sale of textiles in specialised stores"]
[null,null,null,null,null,null,null,null,null,null,null,null,null,null,null,null,null,null,null,null,null,null,null,null,"G47.5.2 - Retail sale of hardware, paints and glass in specialised stores"]
[null,null,null,null,null,null,null,null,null,null,null,null,null,null,null,null,null,null,null,null,null,null,null,null,"G47.5.3 - Retail sale of carpets, rugs, wall and floor coverings in specialised stores"]
[null,null,null,null,null,null,null,null,null,null,null,null,null,null,null,null,null,null,null,null,null,null,null,null,"G47.5.4 - Retail sale of electrical household appliances in specialised stores"]
[null,null,null,null,null,null,null,null,null,null,null,null,null,null,null,null,null,null,null,null,null,null,null,null,"G47.5.9 - Retail sale of furniture, lighting equipment and other household articles in specialised stores"]
[null,null,null,null,null,null,null,null,null,null,null,null,null,null,null,null,null,null,null,null,null,null,null,null,"G47.6 - Retail sale of cultural and recreation goods in specialised stores"]
[null,null,null,null,null,null,null,null,null,null,null,null,null,null,null,null,null,null,null,null,null,null,null,null,"G47.6.1 - Retail sale of books in specialised stores"]
[null,null,null,null,null,null,null,null,null,null,null,null,null,null,null,null,null,null,null,null,null,null,null,null,"G47.6.2 - Retail sale of newspapers and stationery in specialised stores"]
[null,null,null,null,null,null,null,null,null,null,null,null,null,null,null,null,null,null,null,null,null,null,null,null,"G47.6.3 - Retail sale of music and video recordings in specialised stores"]
[null,null,null,null,null,null,null,null,null,null,null,null,null,null,null,null,null,null,null,null,null,null,null,null,"G47.6.4 - Retail sale of sporting equipment in specialised stores"]
[null,null,null,null,null,null,null,null,null,null,null,null,null,null,null,null,null,null,null,null,null,null,null,null,"G47.6.5 - Retail sale of games and toys in specialised stores"]
[null,null,null,null,null,null,null,null,null,null,null,null,null,null,null,null,null,null,null,null,null,null,null,null,"G47.7 - Retail sale of other goods in specialised stores"]
[null,null,null,null,null,null,null,null,null,null,null,null,null,null,null,null,null,null,null,null,null,null,null,null,"G47.7.1 - Retail sale of clothing in specialised stores"]
[null,null,null,null,null,null,null,null,null,null,null,null,null,null,null,null,null,null,null,null,null,null,null,null,"G47.7.2 - Retail sale of footwear and leather goods in specialised stores"]
[null,null,null,null,null,null,null,null,null,null,null,null,null,null,null,null,null,null,null,null,null,null,null,null,"G47.7.3 - Dispensing chemist in specialised stores"]
[null,null,null,null,null,null,null,null,null,null,null,null,null,null,null,null,null,null,null,null,null,null,null,null,"G47.7.4 - Retail sale of medical and orthopaedic goods in specialised stores"]
[null,null,null,null,null,null,null,null,null,null,null,null,null,null,null,null,null,null,null,null,null,null,null,null,"G47.7.5 - Retail sale of cosmetic and toilet articles in specialised stores"]
[null,null,null,null,null,null,null,null,null,null,null,null,null,null,null,null,null,null,null,null,null,null,null,null,"G47.7.6 - Retail sale of flowers, plants, seeds, fertilisers, pet animals and pet food in specialised stores"]
[null,null,null,null,null,null,null,null,null,null,null,null,null,null,null,null,null,null,null,null,null,null,null,null,"G47.7.7 - Retail sale of watches and jewellery in specialised stores"]
[null,null,null,null,null,null,null,null,null,null,null,null,null,null,null,null,null,null,null,null,null,null,null,null,"G47.7.8 - Other retail sale of new goods in specialised stores"]
[null,null,null,null,null,null,null,null,null,null,null,null,null,null,null,null,null,null,null,null,null,null,null,null,"G47.7.9 - Retail sale of second-hand goods in stores"]
[null,null,null,null,null,null,null,null,null,null,null,null,null,null,null,null,null,null,null,null,null,null,null,null,"G47.8 - Retail sale via stalls and markets"]
[null,null,null,null,null,null,null,null,null,null,null,null,null,null,null,null,null,null,null,null,null,null,null,null,"G47.8.1 - Retail sale via stalls and markets of food, beverages and tobacco products"]
[null,null,null,null,null,null,null,null,null,null,null,null,null,null,null,null,null,null,null,null,null,null,null,null,"G47.8.2 - Retail sale via stalls and markets of textiles, clothing and footwear"]
[null,null,null,null,null,null,null,null,null,null,null,null,null,null,null,null,null,null,null,null,null,null,null,null,"G47.8.9 - Retail sale via stalls and markets of other goods"]
[null,null,null,null,null,null,null,null,null,null,null,null,null,null,null,null,null,null,null,null,null,null,null,null,"G47.9 - Retail trade not in stores, stalls or markets"]
[null,null,null,null,null,null,null,null,null,null,null,null,null,null,null,null,null,null,null,null,null,null,null,null,"G47.9.1 - Retail sale via mail order houses or via Internet"]
[null,null,null,null,null,null,null,null,null,null,null,null,null,null,null,null,null,null,null,null,null,null,null,null,"G47.9.9 - Other retail sale not in stores, stalls or markets"]
[null,null,null,null,null,null,null,null,null,null,null,null,null,null,null,null,null,null,null,null,null,null,null,null,"H - Transporting and storage"]
[null,null,null,null,null,null,null,null,null,null,null,null,null,null,null,null,null,null,null,null,null,null,null,null,"H49 - Land transport and transport via pipelines"]
[null,null,null,null,null,null,null,null,null,null,null,null,null,null,null,null,null,null,null,null,null,null,null,null,"H49.1 - Passenger rail transport, interurban"]
[null,null,null,null,null,null,null,null,null,null,null,null,null,null,null,null,null,null,null,null,null,null,null,null,"H49.1.0 - Passenger rail transport, interurban"]
[null,null,null,null,null,null,null,null,null,null,null,null,null,null,null,null,null,null,null,null,null,null,null,null,"H49.2 - Freight rail transport"]
[null,null,null,null,null,null,null,null,null,null,null,null,null,null,null,null,null,null,null,null,null,null,null,null,"H49.2.0 - Freight rail transport"]
[null,null,null,null,null,null,null,null,null,null,null,null,null,null,null,null,null,null,null,null,null,null,null,null,"H49.3 - Other passenger land transport"]
[null,null,null,null,null,null,null,null,null,null,null,null,null,null,null,null,null,null,null,null,null,null,null,null,"H49.3.1 - Urban and suburban passenger land transport"]
[null,null,null,null,null,null,null,null,null,null,null,null,null,null,null,null,null,null,null,null,null,null,null,null,"H49.3.2 - Taxi operation"]
[null,null,null,null,null,null,null,null,null,null,null,null,null,null,null,null,null,null,null,null,null,null,null,null,"H49.3.9 - Other passenger land transport n.e.c."]
[null,null,null,null,null,null,null,null,null,null,null,null,null,null,null,null,null,null,null,null,null,null,null,null,"H49.4 - Freight transport by road and removal services"]
[null,null,null,null,null,null,null,null,null,null,null,null,null,null,null,null,null,null,null,null,null,null,null,null,"H49.4.1 - Freight transport by road"]
[null,null,null,null,null,null,null,null,null,null,null,null,null,null,null,null,null,null,null,null,null,null,null,null,"H49.4.2 - Removal services"]
[null,null,null,null,null,null,null,null,null,null,null,null,null,null,null,null,null,null,null,null,null,null,null,null,"H49.5 - Transport via pipeline"]
[null,null,null,null,null,null,null,null,null,null,null,null,null,null,null,null,null,null,null,null,null,null,null,null,"H49.5.0 - Transport via pipeline"]
[null,null,null,null,null,null,null,null,null,null,null,null,null,null,null,null,null,null,null,null,null,null,null,null,"H50 - Water transport"]
[null,null,null,null,null,null,null,null,null,null,null,null,null,null,null,null,null,null,null,null,null,null,null,null,"H50.1 - Sea and coastal passenger water transport"]
[null,null,null,null,null,null,null,null,null,null,null,null,null,null,null,null,null,null,null,null,null,null,null,null,"H50.1.0 - Sea and coastal passenger water transport"]
[null,null,null,null,null,null,null,null,null,null,null,null,null,null,null,null,null,null,null,null,null,null,null,null,"H50.2 - Sea and coastal freight water transport"]
[null,null,null,null,null,null,null,null,null,null,null,null,null,null,null,null,null,null,null,null,null,null,null,null,"H50.2.0 - Sea and coastal freight water transport"]
[null,null,null,null,null,null,null,null,null,null,null,null,null,null,null,null,null,null,null,null,null,null,null,null,"H50.3 - Inland passenger water transport"]
[null,null,null,null,null,null,null,null,null,null,null,null,null,null,null,null,null,null,null,null,null,null,null,null,"H50.3.0 - Inland passenger water transport"]
[null,null,null,null,null,null,null,null,null,null,null,null,null,null,null,null,null,null,null,null,null,null,null,null,"H50.4 - Inland freight water transport"]
[null,null,null,null,null,null,null,null,null,null,null,null,null,null,null,null,null,null,null,null,null,null,null,null,"H50.4.0 - Inland freight water transport"]
[null,null,null,null,null,null,null,null,null,null,null,null,null,null,null,null,null,null,null,null,null,null,null,null,"H51 - Air transport"]
[null,null,null,null,null,null,null,null,null,null,null,null,null,null,null,null,null,null,null,null,null,null,null,null,"H51.1 - Passenger air transport"]
[null,null,null,null,null,null,null,null,null,null,null,null,null,null,null,null,null,null,null,null,null,null,null,null,"H51.1.0 - Passenger air transport"]
[null,null,null,null,null,null,null,null,null,null,null,null,null,null,null,null,null,null,null,null,null,null,null,null,"H51.2 - Freight air transport and space transport"]
[null,null,null,null,null,null,null,null,null,null,null,null,null,null,null,null,null,null,null,null,null,null,null,null,"H51.2.1 - Freight air transport"]
[null,null,null,null,null,null,null,null,null,null,null,null,null,null,null,null,null,null,null,null,null,null,null,null,"H51.2.2 - Space transport"]
[null,null,null,null,null,null,null,null,null,null,null,null,null,null,null,null,null,null,null,null,null,null,null,null,"H52 - Warehousing and support activities for transportation"]
[null,null,null,null,null,null,null,null,null,null,null,null,null,null,null,null,null,null,null,null,null,null,null,null,"H52.1 - Warehousing and storage"]
[null,null,null,null,null,null,null,null,null,null,null,null,null,null,null,null,null,null,null,null,null,null,null,null,"H52.1.0 - Warehousing and storage"]
[null,null,null,null,null,null,null,null,null,null,null,null,null,null,null,null,null,null,null,null,null,null,null,null,"H52.2 - Support activities for transportation"]
[null,null,null,null,null,null,null,null,null,null,null,null,null,null,null,null,null,null,null,null,null,null,null,null,"H52.2.1 - Service activities incidental to land transportation"]
[null,null,null,null,null,null,null,null,null,null,null,null,null,null,null,null,null,null,null,null,null,null,null,null,"H52.2.2 - Service activities incidental to water transportation"]
[null,null,null,null,null,null,null,null,null,null,null,null,null,null,null,null,null,null,null,null,null,null,null,null,"H52.2.3 - Service activities incidental to air transportation"]
[null,null,null,null,null,null,null,null,null,null,null,null,null,null,null,null,null,null,null,null,null,null,null,null,"H52.2.4 - Cargo handling"]
[null,null,null,null,null,null,null,null,null,null,null,null,null,null,null,null,null,null,null,null,null,null,null,null,"H52.2.9 - Other transportation support activities"]
[null,null,null,null,null,null,null,null,null,null,null,null,null,null,null,null,null,null,null,null,null,null,null,null,"H53 - Postal and courier activities"]
[null,null,null,null,null,null,null,null,null,null,null,null,null,null,null,null,null,null,null,null,null,null,null,null,"H53.1 - Postal activities under universal service obligation"]
[null,null,null,null,null,null,null,null,null,null,null,null,null,null,null,null,null,null,null,null,null,null,null,null,"H53.1.0 - Postal activities under universal service obligation"]
[null,null,null,null,null,null,null,null,null,null,null,null,null,null,null,null,null,null,null,null,null,null,null,null,"H53.2 - Other postal and courier activities"]
[null,null,null,null,null,null,null,null,null,null,null,null,null,null,null,null,null,null,null,null,null,null,null,null,"H53.2.0 - Other postal and courier activities"]
[null,null,null,null,null,null,null,null,null,null,null,null,null,null,null,null,null,null,null,null,null,null,null,null,"I - Accommodation and food service activities"]
[null,null,null,null,null,null,null,null,null,null,null,null,null,null,null,null,null,null,null,null,null,null,null,null,"I55 - Accommodation"]
[null,null,null,null,null,null,null,null,null,null,null,null,null,null,null,null,null,null,null,null,null,null,null,null,"I55.1 - Hotels and similar accommodation"]
[null,null,null,null,null,null,null,null,null,null,null,null,null,null,null,null,null,null,null,null,null,null,null,null,"I55.1.0 - Hotels and similar accommodation"]
[null,null,null,null,null,null,null,null,null,null,null,null,null,null,null,null,null,null,null,null,null,null,null,null,"I55.2 - Holiday and other short-stay accommodation"]
[null,null,null,null,null,null,null,null,null,null,null,null,null,null,null,null,null,null,null,null,null,null,null,null,"I55.2.0 - Holiday and other short-stay accommodation"]
[null,null,null,null,null,null,null,null,null,null,null,null,null,null,null,null,null,null,null,null,null,null,null,null,"I55.3 - Camping grounds, recreational vehicle parks and trailer parks"]
[null,null,null,null,null,null,null,null,null,null,null,null,null,null,null,null,null,null,null,null,null,null,null,null,"I55.3.0 - Camping grounds, recreational vehicle parks and trailer parks"]
[null,null,null,null,null,null,null,null,null,null,null,null,null,null,null,null,null,null,null,null,null,null,null,null,"I55.9 - Other accommodation"]
[null,null,null,null,null,null,null,null,null,null,null,null,null,null,null,null,null,null,null,null,null,null,null,null,"I55.9.0 - Other accommodation"]
[null,null,null,null,null,null,null,null,null,null,null,null,null,null,null,null,null,null,null,null,null,null,null,null,"I56 - Food and beverage service activities"]
[null,null,null,null,null,null,null,null,null,null,null,null,null,null,null,null,null,null,null,null,null,null,null,null,"I56.1 - Restaurants and mobile food service activities"]
[null,null,null,null,null,null,null,null,null,null,null,null,null,null,null,null,null,null,null,null,null,null,null,null,"I56.1.0 - Restaurants and mobile food service activities"]
[null,null,null,null,null,null,null,null,null,null,null,null,null,null,null,null,null,null,null,null,null,null,null,null,"I56.2 - Event catering and other food service activities"]
[null,null,null,null,null,null,null,null,null,null,null,null,null,null,null,null,null,null,null,null,null,null,null,null,"I56.2.1 - Event catering activities"]
[null,null,null,null,null,null,null,null,null,null,null,null,null,null,null,null,null,null,null,null,null,null,null,null,"I56.2.9 - Other food service activities"]
[null,null,null,null,null,null,null,null,null,null,null,null,null,null,null,null,null,null,null,null,null,null,null,null,"I56.3 - Beverage serving activities"]
[null,null,null,null,null,null,null,null,null,null,null,null,null,null,null,null,null,null,null,null,null,null,null,null,"I56.3.0 - Beverage serving activities"]
[null,null,null,null,null,null,null,null,null,null,null,null,null,null,null,null,null,null,null,null,null,null,null,null,"J - Information and communication"]
[null,null,null,null,null,null,null,null,null,null,null,null,null,null,null,null,null,null,null,null,null,null,null,null,"J58 - Publishing activities"]
[null,null,null,null,null,null,null,null,null,null,null,null,null,null,null,null,null,null,null,null,null,null,null,null,"J58.1 - Publishing of books, periodicals and other publishing activities"]
[null,null,null,null,null,null,null,null,null,null,null,null,null,null,null,null,null,null,null,null,null,null,null,null,"J58.1.1 - Book publishing"]
[null,null,null,null,null,null,null,null,null,null,null,null,null,null,null,null,null,null,null,null,null,null,null,null,"J58.1.2 - Publishing of directories and mailing lists"]
[null,null,null,null,null,null,null,null,null,null,null,null,null,null,null,null,null,null,null,null,null,null,null,null,"J58.1.3 - Publishing of newspapers"]
[null,null,null,null,null,null,null,null,null,null,null,null,null,null,null,null,null,null,null,null,null,null,null,null,"J58.1.4 - Publishing of journals and periodicals"]
[null,null,null,null,null,null,null,null,null,null,null,null,null,null,null,null,null,null,null,null,null,null,null,null,"J58.1.9 - Other publishing activities"]
[null,null,null,null,null,null,null,null,null,null,null,null,null,null,null,null,null,null,null,null,null,null,null,null,"J58.2 - Software publishing"]
[null,null,null,null,null,null,null,null,null,null,null,null,null,null,null,null,null,null,null,null,null,null,null,null,"J58.2.1 - Publishing of computer games"]
[null,null,null,null,null,null,null,null,null,null,null,null,null,null,null,null,null,null,null,null,null,null,null,null,"J58.2.9 - Other software publishing"]
[null,null,null,null,null,null,null,null,null,null,null,null,null,null,null,null,null,null,null,null,null,null,null,null,"J59 - Motion picture, video and television programme production, sound recording and music publishing activities"]
[null,null,null,null,null,null,null,null,null,null,null,null,null,null,null,null,null,null,null,null,null,null,null,null,"J59.1 - Motion picture, video and television programme activities"]
[null,null,null,null,null,null,null,null,null,null,null,null,null,null,null,null,null,null,null,null,null,null,null,null,"J59.1.1 - Motion picture, video and television programme production activities"]
[null,null,null,null,null,null,null,null,null,null,null,null,null,null,null,null,null,null,null,null,null,null,null,null,"J59.1.2 - Motion picture, video and television programme post-production activities"]
[null,null,null,null,null,null,null,null,null,null,null,null,null,null,null,null,null,null,null,null,null,null,null,null,"J59.1.3 - Motion picture, video and television programme distribution activities"]
[null,null,null,null,null,null,null,null,null,null,null,null,null,null,null,null,null,null,null,null,null,null,null,null,"J59.1.4 - Motion picture projection activities"]
[null,null,null,null,null,null,null,null,null,null,null,null,null,null,null,null,null,null,null,null,null,null,null,null,"J59.2 - Sound recording and music publishing activities"]
[null,null,null,null,null,null,null,null,null,null,null,null,null,null,null,null,null,null,null,null,null,null,null,null,"J59.2.0 - Sound recording and music publishing activities"]
[null,null,null,null,null,null,null,null,null,null,null,null,null,null,null,null,null,null,null,null,null,null,null,null,"J60 - Programming and broadcasting activities"]
[null,null,null,null,null,null,null,null,null,null,null,null,null,null,null,null,null,null,null,null,null,null,null,null,"J60.1 - Radio broadcasting"]
[null,null,null,null,null,null,null,null,null,null,null,null,null,null,null,null,null,null,null,null,null,null,null,null,"J60.1.0 - Radio broadcasting"]
[null,null,null,null,null,null,null,null,null,null,null,null,null,null,null,null,null,null,null,null,null,null,null,null,"J60.2 - Television programming and broadcasting activities"]
[null,null,null,null,null,null,null,null,null,null,null,null,null,null,null,null,null,null,null,null,null,null,null,null,"J60.2.0 - Television programming and broadcasting activities"]
[null,null,null,null,null,null,null,null,null,null,null,null,null,null,null,null,null,null,null,null,null,null,null,null,"J61 - Telecommunications"]
[null,null,null,null,null,null,null,null,null,null,null,null,null,null,null,null,null,null,null,null,null,null,null,null,"J61.1 - Wired telecommunications activities"]
[null,null,null,null,null,null,null,null,null,null,null,null,null,null,null,null,null,null,null,null,null,null,null,null,"J61.1.0 - Wired telecommunications activities"]
[null,null,null,null,null,null,null,null,null,null,null,null,null,null,null,null,null,null,null,null,null,null,null,null,"J61.2 - Wireless telecommunications activities"]
[null,null,null,null,null,null,null,null,null,null,null,null,null,null,null,null,null,null,null,null,null,null,null,null,"J61.2.0 - Wireless telecommunications activities"]
[null,null,null,null,null,null,null,null,null,null,null,null,null,null,null,null,null,null,null,null,null,null,null,null,"J61.3 - Satellite telecommunications activities"]
[null,null,null,null,null,null,null,null,null,null,null,null,null,null,null,null,null,null,null,null,null,null,null,null,"J61.3.0 - Satellite telecommunications activities"]
[null,null,null,null,null,null,null,null,null,null,null,null,null,null,null,null,null,null,null,null,null,null,null,null,"J61.9 - Other telecommunications activities"]
[null,null,null,null,null,null,null,null,null,null,null,null,null,null,null,null,null,null,null,null,null,null,null,null,"J61.9.0 - Other telecommunications activities"]
[null,null,null,null,null,null,null,null,null,null,null,null,null,null,null,null,null,null,null,null,null,null,null,null,"J62 - Computer programming, consultancy and related activities"]
[null,null,null,null,null,null,null,null,null,null,null,null,null,null,null,null,null,null,null,null,null,null,null,null,"J62.0 - Computer programming, consultancy and related activities"]
[null,null,null,null,null,null,null,null,null,null,null,null,null,null,null,null,null,null,null,null,null,null,null,null,"J62.0.1 - Computer programming activities"]
[null,null,null,null,null,null,null,null,null,null,null,null,null,null,null,null,null,null,null,null,null,null,null,null,"J62.0.2 - Computer consultancy activities"]
[null,null,null,null,null,null,null,null,null,null,null,null,null,null,null,null,null,null,null,null,null,null,null,null,"J62.0.3 - Computer facilities management activities"]
[null,null,null,null,null,null,null,null,null,null,null,null,null,null,null,null,null,null,null,null,null,null,null,null,"J62.0.9 - Other information technology and computer service activities"]
[null,null,null,null,null,null,null,null,null,null,null,null,null,null,null,null,null,null,null,null,null,null,null,null,"J63 - Information service activities"]
[null,null,null,null,null,null,null,null,null,null,null,null,null,null,null,null,null,null,null,null,null,null,null,null,"J63.1 - Data processing, hosting and related activities; web portals"]
[null,null,null,null,null,null,null,null,null,null,null,null,null,null,null,null,null,null,null,null,null,null,null,null,"J63.1.1 - Data processing, hosting and related activities"]
[null,null,null,null,null,null,null,null,null,null,null,null,null,null,null,null,null,null,null,null,null,null,null,null,"J63.1.2 - Web portals"]
[null,null,null,null,null,null,null,null,null,null,null,null,null,null,null,null,null,null,null,null,null,null,null,null,"J63.9 - Other information service activities"]
[null,null,null,null,null,null,null,null,null,null,null,null,null,null,null,null,null,null,null,null,null,null,null,null,"J63.9.1 - News agency activities"]
[null,null,null,null,null,null,null,null,null,null,null,null,null,null,null,null,null,null,null,null,null,null,null,null,"J63.9.9 - Other information service activities n.e.c."]
[null,null,null,null,null,null,null,null,null,null,null,null,null,null,null,null,null,null,null,null,null,null,null,null,"K64.1.1 - Central banking"]
[null,null,null,null,null,null,null,null,null,null,null,null,null,null,null,null,null,null,null,null,null,null,null,null,"K64.1.9 - Other monetary intermediation"]
[null,null,null,null,null,null,null,null,null,null,null,null,null,null,null,null,null,null,null,null,null,null,null,null,"K64.2.0 - Activities of holding companies"]
[null,null,null,null,null,null,null,null,null,null,null,null,null,null,null,null,null,null,null,null,null,null,null,null,"K64.3.0 - Trusts, funds and similar financial entities"]
[null,null,null,null,null,null,null,null,null,null,null,null,null,null,null,null,null,null,null,null,null,null,null,null,"K64.9.1 - Financial leasing"]
[null,null,null,null,null,null,null,null,null,null,null,null,null,null,null,null,null,null,null,null,null,null,null,null,"K64.9.2 - Other credit granting"]
[null,null,null,null,null,null,null,null,null,null,null,null,null,null,null,null,null,null,null,null,null,null,null,null,"K64.9.9 - Other financial service activities, except insurance and pension funding n.e.c."]
[null,null,null,null,null,null,null,null,null,null,null,null,null,null,null,null,null,null,null,null,null,null,null,null,"K65.1.1 - Life insurance"]
[null,null,null,null,null,null,null,null,null,null,null,null,null,null,null,null,null,null,null,null,null,null,null,null,"K65.1.2 - Non-life insurance"]
[null,null,null,null,null,null,null,null,null,null,null,null,null,null,null,null,null,null,null,null,null,null,null,null,"K65.2.0 - Reinsurance"]
[null,null,null,null,null,null,null,null,null,null,null,null,null,null,null,null,null,null,null,null,null,null,null,null,"K65.3.0 - Pension funding"]
[null,null,null,null,null,null,null,null,null,null,null,null,null,null,null,null,null,null,null,null,null,null,null,null,"K66.1.1 - Administration of financial markets"]
[null,null,null,null,null,null,null,null,null,null,null,null,null,null,null,null,null,null,null,null,null,null,null,null,"K66.1.2 - Security and commodity contracts brokerage"]
[null,null,null,null,null,null,null,null,null,null,null,null,null,null,null,null,null,null,null,null,null,null,null,null,"K66.1.9 - Other activities auxiliary to financial services, except insurance and pension funding"]
[null,null,null,null,null,null,null,null,null,null,null,null,null,null,null,null,null,null,null,null,null,null,null,null,"K66.2.1 - Risk and damage evaluation"]
[null,null,null,null,null,null,null,null,null,null,null,null,null,null,null,null,null,null,null,null,null,null,null,null,"K66.2.2 - Activities of insurance agents and brokers"]
[null,null,null,null,null,null,null,null,null,null,null,null,null,null,null,null,null,null,null,null,null,null,null,null,"K66.2.9 - Other activities auxiliary to insurance and pension funding"]
[null,null,null,null,null,null,null,null,null,null,null,null,null,null,null,null,null,null,null,null,null,null,null,null,"K66.3.0 - Fund management activities"]
[null,null,null,null,null,null,null,null,null,null,null,null,null,null,null,null,null,null,null,null,null,null,null,null,"L - Real estate activities"]
[null,null,null,null,null,null,null,null,null,null,null,null,null,null,null,null,null,null,null,null,null,null,null,null,"L68 - Real estate activities"]
[null,null,null,null,null,null,null,null,null,null,null,null,null,null,null,null,null,null,null,null,null,null,null,null,"L68.1 - Buying and selling of own real estate"]
[null,null,null,null,null,null,null,null,null,null,null,null,null,null,null,null,null,null,null,null,null,null,null,null,"L68.1.0 - Buying and selling of own real estate"]
[null,null,null,null,null,null,null,null,null,null,null,null,null,null,null,null,null,null,null,null,null,null,null,null,"L68.2 - Renting and operating of own or leased real estate"]
[null,null,null,null,null,null,null,null,null,null,null,null,null,null,null,null,null,null,null,null,null,null,null,null,"L68.2.0 - Renting and operating of own or leased real estate"]
[null,null,null,null,null,null,null,null,null,null,null,null,null,null,null,null,null,null,null,null,null,null,null,null,"L68.3 - Real estate activities on a fee or contract basis"]
[null,null,null,null,null,null,null,null,null,null,null,null,null,null,null,null,null,null,null,null,null,null,null,null,"L68.3.1 - Real estate agencies"]
[null,null,null,null,null,null,null,null,null,null,null,null,null,null,null,null,null,null,null,null,null,null,null,null,"L68.3.2 - Management of real estate on a fee or contract basis"]
[null,null,null,null,null,null,null,null,null,null,null,null,null,null,null,null,null,null,null,null,null,null,null,null,"M - Professional, scientific and technical activities"]
[null,null,null,null,null,null,null,null,null,null,null,null,null,null,null,null,null,null,null,null,null,null,null,null,"M69 - Legal and accounting activities"]
[null,null,null,null,null,null,null,null,null,null,null,null,null,null,null,null,null,null,null,null,null,null,null,null,"M69.1 - Legal activities"]
[null,null,null,null,null,null,null,null,null,null,null,null,null,null,null,null,null,null,null,null,null,null,null,null,"M69.1.0 - Legal activities"]
[null,null,null,null,null,null,null,null,null,null,null,null,null,null,null,null,null,null,null,null,null,null,null,null,"M69.2 - Accounting, bookkeeping and auditing activities; tax consultancy"]
[null,null,null,null,null,null,null,null,null,null,null,null,null,null,null,null,null,null,null,null,null,null,null,null,"M69.2.0 - Accounting, bookkeeping and auditing activities; tax consultancy"]
[null,null,null,null,null,null,null,null,null,null,null,null,null,null,null,null,null,null,null,null,null,null,null,null,"M70 - Activities of head offices; management consultancy activities"]
[null,null,null,null,null,null,null,null,null,null,null,null,null,null,null,null,null,null,null,null,null,null,null,null,"M70.1 - Activities of head offices"]
[null,null,null,null,null,null,null,null,null,null,null,null,null,null,null,null,null,null,null,null,null,null,null,null,"M70.1.0 - Activities of head offices"]
[null,null,null,null,null,null,null,null,null,null,null,null,null,null,null,null,null,null,null,null,null,null,null,null,"M70.2 - Management consultancy activities"]
[null,null,null,null,null,null,null,null,null,null,null,null,null,null,null,null,null,null,null,null,null,null,null,null,"M70.2.1 - Public relations and communication activities"]
[null,null,null,null,null,null,null,null,null,null,null,null,null,null,null,null,null,null,null,null,null,null,null,null,"M70.2.2 - Business and other management consultancy activities"]
[null,null,null,null,null,null,null,null,null,null,null,null,null,null,null,null,null,null,null,null,null,null,null,null,"M71 - Architectural and engineering activities; technical testing and analysis"]
[null,null,null,null,null,null,null,null,null,null,null,null,null,null,null,null,null,null,null,null,null,null,null,null,"M71.1 - Architectural and engineering activities and related technical consultancy"]
[null,null,null,null,null,null,null,null,null,null,null,null,null,null,null,null,null,null,null,null,null,null,null,null,"M71.1.1 - Architectural activities"]
[null,null,null,null,null,null,null,null,null,null,null,null,null,null,null,null,null,null,null,null,null,null,null,null,"M71.1.2 - Engineering activities and related technical consultancy"]
[null,null,null,null,null,null,null,null,null,null,null,null,null,null,null,null,null,null,null,null,null,null,null,null,"M71.2 - Technical testing and analysis"]
[null,null,null,null,null,null,null,null,null,null,null,null,null,null,null,null,null,null,null,null,null,null,null,null,"M71.2.0 - Technical testing and analysis"]
[null,null,null,null,null,null,null,null,null,null,null,null,null,null,null,null,null,null,null,null,null,null,null,null,"M72 - Scientific research and development"]
[null,null,null,null,null,null,null,null,null,null,null,null,null,null,null,null,null,null,null,null,null,null,null,null,"M72.1 - Research and experimental development on natural sciences and engineering"]
[null,null,null,null,null,null,null,null,null,null,null,null,null,null,null,null,null,null,null,null,null,null,null,null,"M72.1.1 - Research and experimental development on biotechnology"]
[null,null,null,null,null,null,null,null,null,null,null,null,null,null,null,null,null,null,null,null,null,null,null,null,"M72.1.9 - Other research and experimental development on natural sciences and engineering"]
[null,null,null,null,null,null,null,null,null,null,null,null,null,null,null,null,null,null,null,null,null,null,null,null,"M72.2 - Research and experimental development on social sciences and humanities"]
[null,null,null,null,null,null,null,null,null,null,null,null,null,null,null,null,null,null,null,null,null,null,null,null,"M72.2.0 - Research and experimental development on social sciences and humanities"]
[null,null,null,null,null,null,null,null,null,null,null,null,null,null,null,null,null,null,null,null,null,null,null,null,"M73 - Advertising and market research"]
[null,null,null,null,null,null,null,null,null,null,null,null,null,null,null,null,null,null,null,null,null,null,null,null,"M73.1 - Advertising"]
[null,null,null,null,null,null,null,null,null,null,null,null,null,null,null,null,null,null,null,null,null,null,null,null,"M73.1.1 - Advertising agencies"]
[null,null,null,null,null,null,null,null,null,null,null,null,null,null,null,null,null,null,null,null,null,null,null,null,"M73.1.2 - Media representation"]
[null,null,null,null,null,null,null,null,null,null,null,null,null,null,null,null,null,null,null,null,null,null,null,null,"M73.2 - Market research and public opinion polling"]
[null,null,null,null,null,null,null,null,null,null,null,null,null,null,null,null,null,null,null,null,null,null,null,null,"M73.2.0 - Market research and public opinion polling"]
[null,null,null,null,null,null,null,null,null,null,null,null,null,null,null,null,null,null,null,null,null,null,null,null,"M74 - Other professional, scientific and technical activities"]
[null,null,null,null,null,null,null,null,null,null,null,null,null,null,null,null,null,null,null,null,null,null,null,null,"M74.1 - Specialised design activities"]
[null,null,null,null,null,null,null,null,null,null,null,null,null,null,null,null,null,null,null,null,null,null,null,null,"M74.1.0 - Specialised design activities"]
[null,null,null,null,null,null,null,null,null,null,null,null,null,null,null,null,null,null,null,null,null,null,null,null,"M74.2 - Photographic activities"]
[null,null,null,null,null,null,null,null,null,null,null,null,null,null,null,null,null,null,null,null,null,null,null,null,"M74.2.0 - Photographic activities"]
[null,null,null,null,null,null,null,null,null,null,null,null,null,null,null,null,null,null,null,null,null,null,null,null,"M74.3 - Translation and interpretation activities"]
[null,null,null,null,null,null,null,null,null,null,null,null,null,null,null,null,null,null,null,null,null,null,null,null,"M74.3.0 - Translation and interpretation activities"]
[null,null,null,null,null,null,null,null,null,null,null,null,null,null,null,null,null,null,null,null,null,null,null,null,"M74.9 - Other professional, scientific and technical activities n.e.c."]
[null,null,null,null,null,null,null,null,null,null,null,null,null,null,null,null,null,null,null,null,null,null,null,null,"M74.9.0 - Other professional, scientific and technical activities n.e.c."]
[null,null,null,null,null,null,null,null,null,null,null,null,null,null,null,null,null,null,null,null,null,null,null,null,"M75 - Veterinary activities"]
[null,null,null,null,null,null,null,null,null,null,null,null,null,null,null,null,null,null,null,null,null,null,null,null,"M75.0 - Veterinary activities"]
[null,null,null,null,null,null,null,null,null,null,null,null,null,null,null,null,null,null,null,null,null,null,null,null,"M75.0.0 - Veterinary activities"]
[null,null,null,null,null,null,null,null,null,null,null,null,null,null,null,null,null,null,null,null,null,null,null,null,"N - Administrative and support service activities"]
[null,null,null,null,null,null,null,null,null,null,null,null,null,null,null,null,null,null,null,null,null,null,null,null,"N77 - Rental and leasing activities"]
[null,null,null,null,null,null,null,null,null,null,null,null,null,null,null,null,null,null,null,null,null,null,null,null,"N77.1 - Renting and leasing of motor vehicles"]
[null,null,null,null,null,null,null,null,null,null,null,null,null,null,null,null,null,null,null,null,null,null,null,null,"N77.1.1 - Renting and leasing of cars and light motor vehicles"]
[null,null,null,null,null,null,null,null,null,null,null,null,null,null,null,null,null,null,null,null,null,null,null,null,"N77.1.2 - Renting and leasing of trucks"]
[null,null,null,null,null,null,null,null,null,null,null,null,null,null,null,null,null,null,null,null,null,null,null,null,"N77.2 - Renting and leasing of personal and household goods"]
[null,null,null,null,null,null,null,null,null,null,null,null,null,null,null,null,null,null,null,null,null,null,null,null,"N77.2.1 - Renting and leasing of recreational and sports goods"]
[null,null,null,null,null,null,null,null,null,null,null,null,null,null,null,null,null,null,null,null,null,null,null,null,"N77.2.2 - Renting of video tapes and disks"]
[null,null,null,null,null,null,null,null,null,null,null,null,null,null,null,null,null,null,null,null,null,null,null,null,"N77.2.9 - Renting and leasing of other personal and household goods"]
[null,null,null,null,null,null,null,null,null,null,null,null,null,null,null,null,null,null,null,null,null,null,null,null,"N77.3 - Renting and leasing of other machinery, equipment and tangible goods"]
[null,null,null,null,null,null,null,null,null,null,null,null,null,null,null,null,null,null,null,null,null,null,null,null,"N77.3.1 - Renting and leasing of agricultural machinery and equipment"]
[null,null,null,null,null,null,null,null,null,null,null,null,null,null,null,null,null,null,null,null,null,null,null,null,"N77.3.2 - Renting and leasing of construction and civil engineering machinery and equipment"]
[null,null,null,null,null,null,null,null,null,null,null,null,null,null,null,null,null,null,null,null,null,null,null,null,"N77.3.3 - Renting and leasing of office machinery and equipment (including computers)"]
[null,null,null,null,null,null,null,null,null,null,null,null,null,null,null,null,null,null,null,null,null,null,null,null,"N77.3.4 - Renting and leasing of water transport equipment"]
[null,null,null,null,null,null,null,null,null,null,null,null,null,null,null,null,null,null,null,null,null,null,null,null,"N77.3.5 - Renting and leasing of air transport equipment"]
[null,null,null,null,null,null,null,null,null,null,null,null,null,null,null,null,null,null,null,null,null,null,null,null,"N77.3.9 - Renting and leasing of other machinery, equipment and tangible goods n.e.c."]
[null,null,null,null,null,null,null,null,null,null,null,null,null,null,null,null,null,null,null,null,null,null,null,null,"N77.4 - Leasing of intellectual property and similar products, except copyrighted works"]
[null,null,null,null,null,null,null,null,null,null,null,null,null,null,null,null,null,null,null,null,null,null,null,null,"N77.4.0 - Leasing of intellectual property and similar products, except copyrighted works"]
[null,null,null,null,null,null,null,null,null,null,null,null,null,null,null,null,null,null,null,null,null,null,null,null,"N78 - Employment activities"]
[null,null,null,null,null,null,null,null,null,null,null,null,null,null,null,null,null,null,null,null,null,null,null,null,"N78.1 - Activities of employment placement agencies"]
[null,null,null,null,null,null,null,null,null,null,null,null,null,null,null,null,null,null,null,null,null,null,null,null,"N78.1.0 - Activities of employment placement agencies"]
[null,null,null,null,null,null,null,null,null,null,null,null,null,null,null,null,null,null,null,null,null,null,null,null,"N78.2 - Temporary employment agency activities"]
[null,null,null,null,null,null,null,null,null,null,null,null,null,null,null,null,null,null,null,null,null,null,null,null,"N78.2.0 - Temporary employment agency activities"]
[null,null,null,null,null,null,null,null,null,null,null,null,null,null,null,null,null,null,null,null,null,null,null,null,"N78.3 - Other human resources provision"]
[null,null,null,null,null,null,null,null,null,null,null,null,null,null,null,null,null,null,null,null,null,null,null,null,"N78.3.0 - Other human resources provision"]
[null,null,null,null,null,null,null,null,null,null,null,null,null,null,null,null,null,null,null,null,null,null,null,null,"N79 - Travel agency, tour operator and other reservation service and related activities"]
[null,null,null,null,null,null,null,null,null,null,null,null,null,null,null,null,null,null,null,null,null,null,null,null,"N79.1 - Travel agency and tour operator activities"]
[null,null,null,null,null,null,null,null,null,null,null,null,null,null,null,null,null,null,null,null,null,null,null,null,"N79.1.1 - Travel agency activities"]
[null,null,null,null,null,null,null,null,null,null,null,null,null,null,null,null,null,null,null,null,null,null,null,null,"N79.1.2 - Tour operator activities"]
[null,null,null,null,null,null,null,null,null,null,null,null,null,null,null,null,null,null,null,null,null,null,null,null,"N79.9 - Other reservation service and related activities"]
[null,null,null,null,null,null,null,null,null,null,null,null,null,null,null,null,null,null,null,null,null,null,null,null,"N79.9.0 - Other reservation service and related activities"]
[null,null,null,null,null,null,null,null,null,null,null,null,null,null,null,null,null,null,null,null,null,null,null,null,"N80 - Security and investigation activities"]
[null,null,null,null,null,null,null,null,null,null,null,null,null,null,null,null,null,null,null,null,null,null,null,null,"N80.1 - Private security activities"]
[null,null,null,null,null,null,null,null,null,null,null,null,null,null,null,null,null,null,null,null,null,null,null,null,"N80.1.0 - Private security activities"]
[null,null,null,null,null,null,null,null,null,null,null,null,null,null,null,null,null,null,null,null,null,null,null,null,"N80.2 - Security systems service activities"]
[null,null,null,null,null,null,null,null,null,null,null,null,null,null,null,null,null,null,null,null,null,null,null,null,"N80.2.0 - Security systems service activities"]
[null,null,null,null,null,null,null,null,null,null,null,null,null,null,null,null,null,null,null,null,null,null,null,null,"N80.3 - Investigation activities"]
[null,null,null,null,null,null,null,null,null,null,null,null,null,null,null,null,null,null,null,null,null,null,null,null,"N80.3.0 - Investigation activities"]
[null,null,null,null,null,null,null,null,null,null,null,null,null,null,null,null,null,null,null,null,null,null,null,null,"N81 - Services to buildings and landscape activities"]
[null,null,null,null,null,null,null,null,null,null,null,null,null,null,null,null,null,null,null,null,null,null,null,null,"N81.1 - Combined facilities support activities"]
[null,null,null,null,null,null,null,null,null,null,null,null,null,null,null,null,null,null,null,null,null,null,null,null,"N81.1.0 - Combined facilities support activities"]
[null,null,null,null,null,null,null,null,null,null,null,null,null,null,null,null,null,null,null,null,null,null,null,null,"N81.2 - Cleaning activities"]
[null,null,null,null,null,null,null,null,null,null,null,null,null,null,null,null,null,null,null,null,null,null,null,null,"N81.2.1 - General cleaning of buildings"]
[null,null,null,null,null,null,null,null,null,null,null,null,null,null,null,null,null,null,null,null,null,null,null,null,"N81.2.2 - Other building and industrial cleaning activities"]
[null,null,null,null,null,null,null,null,null,null,null,null,null,null,null,null,null,null,null,null,null,null,null,null,"N81.2.9 - Other cleaning activities"]
[null,null,null,null,null,null,null,null,null,null,null,null,null,null,null,null,null,null,null,null,null,null,null,null,"N81.3 - Landscape service activities"]
[null,null,null,null,null,null,null,null,null,null,null,null,null,null,null,null,null,null,null,null,null,null,null,null,"N81.3.0 - Landscape service activities"]
[null,null,null,null,null,null,null,null,null,null,null,null,null,null,null,null,null,null,null,null,null,null,null,null,"N82 - Office administrative, office support and other business support activities"]
[null,null,null,null,null,null,null,null,null,null,null,null,null,null,null,null,null,null,null,null,null,null,null,null,"N82.1 - Office administrative and support activities"]
[null,null,null,null,null,null,null,null,null,null,null,null,null,null,null,null,null,null,null,null,null,null,null,null,"N82.1.1 - Combined office administrative service activities"]
[null,null,null,null,null,null,null,null,null,null,null,null,null,null,null,null,null,null,null,null,null,null,null,null,"N82.1.9 - Photocopying, document preparation and other specialised office support activities"]
[null,null,null,null,null,null,null,null,null,null,null,null,null,null,null,null,null,null,null,null,null,null,null,null,"N82.2 - Activities of call centres"]
[null,null,null,null,null,null,null,null,null,null,null,null,null,null,null,null,null,null,null,null,null,null,null,null,"N82.2.0 - Activities of call centres"]
[null,null,null,null,null,null,null,null,null,null,null,null,null,null,null,null,null,null,null,null,null,null,null,null,"N82.3 - Organisation of conventions and trade shows"]
[null,null,null,null,null,null,null,null,null,null,null,null,null,null,null,null,null,null,null,null,null,null,null,null,"N82.3.0 - Organisation of conventions and trade shows"]
[null,null,null,null,null,null,null,null,null,null,null,null,null,null,null,null,null,null,null,null,null,null,null,null,"N82.9 - Business support service activities n.e.c."]
[null,null,null,null,null,null,null,null,null,null,null,null,null,null,null,null,null,null,null,null,null,null,null,null,"N82.9.1 - Activities of collection agencies and credit bureaus"]
[null,null,null,null,null,null,null,null,null,null,null,null,null,null,null,null,null,null,null,null,null,null,null,null,"N82.9.2 - Packaging activities"]
[null,null,null,null,null,null,null,null,null,null,null,null,null,null,null,null,null,null,null,null,null,null,null,null,"N82.9.9 - Other business support service activities n.e.c."]
[null,null,null,null,null,null,null,null,null,null,null,null,null,null,null,null,null,null,null,null,null,null,null,null,"O - Public administration and defence; compulsory social security"]
[null,null,null,null,null,null,null,null,null,null,null,null,null,null,null,null,null,null,null,null,null,null,null,null,"O84 - Public administration and defence; compulsory social security"]
[null,null,null,null,null,null,null,null,null,null,null,null,null,null,null,null,null,null,null,null,null,null,null,null,"O84.1 - Administration of the State and the economic and social policy of the community"]
[null,null,null,null,null,null,null,null,null,null,null,null,null,null,null,null,null,null,null,null,null,null,null,null,"O84.1.1 - General public administration activities"]
[null,null,null,null,null,null,null,null,null,null,null,null,null,null,null,null,null,null,null,null,null,null,null,null,"O84.1.2 - Regulation of the activities of providing health care, education, cultural services and other social services, excluding social security"]
[null,null,null,null,null,null,null,null,null,null,null,null,null,null,null,null,null,null,null,null,null,null,null,null,"O84.1.3 - Regulation of and contribution to more efficient operation of businesses"]
[null,null,null,null,null,null,null,null,null,null,null,null,null,null,null,null,null,null,null,null,null,null,null,null,"O84.2 - Provision of services to the community as a whole"]
[null,null,null,null,null,null,null,null,null,null,null,null,null,null,null,null,null,null,null,null,null,null,null,null,"O84.2.1 - Foreign affairs"]
[null,null,null,null,null,null,null,null,null,null,null,null,null,null,null,null,null,null,null,null,null,null,null,null,"O84.2.2 - Defence activities"]
[null,null,null,null,null,null,null,null,null,null,null,null,null,null,null,null,null,null,null,null,null,null,null,null,"O84.2.3 - Justice and judicial activities"]
[null,null,null,null,null,null,null,null,null,null,null,null,null,null,null,null,null,null,null,null,null,null,null,null,"O84.2.4 - Public order and safety activities"]
[null,null,null,null,null,null,null,null,null,null,null,null,null,null,null,null,null,null,null,null,null,null,null,null,"O84.2.5 - Fire service activities"]
[null,null,null,null,null,null,null,null,null,null,null,null,null,null,null,null,null,null,null,null,null,null,null,null,"O84.3 - Compulsory social security activities"]
[null,null,null,null,null,null,null,null,null,null,null,null,null,null,null,null,null,null,null,null,null,null,null,null,"O84.3.0 - Compulsory social security activities"]
[null,null,null,null,null,null,null,null,null,null,null,null,null,null,null,null,null,null,null,null,null,null,null,null,"P - Education"]
[null,null,null,null,null,null,null,null,null,null,null,null,null,null,null,null,null,null,null,null,null,null,null,null,"P85 - Education"]
[null,null,null,null,null,null,null,null,null,null,null,null,null,null,null,null,null,null,null,null,null,null,null,null,"P85.1 - Pre-primary education"]
[null,null,null,null,null,null,null,null,null,null,null,null,null,null,null,null,null,null,null,null,null,null,null,null,"P85.1.0 - Pre-primary education"]
[null,null,null,null,null,null,null,null,null,null,null,null,null,null,null,null,null,null,null,null,null,null,null,null,"P85.2 - Primary education"]
[null,null,null,null,null,null,null,null,null,null,null,null,null,null,null,null,null,null,null,null,null,null,null,null,"P85.2.0 - Primary education"]
[null,null,null,null,null,null,null,null,null,null,null,null,null,null,null,null,null,null,null,null,null,null,null,null,"P85.3 - Secondary education"]
[null,null,null,null,null,null,null,null,null,null,null,null,null,null,null,null,null,null,null,null,null,null,null,null,"P85.3.1 - General secondary education"]
[null,null,null,null,null,null,null,null,null,null,null,null,null,null,null,null,null,null,null,null,null,null,null,null,"P85.3.2 - Technical and vocational secondary education"]
[null,null,null,null,null,null,null,null,null,null,null,null,null,null,null,null,null,null,null,null,null,null,null,null,"P85.4 - Higher education"]
[null,null,null,null,null,null,null,null,null,null,null,null,null,null,null,null,null,null,null,null,null,null,null,null,"P85.4.1 - Post-secondary non-tertiary education"]
[null,null,null,null,null,null,null,null,null,null,null,null,null,null,null,null,null,null,null,null,null,null,null,null,"P85.4.2 - Tertiary education"]
[null,null,null,null,null,null,null,null,null,null,null,null,null,null,null,null,null,null,null,null,null,null,null,null,"P85.5 - Other education"]
[null,null,null,null,null,null,null,null,null,null,null,null,null,null,null,null,null,null,null,null,null,null,null,null,"P85.5.1 - Sports and recreation education"]
[null,null,null,null,null,null,null,null,null,null,null,null,null,null,null,null,null,null,null,null,null,null,null,null,"P85.5.2 - Cultural education"]
[null,null,null,null,null,null,null,null,null,null,null,null,null,null,null,null,null,null,null,null,null,null,null,null,"P85.5.3 - Driving school activities"]
[null,null,null,null,null,null,null,null,null,null,null,null,null,null,null,null,null,null,null,null,null,null,null,null,"P85.5.9 - Other education n.e.c."]
[null,null,null,null,null,null,null,null,null,null,null,null,null,null,null,null,null,null,null,null,null,null,null,null,"P85.6 - Educational support activities"]
[null,null,null,null,null,null,null,null,null,null,null,null,null,null,null,null,null,null,null,null,null,null,null,null,"P85.6.0 - Educational support activities"]
[null,null,null,null,null,null,null,null,null,null,null,null,null,null,null,null,null,null,null,null,null,null,null,null,"Q - Human health and social work activities"]
[null,null,null,null,null,null,null,null,null,null,null,null,null,null,null,null,null,null,null,null,null,null,null,null,"Q86 - Human health activities"]
[null,null,null,null,null,null,null,null,null,null,null,null,null,null,null,null,null,null,null,null,null,null,null,null,"Q86.1 - Hospital activities"]
[null,null,null,null,null,null,null,null,null,null,null,null,null,null,null,null,null,null,null,null,null,null,null,null,"Q86.1.0 - Hospital activities"]
[null,null,null,null,null,null,null,null,null,null,null,null,null,null,null,null,null,null,null,null,null,null,null,null,"Q86.2 - Medical and dental practice activities"]
[null,null,null,null,null,null,null,null,null,null,null,null,null,null,null,null,null,null,null,null,null,null,null,null,"Q86.2.1 - General medical practice activities"]
[null,null,null,null,null,null,null,null,null,null,null,null,null,null,null,null,null,null,null,null,null,null,null,null,"Q86.2.2 - Specialist medical practice activities"]
[null,null,null,null,null,null,null,null,null,null,null,null,null,null,null,null,null,null,null,null,null,null,null,null,"Q86.2.3 - Dental practice activities"]
[null,null,null,null,null,null,null,null,null,null,null,null,null,null,null,null,null,null,null,null,null,null,null,null,"Q86.9 - Other human health activities"]
[null,null,null,null,null,null,null,null,null,null,null,null,null,null,null,null,null,null,null,null,null,null,null,null,"Q86.9.0 - Other human health activities"]
[null,null,null,null,null,null,null,null,null,null,null,null,null,null,null,null,null,null,null,null,null,null,null,null,"Q87 - Residential care activities"]
[null,null,null,null,null,null,null,null,null,null,null,null,null,null,null,null,null,null,null,null,null,null,null,null,"Q87.1 - Residential nursing care activities"]
[null,null,null,null,null,null,null,null,null,null,null,null,null,null,null,null,null,null,null,null,null,null,null,null,"Q87.1.0 - Residential nursing care activities"]
[null,null,null,null,null,null,null,null,null,null,null,null,null,null,null,null,null,null,null,null,null,null,null,null,"Q87.2 - Residential care activities for mental retardation, mental health and substance abuse"]
[null,null,null,null,null,null,null,null,null,null,null,null,null,null,null,null,null,null,null,null,null,null,null,null,"Q87.2.0 - Residential care activities for mental retardation, mental health and substance abuse"]
[null,null,null,null,null,null,null,null,null,null,null,null,null,null,null,null,null,null,null,null,null,null,null,null,"Q87.3 - Residential care activities for the elderly and disabled"]
[null,null,null,null,null,null,null,null,null,null,null,null,null,null,null,null,null,null,null,null,null,null,null,null,"Q87.3.0 - Residential care activities for the elderly and disabled"]
[null,null,null,null,null,null,null,null,null,null,null,null,null,null,null,null,null,null,null,null,null,null,null,null,"Q87.9 - Other residential care activities"]
[null,null,null,null,null,null,null,null,null,null,null,null,null,null,null,null,null,null,null,null,null,null,null,null,"Q87.9.0 - Other residential care activities"]
[null,null,null,null,null,null,null,null,null,null,null,null,null,null,null,null,null,null,null,null,null,null,null,null,"Q88 - Social work activities without accommodation"]
[null,null,null,null,null,null,null,null,null,null,null,null,null,null,null,null,null,null,null,null,null,null,null,null,"Q88.1 - Social work activities without accommodation for the elderly and disabled"]
[null,null,null,null,null,null,null,null,null,null,null,null,null,null,null,null,null,null,null,null,null,null,null,null,"Q88.1.0 - Social work activities without accommodation for the elderly and disabled"]
[null,null,null,null,null,null,null,null,null,null,null,null,null,null,null,null,null,null,null,null,null,null,null,null,"Q88.9 - Other social work activities without accommodation"]
[null,null,null,null,null,null,null,null,null,null,null,null,null,null,null,null,null,null,null,null,null,null,null,null,"Q88.9.1 - Child day-care activities"]
[null,null,null,null,null,null,null,null,null,null,null,null,null,null,null,null,null,null,null,null,null,null,null,null,"Q88.9.9 - Other social work activities without accommodation n.e.c."]
[null,null,null,null,null,null,null,null,null,null,null,null,null,null,null,null,null,null,null,null,null,null,null,null,"R - Arts, entertainment and recreation"]
[null,null,null,null,null,null,null,null,null,null,null,null,null,null,null,null,null,null,null,null,null,null,null,null,"R90 - Creative, arts and entertainment activities"]
[null,null,null,null,null,null,null,null,null,null,null,null,null,null,null,null,null,null,null,null,null,null,null,null,"R90.0 - Creative, arts and entertainment activities"]
[null,null,null,null,null,null,null,null,null,null,null,null,null,null,null,null,null,null,null,null,null,null,null,null,"R90.0.1 - Performing arts"]
[null,null,null,null,null,null,null,null,null,null,null,null,null,null,null,null,null,null,null,null,null,null,null,null,"R90.0.2 - Support activities to performing arts"]
[null,null,null,null,null,null,null,null,null,null,null,null,null,null,null,null,null,null,null,null,null,null,null,null,"R90.0.3 - Artistic creation"]
[null,null,null,null,null,null,null,null,null,null,null,null,null,null,null,null,null,null,null,null,null,null,null,null,"R90.0.4 - Operation of arts facilities"]
[null,null,null,null,null,null,null,null,null,null,null,null,null,null,null,null,null,null,null,null,null,null,null,null,"R91 - Libraries, archives, museums and other cultural activities"]
[null,null,null,null,null,null,null,null,null,null,null,null,null,null,null,null,null,null,null,null,null,null,null,null,"R91.0 - Libraries, archives, museums and other cultural activities"]
[null,null,null,null,null,null,null,null,null,null,null,null,null,null,null,null,null,null,null,null,null,null,null,null,"R91.0.1 - Library and archives activities"]
[null,null,null,null,null,null,null,null,null,null,null,null,null,null,null,null,null,null,null,null,null,null,null,null,"R91.0.2 - Museums activities"]
[null,null,null,null,null,null,null,null,null,null,null,null,null,null,null,null,null,null,null,null,null,null,null,null,"R91.0.3 - Operation of historical sites and buildings and similar visitor attractions"]
[null,null,null,null,null,null,null,null,null,null,null,null,null,null,null,null,null,null,null,null,null,null,null,null,"R91.0.4 - Botanical and zoological gardens and nature reserves activities"]
[null,null,null,null,null,null,null,null,null,null,null,null,null,null,null,null,null,null,null,null,null,null,null,null,"R92 - Gambling and betting activities"]
[null,null,null,null,null,null,null,null,null,null,null,null,null,null,null,null,null,null,null,null,null,null,null,null,"R92.0 - Gambling and betting activities"]
[null,null,null,null,null,null,null,null,null,null,null,null,null,null,null,null,null,null,null,null,null,null,null,null,"R92.0.0 - Gambling and betting activities"]
[null,null,null,null,null,null,null,null,null,null,null,null,null,null,null,null,null,null,null,null,null,null,null,null,"R93 - Sports activities and amusement and recreation activities"]
[null,null,null,null,null,null,null,null,null,null,null,null,null,null,null,null,null,null,null,null,null,null,null,null,"R93.1 - Sports activities"]
[null,null,null,null,null,null,null,null,null,null,null,null,null,null,null,null,null,null,null,null,null,null,null,null,"R93.1.1 - Operation of sports facilities"]
[null,null,null,null,null,null,null,null,null,null,null,null,null,null,null,null,null,null,null,null,null,null,null,null,"R93.1.2 - Activities of sport clubs"]
[null,null,null,null,null,null,null,null,null,null,null,null,null,null,null,null,null,null,null,null,null,null,null,null,"R93.1.3 - Fitness facilities"]
[null,null,null,null,null,null,null,null,null,null,null,null,null,null,null,null,null,null,null,null,null,null,null,null,"R93.1.9 - Other sports activities"]
[null,null,null,null,null,null,null,null,null,null,null,null,null,null,null,null,null,null,null,null,null,null,null,null,"R93.2 - Amusement and recreation activities"]
[null,null,null,null,null,null,null,null,null,null,null,null,null,null,null,null,null,null,null,null,null,null,null,null,"R93.2.1 - Activities of amusement parks and theme parks"]
[null,null,null,null,null,null,null,null,null,null,null,null,null,null,null,null,null,null,null,null,null,null,null,null,"R93.2.9 - Other amusement and recreation activities"]
[null,null,null,null,null,null,null,null,null,null,null,null,null,null,null,null,null,null,null,null,null,null,null,null,"S - Other services activities"]
[null,null,null,null,null,null,null,null,null,null,null,null,null,null,null,null,null,null,null,null,null,null,null,null,"S94 - Activities of membership organisations"]
[null,null,null,null,null,null,null,null,null,null,null,null,null,null,null,null,null,null,null,null,null,null,null,null,"S94.1 - Activities of business, employers and professional membership organisations"]
[null,null,null,null,null,null,null,null,null,null,null,null,null,null,null,null,null,null,null,null,null,null,null,null,"S94.1.1 - Activities of business and employers membership organisations"]
[null,null,null,null,null,null,null,null,null,null,null,null,null,null,null,null,null,null,null,null,null,null,null,null,"S94.1.2 - Activities of professional membership organisations"]
[null,null,null,null,null,null,null,null,null,null,null,null,null,null,null,null,null,null,null,null,null,null,null,null,"S94.2 - Activities of trade unions"]
[null,null,null,null,null,null,null,null,null,null,null,null,null,null,null,null,null,null,null,null,null,null,null,null,"S94.2.0 - Activities of trade unions"]
[null,null,null,null,null,null,null,null,null,null,null,null,null,null,null,null,null,null,null,null,null,null,null,null,"S94.9 - Activities of other membership organisations"]
[null,null,null,null,null,null,null,null,null,null,null,null,null,null,null,null,null,null,null,null,null,null,null,null,"S94.9.1 - Activities of religious organisations"]
[null,null,null,null,null,null,null,null,null,null,null,null,null,null,null,null,null,null,null,null,null,null,null,null,"S94.9.2 - Activities of political organisations"]
[null,null,null,null,null,null,null,null,null,null,null,null,null,null,null,null,null,null,null,null,null,null,null,null,"S94.9.9 - Activities of other membership organisations n.e.c."]
[null,null,null,null,null,null,null,null,null,null,null,null,null,null,null,null,null,null,null,null,null,null,null,null,"S95 - Repair of computers and personal and household goods"]
[null,null,null,null,null,null,null,null,null,null,null,null,null,null,null,null,null,null,null,null,null,null,null,null,"S95.1 - Repair of computers and communication equipment"]
[null,null,null,null,null,null,null,null,null,null,null,null,null,null,null,null,null,null,null,null,null,null,null,null,"S95.1.1 - Repair of computers and peripheral equipment"]
[null,null,null,null,null,null,null,null,null,null,null,null,null,null,null,null,null,null,null,null,null,null,null,null,"S95.1.2 - Repair of communication equipment"]
[null,null,null,null,null,null,null,null,null,null,null,null,null,null,null,null,null,null,null,null,null,null,null,null,"S95.2 - Repair of personal and household goods"]
[null,null,null,null,null,null,null,null,null,null,null,null,null,null,null,null,null,null,null,null,null,null,null,null,"S95.2.1 - Repair of consumer electronics"]
[null,null,null,null,null,null,null,null,null,null,null,null,null,null,null,null,null,null,null,null,null,null,null,null,"S95.2.2 - Repair of household appliances and home and garden equipment"]
[null,null,null,null,null,null,null,null,null,null,null,null,null,null,null,null,null,null,null,null,null,null,null,null,"S95.2.3 - Repair of footwear and leather goods"]
[null,null,null,null,null,null,null,null,null,null,null,null,null,null,null,null,null,null,null,null,null,null,null,null,"S95.2.4 - Repair of furniture and home furnishings"]
[null,null,null,null,null,null,null,null,null,null,null,null,null,null,null,null,null,null,null,null,null,null,null,null,"S95.2.5 - Repair of watches, clocks and jewellery"]
[null,null,null,null,null,null,null,null,null,null,null,null,null,null,null,null,null,null,null,null,null,null,null,null,"S95.2.9 - Repair of other personal and household goods"]
[null,null,null,null,null,null,null,null,null,null,null,null,null,null,null,null,null,null,null,null,null,null,null,null,"S96 - Other personal service activities"]
[null,null,null,null,null,null,null,null,null,null,null,null,null,null,null,null,null,null,null,null,null,null,null,null,"S96.0 - Other personal service activities"]
[null,null,null,null,null,null,null,null,null,null,null,null,null,null,null,null,null,null,null,null,null,null,null,null,"S96.0.1 - Washing and (dry-)cleaning of textile and fur products"]
[null,null,null,null,null,null,null,null,null,null,null,null,null,null,null,null,null,null,null,null,null,null,null,null,"S96.0.2 - Hairdressing and other beauty treatment"]
[null,null,null,null,null,null,null,null,null,null,null,null,null,null,null,null,null,null,null,null,null,null,null,null,"S96.0.3 - Funeral and related activities"]
[null,null,null,null,null,null,null,null,null,null,null,null,null,null,null,null,null,null,null,null,null,null,null,null,"S96.0.4 - Physical well-being activities"]
[null,null,null,null,null,null,null,null,null,null,null,null,null,null,null,null,null,null,null,null,null,null,null,null,"S96.0.9 - Other personal service activities n.e.c."]
[null,null,null,null,null,null,null,null,null,null,null,null,null,null,null,null,null,null,null,null,null,null,null,null,"T - Activities of households as employers; undifferentiated goods - and services - producing activities of households for own use"]
[null,null,null,null,null,null,null,null,null,null,null,null,null,null,null,null,null,null,null,null,null,null,null,null,"T97 - Activities of households as employers of domestic personnel"]
[null,null,null,null,null,null,null,null,null,null,null,null,null,null,null,null,null,null,null,null,null,null,null,null,"T97.0 - Activities of households as employers of domestic personnel"]
[null,null,null,null,null,null,null,null,null,null,null,null,null,null,null,null,null,null,null,null,null,null,null,null,"T97.0.0 - Activities of households as employers of domestic personnel"]
[null,null,null,null,null,null,null,null,null,null,null,null,null,null,null,null,null,null,null,null,null,null,null,null,"T98 - Undifferentiated goods- and services-producing activities of private households for own use"]
[null,null,null,null,null,null,null,null,null,null,null,null,null,null,null,null,null,null,null,null,null,null,null,null,"T98.1 - Undifferentiated goods-producing activities of private households for own use"]
[null,null,null,null,null,null,null,null,null,null,null,null,null,null,null,null,null,null,null,null,null,null,null,null,"T98.1.0 - Undifferentiated goods-producing activities of private households for own use"]
[null,null,null,null,null,null,null,null,null,null,null,null,null,null,null,null,null,null,null,null,null,null,null,null,"T98.2 - Undifferentiated service-producing activities of private households for own use"]
[null,null,null,null,null,null,null,null,null,null,null,null,null,null,null,null,null,null,null,null,null,null,null,null,"T98.2.0 - Undifferentiated service-producing activities of private households for own use"]
[null,null,null,null,null,null,null,null,null,null,null,null,null,null,null,null,null,null,null,null,null,null,null,null,"U - Activities of extraterritorial organisations and bodies"]
[null,null,null,null,null,null,null,null,null,null,null,null,null,null,null,null,null,null,null,null,null,null,null,null,"U99 - Activities of extraterritorial organisations and bodies"]
[null,null,null,null,null,null,null,null,null,null,null,null,null,null,null,null,null,null,null,null,null,null,null,null,"U99.0 - Activities of extraterritorial organisations and bodies"]
[null,null,null,null,null,null,null,null,null,null,null,null,null,null,null,null,null,null,null,null,null,null,null,null,"U99.0.0 - Activities of extraterritorial organisations and bodies"]

{"sheet":"FC.00.00.36","index":5,"n_rows":25,"n_cols":10,"rows_kept":25,"cut":false,"hidden":true,"merged":[[1,1,1,14],[4,1,4,11],[8,3,9,3],[10,3,11,3]]}
[]
[null,"Content of the submission"]
[]
[]
[null,"FC.00.00.36.01 - Content of the submission"]
[]
[]
[]
[null,null,null,"Columns"]
[]
[null,null,null,"Reporting status"]
[]
[null,null,null,"FC0010",null,null,null,null,{"$f":"Show!$B$2&\"FC.00.00.36.01 Rows {\"&COLUMN($C$1)&\"}\"&\"@ForceFilingCode:true\"","v":"!FC.00.00.36.01 Rows {3}@ForceFilingCode:true"},{"$f":"Show!$B$2&\"FC.00.00.36.01 Columns {\"&COLUMN($D$1)&\"}\"","v":"!FC.00.00.36.01 Columns {4}"}]
[null,"Rows",""]
[null,"Template Code - Template name","AR0009"]
[null,"FC.00.01.36 - Summary template","FR0010"]
[null,"FC.01.01.36 - Equity-type transactions, debt and asset transfer","FR0020"]
[null,"FC.02.01.36 - IGT - Derivatives","FR0030"]
[null,"FC.03.01.36 - IGT - Off-balance sheet and contingent liabilities","FR0040"]
[null,"FC.04.01.36 - IGT - Insurance and Reinsurance","FR0050"]
[null,"FC.05.01.36 - IGT - P&L","FR0060"]
[null,"FC.06.01.36 - Risk concentration - Exposure to Counterparties","FR0070"]
[null,"FC.07.01.36 - Risk concentration - Exposure by currency, sector, country","FR0080"]
[null,"FC.08.01.36 - Risk concentration - Exposure by asset class and rating","FR0090"]
[null,null,null,null,null,null,null,null,{"$f":"Show!$B$2&Show!$B$2&\"FC.00.00.36.01 Rows {\"&COLUMN($C$1)&\"}\"","v":"!!FC.00.00.36.01 Rows {3}"},{"$f":"Show!$B$2&Show!$B$2&\"FC.00.00.36.01 Columns {\"&COLUMN($D$1)&\"}\"","v":"!!FC.00.00.36.01 Columns {4}"}]

{"sheet":"FC.00.01.36","index":6,"n_rows":60,"n_cols":21,"rows_kept":60,"cut":false,"hidden":true,"merged":[[40,10,41,10],[40,11,41,11],[39,3,39,5],[39,6,39,8],[39,9,39,11],[40,3,41,3],[40,4,41,4],[40,5,41,5],[40,6,41,6],[40,7,41,7],[40,8,41,8],[40,9,41,9],[37,3,38,11],[1,1,1,14],[4,1,4,11],[8,3,9,3],[10,3,11,3],[33,1,33,11]]}
[]
[null,"Summary template"]
[]
[]
[null,"FC.00.01.36.01 - Summary template"]
[]
[]
[]
[null,null,null,"Columns"]
[]
[null,null,null,"Report information"]
[]
[null,null,null,"FC0010",null,null,null,null,null,null,null,null,null,null,null,null,null,null,null,{"$f":"Show!$B$3&\"FC.00.01.36.01 Rows {\"&COLUMN($C$1)&\"}\"&\"@ForceFilingCode:true\"","v":"!FC.00.01.36.01 Rows {3}@ForceFilingCode:true"},{"$f":"Show!$B$3&\"FC.00.01.36.01 Columns {\"&COLUMN($D$1)&\"}\"","v":"!FC.00.01.36.01 Columns {4}"}]
[null,"Rows",""]
[null,"Financial conglomerate name","FR0010"]
[null,"Group identification code","FR0011"]
[null,"Thresholds for significant IGTs","AR0020"]
[null,"First threshold for significant IGT","FR0021"]
[null,"Second threshold for significant IGT","FR0022"]
[null,"Third threshold for significant IGT","FR0023"]
[null,"Quantitative limit (art. 7(3))","FR0030"]
[null,"For IGT and risk concentration","AR0039"]
[null,"Reporting unit","FR0040"]
[null,"Reporting currency","FR0050"]
[null,"Reporting submission date","FR0060"]
[null,"Financial year end","FR0070"]
[null,"Reporting reference date","FR0080"]
[null,"Initial submission or re-submission","FR0090"]
[null,"Ad hoc XBRL technical field 1","FR0990"]
[null,"Ad hoc XBRL technical field 2","FR0991"]
[null,"Ad hoc XBRL technical field 3","FR0992"]
[null,null,null,null,null,null,null,null,null,null,null,null,null,null,null,null,null,null,null,{"$f":"Show!$B$3&Show!$B$3&\"FC.00.01.36.01 Rows {\"&COLUMN($C$1)&\"}\"","v":"!!FC.00.01.36.01 Rows {3}"},{"$f":"Show!$B$3&Show!$B$3&\"FC.00.01.36.01 Columns {\"&COLUMN($D$1)&\"}\"","v":"!!FC.00.01.36.01 Columns {4}"}]
[]
[null,"FC.00.01.36.02 - Summary template"]
[]
[]
[]
[null,null,null,"Columns"]
[]
[null,null,null,"Intragroup transactions from the insurance sector",null,null,"Intragroup transactions from the bank sector",null,null,"Intragroup transactions from other undertakings of the group"]
[null,null,null,"To the banking sector","To the insurance sector","To other undertakings of the group","To the banking sector","To the insurance sector","To other undertakings of the group","To the banking sector","To the insurance sector","To other undertakings of the group"]
[]
[null,null,null,"FC0010","FC0020","FC0030","FC0040","FC0050","FC0060","FC0070","FC0080","FC0090",null,null,null,null,null,null,null,{"$f":"Show!$B$3&\"FC.00.01.36.02 Rows {\"&COLUMN($C$1)&\"}\"&\"@ForceFilingCode:true\"","v":"!FC.00.01.36.02 Rows {3}@ForceFilingCode:true"},{"$f":"Show!$B$3&\"FC.00.01.36.02 Columns {\"&COLUMN($D$1)&\"}\"","v":"!FC.00.01.36.02 Columns {4}"}]
[null,"Rows",""]
[null,"Information on intragroup transactions","AR0009"]
[null,"A - Equity-type transactions, debt, asset transfer and derivatives","FR0010"]
[null,"1 - Debt instruments","FR0020"]
[null,"2 - Capital instruments","FR0030"]
[null,"3 - Other asset transfer","FR0040"]
[null,"4 - Derivatives","FR0050"]
[null,"B - Off-balance-sheet and contingent liabilities","FR0060"]
[null,"5 - Guarantees","FR0070"]
[null,"6 - Other off balance sheet item","FR0080"]
[null,"C - Insurance/reinsurance transactions","FR0090"]
[null,"D - P&L transactions","FR0100"]
[null,"7 - Commissions paid to business providers","FR0110"]
[null,"8 - Fees and others","FR0120"]
[null,"9 - Interests","FR0130"]
[null,"10 - Dividends","FR0140"]
[null,null,null,null,null,null,null,null,null,null,null,null,null,null,null,null,null,null,null,{"$f":"Show!$B$3&Show!$B$3&\"FC.00.01.36.02 Rows {\"&COLUMN($C$1)&\"}\"","v":"!!FC.00.01.36.02 Rows {3}"},{"$f":"Show!$B$3&Show!$B$3&\"FC.00.01.36.02 Columns {\"&COLUMN($L$1)&\"}\"","v":"!!FC.00.01.36.02 Columns {12}"}]

{"sheet":"FC.01.01.36","index":7,"n_rows":18,"n_cols":44,"rows_kept":18,"cut":false,"hidden":true,"merged":[[13,14,13,15],[13,16,13,19],[13,20,13,21],[1,1,1,14],[4,1,4,11],[10,1,14,1],[10,2,14,2],[10,3,14,3],[10,4,14,4],[10,5,14,5],[10,6,11,22],[12,6,12,11],[12,12,12,13],[12,14,12,21],[12,22,14,22],[13,6,13,9],[13,10,14,10],[13,11,14,11],[13,12,13,13]]}
[]
[null,"IGT - Equity-type transactions, debt and asset transfer"]
[]
[]
[null,"FC.01.01.36.01 - Equity-type transactions, debt and asset transfer"]
[]
[null,"Sheets",null,null,null,null,null,null,null,null,null,null,null,null,null,null,null,null,null,null,null,null,null,null,null,null,null,null,null,null,null,null,null,null,null,null,null,null,null,null,null,null,{"$f":"Show!$B$4&\"FC.01.01.36.01 Table label {\"&COLUMN($C$1)&\"}\"","v":"!FC.01.01.36.01 Table label {3}"},{"$f":"Show!$B$4&\"FC.01.01.36.01 Table value {\"&COLUMN($D$1)&\"}\"","v":"!FC.01.01.36.01 Table value {4}"}]
[null,"Z Axis:","Z0001",1]
[null,null,null,null,null,null,null,null,null,null,null,null,null,null,null,null,null,null,null,null,null,null,null,null,null,null,null,null,null,null,null,null,null,null,null,null,null,null,null,null,null,null,{"$f":"Show!$B$4&Show!$B$4&\"FC.01.01.36.01 Table label {\"&COLUMN($C$1)&\"}\"","v":"!!FC.01.01.36.01 Table label {3}"},{"$f":"Show!$B$4&Show!$B$4&\"FC.01.01.36.01 Table value {\"&COLUMN($D$1)&\"}\"","v":"!!FC.01.01.36.01 Table value {4}"}]
[]
[null,"Line identification","ID of intra-group transaction","ID code and type of code of the instrument","Identification code and type of code for investor/ lender","Identification code and type of code for issuer / borrower","Columns"]
[]
[null,null,null,null,null,null,"Identification of the transaction",null,null,null,null,null,"Identification of the instrument",null,"Characteristics of the transaction",null,null,null,null,null,null,null,"Comments"]
[null,null,null,null,null,null,"Identification of the parties involved",null,null,null,"Indirect transactions","Single economic operation","Description of the instrument",null,"Maturity of the transaction",null,"Amount of the transaction",null,null,null,"Associated P&L"]
[null,null,null,null,null,null,"Investor / lender name","Sector of the investor / lender","Issuer / borrower name","Sector of the issuer / borrower",null,null,"Type of instrument","Instrument","Issue date","Maturity date","Currency of transaction","Amount at transaction date","Amount at reporting date","Value of collateral","Amount of dividends/interest/coupon and other payments","Coupon/ interest rate"]
[null,"FC0001","FC0010","FC0100","FC0030","FC0060","FC0020","FC0040","FC0050","FC0070","FC0080","FC0090","FC0110","FC0120","FC0130","FC0140","FC0150","FC0160","FC0170","FC0180","FC0190","FC0200","FC0210",null,null,null,null,null,null,null,null,null,null,null,null,null,null,null,null,null,null,null,{"$f":"Show!$B$4&\"FC.01.01.36.01 Rows {\"&COLUMN($B$1)&\"}\"&\"@ForceFilingCode:true\"","v":"!FC.01.01.36.01 Rows {2}@ForceFilingCode:true"},{"$f":"Show!$B$4&\"FC.01.01.36.01 Columns {\"&COLUMN($B$1)&\"}\"","v":"!FC.01.01.36.01 Columns {2}"}]
[]
[null,null,null,null,null,null,null,null,null,null,null,null,null,null,null,null,null,null,null,null,null,null,null,null,null,null,null,null,null,null,null,null,null,null,null,null,null,null,null,null,null,null,{"$f":"Show!$B$4&Show!$B$4&\"FC.01.01.36.01 Rows {\"&COLUMN($B$1)&\"}\"","v":"!!FC.01.01.36.01 Rows {2}"},{"$f":"Show!$B$4&Show!$B$4&\"FC.01.01.36.01 Columns {\"&COLUMN($W$1)&\"}\"","v":"!!FC.01.01.36.01 Columns {23}"}]

{"sheet":"FC.02.01.36","index":8,"n_rows":18,"n_cols":51,"rows_kept":18,"cut":false,"hidden":true,"merged":[[13,15,13,16],[13,17,13,20],[13,21,13,26],[1,1,1,14],[4,1,4,11],[10,1,14,1],[10,2,14,2],[10,3,14,3],[10,4,14,4],[10,5,14,5],[10,6,11,28],[12,6,12,11],[12,12,12,14],[12,15,12,27],[12,28,14,28],[13,6,13,9],[13,10,14,10],[13,11,14,11],[13,12,13,14]]}
[]
[null,"IGT - Derivatives"]
[]
[]
[null,"FC.02.01.36.01 - IGT - Derivatives"]
[]
[null,"Sheets",null,null,null,null,null,null,null,null,null,null,null,null,null,null,null,null,null,null,null,null,null,null,null,null,null,null,null,null,null,null,null,null,null,null,null,null,null,null,null,null,null,null,null,null,null,null,null,{"$f":"Show!$B$5&\"FC.02.01.36.01 Table label {\"&COLUMN($C$1)&\"}\"","v":"!FC.02.01.36.01 Table label {3}"},{"$f":"Show!$B$5&\"FC.02.01.36.01 Table value {\"&COLUMN($D$1)&\"}\"","v":"!FC.02.01.36.01 Table value {4}"}]
[null,"Z Axis:","Z0001",1]
[null,null,null,null,null,null,null,null,null,null,null,null,null,null,null,null,null,null,null,null,null,null,null,null,null,null,null,null,null,null,null,null,null,null,null,null,null,null,null,null,null,null,null,null,null,null,null,null,null,{"$f":"Show!$B$5&Show!$B$5&\"FC.02.01.36.01 Table label {\"&COLUMN($C$1)&\"}\"","v":"!!FC.02.01.36.01 Table label {3}"},{"$f":"Show!$B$5&Show!$B$5&\"FC.02.01.36.01 Table value {\"&COLUMN($D$1)&\"}\"","v":"!!FC.02.01.36.01 Table value {4}"}]
[]
[null,"Line identification","ID of the intra-group transaction","ID code and type of code of the instrument","Identification code and type of code of investor / buyer","Identification code and type of code of the issuer / seller","Columns"]
[]
[null,null,null,null,null,null,"Identification of the transaction",null,null,null,null,null,"Identification of the instrument",null,null,"Characteristics of the transaction",null,null,null,null,null,null,null,null,null,null,null,null,"Comments"]
[null,null,null,null,null,null,"Identification of the parties involved",null,null,null,"Indirect transactions","Single economic operation","Description of the instrument",null,null,"Maturity of the transaction",null,"Amount of the transaction",null,null,null,"Underlyings",null,null,null,null,null,"Associated P&L"]
[null,null,null,null,null,null,"Investor / Buyer name","Sector of the investor / buyer","Issuer / Seller name","Financial sector of the issuer / seller",null,null,"Type of the instrument","Type of protection","Purpose of the instrument","Starting date","Maturity date","Currency of transaction","Notional amount","Carrying amount","Value of collateral","Identification code and type of code Asset / Liability underlying the derivative","Counterparty name for which credit protection is purchased","Swap delivered interest rate (for buyer)","Swap received interest rate (for buyer)","Swap delivered currency (for buyer)","Swap received currency (for buyer)","Revenues stemming from derivatives"]
[null,"FC0001","FC0010","FC0100","FC0030","FC0060","FC0020","FC0040","FC0050","FC0070","FC0080","FC0090","FC0110","FC0120","FC0130","FC0140","FC0150","FC0160","FC0170","FC0180","FC0190","FC0200","FC0210","FC0220","FC0230","FC0240","FC0250","FC0260","FC0270",null,null,null,null,null,null,null,null,null,null,null,null,null,null,null,null,null,null,null,null,{"$f":"Show!$B$5&\"FC.02.01.36.01 Rows {\"&COLUMN($B$1)&\"}\"&\"@ForceFilingCode:true\"","v":"!FC.02.01.36.01 Rows {2}@ForceFilingCode:true"},{"$f":"Show!$B$5&\"FC.02.01.36.01 Columns {\"&COLUMN($B$1)&\"}\"","v":"!FC.02.01.36.01 Columns {2}"}]
[]
[null,null,null,null,null,null,null,null,null,null,null,null,null,null,null,null,null,null,null,null,null,null,null,null,null,null,null,null,null,null,null,null,null,null,null,null,null,null,null,null,null,null,null,null,null,null,null,null,null,{"$f":"Show!$B$5&Show!$B$5&\"FC.02.01.36.01 Rows {\"&COLUMN($B$1)&\"}\"","v":"!!FC.02.01.36.01 Rows {2}"},{"$f":"Show!$B$5&Show!$B$5&\"FC.02.01.36.01 Columns {\"&COLUMN($AC$1)&\"}\"","v":"!!FC.02.01.36.01 Columns {29}"}]

{"sheet":"FC.03.01.36","index":9,"n_rows":18,"n_cols":40,"rows_kept":18,"cut":false,"hidden":true,"merged":[[13,14,13,19],[1,1,1,14],[4,1,4,11],[10,1,14,1],[10,2,14,2],[10,3,14,3],[10,4,14,4],[10,5,11,21],[12,5,12,10],[12,11,12,20],[12,21,14,21],[13,5,13,8],[13,9,14,9],[13,10,14,10],[13,11,14,11],[13,12,13,13]]}
[]
[null,"IGT - Off-balance sheet and contingent liabilities"]
[]
[]
[null,"FC.03.01.36.01 - IGT - Off-balance sheet and contingent liabilities"]
[]
[null,"Sheets",null,null,null,null,null,null,null,null,null,null,null,null,null,null,null,null,null,null,null,null,null,null,null,null,null,null,null,null,null,null,null,null,null,null,null,null,{"$f":"Show!$B$6&\"FC.03.01.36.01 Table label {\"&COLUMN($C$1)&\"}\"","v":"!FC.03.01.36.01 Table label {3}"},{"$f":"Show!$B$6&\"FC.03.01.36.01 Table value {\"&COLUMN($D$1)&\"}\"","v":"!FC.03.01.36.01 Table value {4}"}]
[null,"Z Axis:","Z0001",1]
[null,null,null,null,null,null,null,null,null,null,null,null,null,null,null,null,null,null,null,null,null,null,null,null,null,null,null,null,null,null,null,null,null,null,null,null,null,null,{"$f":"Show!$B$6&Show!$B$6&\"FC.03.01.36.01 Table label {\"&COLUMN($C$1)&\"}\"","v":"!!FC.03.01.36.01 Table label {3}"},{"$f":"Show!$B$6&Show!$B$6&\"FC.03.01.36.01 Table value {\"&COLUMN($D$1)&\"}\"","v":"!!FC.03.01.36.01 Table value {4}"}]
[]
[null,"Line identification","Id of intra-group transaction","Identification code and type of code of the provider","Identification code and type of code of the beneficiary","Columns"]
[]
[null,null,null,null,null,"Identification of the transaction",null,null,null,null,null,"Characteristics of the transaction",null,null,null,null,null,null,null,null,null,"Comments"]
[null,null,null,null,null,"Identification of the parties involved",null,null,null,"Indirect transactions","Single economic operation","Transaction type","Maturity of the transaction",null,"Value of the transaction",null,null,null,null,null,"Associated P&L"]
[null,null,null,null,null,"Provider name","Financial sector of the provider","Beneficiary name","Financial sector of the beneficiary",null,null,null,"Transaction issue date","Expiry date of agreement / contract underlying transaction","Currency of transaction","Trigger event","Value of transaction at starting date","Value of transaction at reporting date","Maximum possible value of contingent liabilities","Value of guaranteed assets","Revenues stemming from the off-balance sheet items"]
[null,"FC0001","FC0010","FC0030","FC0060","FC0020","FC0040","FC0050","FC0070","FC0080","FC0090","FC0100","FC0110","FC0120","FC0130","C0140","C0150","C0160","C0170","FC0180","FC0190","FC0200",null,null,null,null,null,null,null,null,null,null,null,null,null,null,null,null,{"$f":"Show!$B$6&\"FC.03.01.36.01 Rows {\"&COLUMN($B$1)&\"}\"&\"@ForceFilingCode:true\"","v":"!FC.03.01.36.01 Rows {2}@ForceFilingCode:true"},{"$f":"Show!$B$6&\"FC.03.01.36.01 Columns {\"&COLUMN($B$1)&\"}\"","v":"!FC.03.01.36.01 Columns {2}"}]
[]
[null,null,null,null,null,null,null,null,null,null,null,null,null,null,null,null,null,null,null,null,null,null,null,null,null,null,null,null,null,null,null,null,null,null,null,null,null,null,{"$f":"Show!$B$6&Show!$B$6&\"FC.03.01.36.01 Rows {\"&COLUMN($B$1)&\"}\"","v":"!!FC.03.01.36.01 Rows {2}"},{"$f":"Show!$B$6&Show!$B$6&\"FC.03.01.36.01 Columns {\"&COLUMN($V$1)&\"}\"","v":"!!FC.03.01.36.01 Columns {22}"}]

{"sheet":"FC.04.01.36","index":10,"n_rows":18,"n_cols":44,"rows_kept":18,"cut":false,"hidden":true,"merged":[[13,15,13,18],[13,19,13,21],[13,22,14,22],[1,1,1,14],[4,1,4,11],[10,1,14,1],[10,2,14,2],[10,3,14,3],[10,4,14,4],[10,5,11,23],[12,5,12,10],[12,11,12,12],[12,13,12,22],[12,23,14,23],[13,5,13,8],[13,9,14,9],[13,10,14,10],[13,11,13,12],[13,13,13,14]]}
[]
[null,"IGT - Insurance-reinsurance"]
[]
[]
[null,"FC.04.01.36.01 - IGT - Insurance-reinsurance"]
[]
[null,"Sheets",null,null,null,null,null,null,null,null,null,null,null,null,null,null,null,null,null,null,null,null,null,null,null,null,null,null,null,null,null,null,null,null,null,null,null,null,null,null,null,null,{"$f":"Show!$B$7&\"FC.04.01.36.01 Table label {\"&COLUMN($C$1)&\"}\"","v":"!FC.04.01.36.01 Table label {3}"},{"$f":"Show!$B$7&\"FC.04.01.36.01 Table value {\"&COLUMN($D$1)&\"}\"","v":"!FC.04.01.36.01 Table value {4}"}]
[null,"Z Axis:","Z0001",1]
[null,null,null,null,null,null,null,null,null,null,null,null,null,null,null,null,null,null,null,null,null,null,null,null,null,null,null,null,null,null,null,null,null,null,null,null,null,null,null,null,null,null,{"$f":"Show!$B$7&Show!$B$7&\"FC.04.01.36.01 Table label {\"&COLUMN($C$1)&\"}\"","v":"!!FC.04.01.36.01 Table label {3}"},{"$f":"Show!$B$7&Show!$B$7&\"FC.04.01.36.01 Table value {\"&COLUMN($D$1)&\"}\"","v":"!!FC.04.01.36.01 Table value {4}"}]
[]
[null,"Line identification","ID of the intra-group transaction","Identification code and type of code for insured party / cedent","Identification code and type of code of the insurer / reinsurer","Columns"]
[]
[null,null,null,null,null,"Identification of the transaction",null,null,null,null,null,"Identification of the instrument",null,"Characteristics of the transaction",null,null,null,null,null,null,null,null,null,"Comments"]
[null,null,null,null,null,"Identification of the parties involved",null,null,null,"Indirect transactions","Single economic operation","Description of the instrument",null,"Validity period of the transaction",null,"Amount of the transaction",null,null,null,"Associated P&L",null,null,"Line of business"]
[null,null,null,null,null,"Insured party / Cedent name","Sector of the insured party / cedent","Insurer / Reinsurer name","Sector of the insurer / reinsurer",null,null,"Type of transaction","Transaction","Starting date","Expiry date","Currency of transaction","Maximum cover by transaction","Net receivables","Total reinsurance recoverables","Reinsurance technical result (for reinsurance)","Premiums (for insurance)","Claims (for insurance)"]
[null,"FC0001","FC0010","FC0030","FC0060","FC0020","FC0040","FC0050","FC0070","FC0080","FC0090","FC0100","FC0110","FC0120","FC0130","FC0140","FC0150","FC0160","FC0170","FC0180","FC0190","FC0200","FC0210","FC0220",null,null,null,null,null,null,null,null,null,null,null,null,null,null,null,null,null,null,{"$f":"Show!$B$7&\"FC.04.01.36.01 Rows {\"&COLUMN($B$1)&\"}\"&\"@ForceFilingCode:true\"","v":"!FC.04.01.36.01 Rows {2}@ForceFilingCode:true"},{"$f":"Show!$B$7&\"FC.04.01.36.01 Columns {\"&COLUMN($B$1)&\"}\"","v":"!FC.04.01.36.01 Columns {2}"}]
[]
[null,null,null,null,null,null,null,null,null,null,null,null,null,null,null,null,null,null,null,null,null,null,null,null,null,null,null,null,null,null,null,null,null,null,null,null,null,null,null,null,null,null,{"$f":"Show!$B$7&Show!$B$7&\"FC.04.01.36.01 Rows {\"&COLUMN($B$1)&\"}\"","v":"!!FC.04.01.36.01 Rows {2}"},{"$f":"Show!$B$7&Show!$B$7&\"FC.04.01.36.01 Columns {\"&COLUMN($X$1)&\"}\"","v":"!!FC.04.01.36.01 Columns {24}"}]

{"sheet":"FC.05.01.36","index":11,"n_rows":17,"n_cols":32,"rows_kept":17,"cut":false,"hidden":true,"merged":[[12,11,12,12],[12,13,12,15],[12,16,13,16],[1,1,1,14],[4,1,4,11],[10,1,13,1],[10,2,13,2],[10,3,13,3],[10,4,13,4],[10,5,11,16],[12,5,12,8],[12,9,13,9],[12,10,13,10]]}
[]
[null,"IGT - P&L"]
[]
[]
[null,"FC.05.01.36.01 - IGT - P&L"]
[]
[null,"Sheets",null,null,null,null,null,null,null,null,null,null,null,null,null,null,null,null,null,null,null,null,null,null,null,null,null,null,null,null,{"$f":"Show!$B$8&\"FC.05.01.36.01 Table label {\"&COLUMN($C$1)&\"}\"","v":"!FC.05.01.36.01 Table label {3}"},{"$f":"Show!$B$8&\"FC.05.01.36.01 Table value {\"&COLUMN($D$1)&\"}\"","v":"!FC.05.01.36.01 Table value {4}"}]
[null,"Z Axis:","Z0001",1]
[null,null,null,null,null,null,null,null,null,null,null,null,null,null,null,null,null,null,null,null,null,null,null,null,null,null,null,null,null,null,{"$f":"Show!$B$8&Show!$B$8&\"FC.05.01.36.01 Table label {\"&COLUMN($C$1)&\"}\"","v":"!!FC.05.01.36.01 Table label {3}"},{"$f":"Show!$B$8&Show!$B$8&\"FC.05.01.36.01 Table value {\"&COLUMN($D$1)&\"}\"","v":"!!FC.05.01.36.01 Table value {4}"}]
[]
[null,"Line identification","Id of intra-group transaction","Identification code and type of code for revenue side","Identification code and type of code for expense side","Columns"]
[]
[null,null,null,null,null,"Identification of the parties involved",null,null,null,"Indirect transactions","Single economic operation","Identification of the instrument",null,"Characteristics of the transaction",null,null,"Comments"]
[null,null,null,null,null,"Revenue side name","Sector of the revenue side","Expense side name","Sector of the expense side",null,null,"Type of transaction","Transaction","Currency of transaction","Transaction date","Amount"]
[null,"FC0001","FC0010","FC0030","FC0060","FC0020","FC0040","FC0050","FC0070","FC0080","FC0090","FC0100","FC0110","FC0120","FC0130","FC0140","FC0150",null,null,null,null,null,null,null,null,null,null,null,null,null,{"$f":"Show!$B$8&\"FC.05.01.36.01 Rows {\"&COLUMN($B$1)&\"}\"&\"@ForceFilingCode:true\"","v":"!FC.05.01.36.01 Rows {2}@ForceFilingCode:true"},{"$f":"Show!$B$8&\"FC.05.01.36.01 Columns {\"&COLUMN($B$1)&\"}\"","v":"!FC.05.01.36.01 Columns {2}"}]
[]
[null,null,null,null,null,null,null,null,null,null,null,null,null,null,null,null,null,null,null,null,null,null,null,null,null,null,null,null,null,null,{"$f":"Show!$B$8&Show!$B$8&\"FC.05.01.36.01 Rows {\"&COLUMN($B$1)&\"}\"","v":"!!FC.05.01.36.01 Rows {2}"},{"$f":"Show!$B$8&Show!$B$8&\"FC.05.01.36.01 Columns {\"&COLUMN($Q$1)&\"}\"","v":"!!FC.05.01.36.01 Columns {17}"}]

{"sheet":"FC.06.01.36","index":12,"n_rows":14,"n_cols":40,"rows_kept":14,"cut":false,"hidden":true,"merged":[[1,1,1,14],[4,1,4,11],[8,1,10,1],[8,2,10,2],[8,3,10,3],[8,4,9,28]]}
[]
[null,"Risk concentration – Exposure to Counterparties"]
[]
[]
[null,"FC.06.01.36.01 - Risk concentration - Exposure to counterparties"]
[]
[]
[]
[null,"Line identification","Identification code and type of code of the external counterparty of the group","Identification code and type of code of the Entity of financial conglomerate","Columns"]
[]
[null,null,null,null,"Name of the external counterparty","Name of the group (in case of group of counterparties)","Rating","Nominated ECAI","Sector","Country","Entity of the financial conglomerate","Equity","Bonds","Assets whose risks are mainly borne by the policyholders","Derivatives","Other investments","Loans and mortgages","Guarantees and Commitments","Insurance policies","External reinsurance","Others direct exposures","Description of others","Indirect exposures","Transactions where there is an exposure to underlying assets","Currency","Total amount of the exposure","Credit or insurance risk mitigation technique","Exemptions","Amount of the exposures after Credit or insurance risk mitigation technique and exemptions"]
[null,"FC0001","FC0020","FC0090","FC0010","FC0040","FC0050","NC0051","FC0060","FC0070","FC0080","FC0110","FC0120","FC0130","FC0140","FC0150","FC0160","FC0170","FC0180","FC0190","FC0200","FC0210","FC0220","FC0230","FC0240","FC0250","FC0260","FC0270","FC0280",null,null,null,null,null,null,null,null,null,{"$f":"Show!$B$9&\"FC.06.01.36.01 Rows {\"&COLUMN($B$1)&\"}\"&\"@ForceFilingCode:true\"","v":"!FC.06.01.36.01 Rows {2}@ForceFilingCode:true"},{"$f":"Show!$B$9&\"FC.06.01.36.01 Columns {\"&COLUMN($B$1)&\"}\"","v":"!FC.06.01.36.01 Columns {2}"}]
[]
[null,null,null,null,null,null,null,null,null,null,null,null,null,null,null,null,null,null,null,null,null,null,null,null,null,null,null,null,null,null,null,null,null,null,null,null,null,null,{"$f":"Show!$B$9&Show!$B$9&\"FC.06.01.36.01 Rows {\"&COLUMN($B$1)&\"}\"","v":"!!FC.06.01.36.01 Rows {2}"},{"$f":"Show!$B$9&Show!$B$9&\"FC.06.01.36.01 Columns {\"&COLUMN($AC$1)&\"}\"","v":"!!FC.06.01.36.01 Columns {29}"}]

{"sheet":"FC.07.01.36","index":13,"n_rows":51,"n_cols":14,"rows_kept":51,"cut":false,"hidden":true,"merged":[[26,1,26,11],[30,1,32,1],[30,2,31,3],[37,1,37,11],[41,3,42,3],[19,1,21,1],[19,2,20,3],[1,1,1,14],[4,1,4,11],[8,1,10,1],[8,2,9,3],[15,1,15,11]]}
[]
[null,"Risk Concentration - Exposure by currency, sector, country"]
[]
[]
[null,"FC.07.01.36.01 - Exposure by currency"]
[]
[]
[]
[null,"Currency area","Columns"]
[]
[null,null,"Exposure","%"]
[null,"FC0010","FC0020","FC0030",null,null,null,null,null,null,null,null,{"$f":"Show!$B$10&\"FC.07.01.36.01 Rows {\"&COLUMN($B$1)&\"}\"&\"@ForceFilingCode:true\"","v":"!FC.07.01.36.01 Rows {2}@ForceFilingCode:true"},{"$f":"Show!$B$10&\"FC.07.01.36.01 Columns {\"&COLUMN($B$1)&\"}\"","v":"!FC.07.01.36.01 Columns {2}"}]
[]
[null,null,null,null,null,null,null,null,null,null,null,null,{"$f":"Show!$B$10&Show!$B$10&\"FC.07.01.36.01 Rows {\"&COLUMN($B$1)&\"}\"","v":"!!FC.07.01.36.01 Rows {2}"},{"$f":"Show!$B$10&Show!$B$10&\"FC.07.01.36.01 Columns {\"&COLUMN($D$1)&\"}\"","v":"!!FC.07.01.36.01 Columns {4}"}]
[]
[null,"FC.07.01.36.02 - Exposure by sector"]
[]
[]
[]
[null,"Sector","Columns"]
[]
[null,null,"Exposure","%"]
[null,"FC0040","FC0020","FC0030",null,null,null,null,null,null,null,null,{"$f":"Show!$B$10&\"FC.07.01.36.02 Rows {\"&COLUMN($B$1)&\"}\"&\"@ForceFilingCode:true\"","v":"!FC.07.01.36.02 Rows {2}@ForceFilingCode:true"},{"$f":"Show!$B$10&\"FC.07.01.36.02 Columns {\"&COLUMN($B$1)&\"}\"","v":"!FC.07.01.36.02 Columns {2}"}]
[]
[null,null,null,null,null,null,null,null,null,null,null,null,{"$f":"Show!$B$10&Show!$B$10&\"FC.07.01.36.02 Rows {\"&COLUMN($B$1)&\"}\"","v":"!!FC.07.01.36.02 Rows {2}"},{"$f":"Show!$B$10&Show!$B$10&\"FC.07.01.36.02 Columns {\"&COLUMN($D$1)&\"}\"","v":"!!FC.07.01.36.02 Columns {4}"}]
[]
[null,"FC.07.01.36.03 - Exposure by country"]
[]
[]
[]
[null,"Country","Columns"]
[]
[null,null,"Exposure","%"]
[null,"FC0050","FC0020","FC0030",null,null,null,null,null,null,null,null,{"$f":"Show!$B$10&\"FC.07.01.36.03 Rows {\"&COLUMN($B$1)&\"}\"&\"@ForceFilingCode:true\"","v":"!FC.07.01.36.03 Rows {2}@ForceFilingCode:true"},{"$f":"Show!$B$10&\"FC.07.01.36.03 Columns {\"&COLUMN($B$1)&\"}\"","v":"!FC.07.01.36.03 Columns {2}"}]
[]
[null,null,null,null,null,null,null,null,null,null,null,null,{"$f":"Show!$B$10&Show!$B$10&\"FC.07.01.36.03 Rows {\"&COLUMN($B$1)&\"}\"","v":"!!FC.07.01.36.03 Rows {2}"},{"$f":"Show!$B$10&Show!$B$10&\"FC.07.01.36.03 Columns {\"&COLUMN($D$1)&\"}\"","v":"!!FC.07.01.36.03 Columns {4}"}]
[]
[null,"FC.07.01.36.04 - Total exposures"]
[]
[]
[]
[null,null,null,"Columns"]
[]
[null,null,null,"Total exposure"]
[null,null,null,"FC0060",null,null,null,null,null,null,null,null,{"$f":"Show!$B$10&\"FC.07.01.36.04 Rows {\"&COLUMN($C$1)&\"}\"&\"@ForceFilingCode:true\"","v":"!FC.07.01.36.04 Rows {3}@ForceFilingCode:true"},{"$f":"Show!$B$10&\"FC.07.01.36.04 Columns {\"&COLUMN($D$1)&\"}\"","v":"!FC.07.01.36.04 Columns {4}"}]
[null,"Rows",""]
[null,"Exposure by currency","FR0010"]
[null,"Exposure by sector","FR0020"]
[null,"Exposure by country","FR0030"]
[]
[null,null,null,null,null,null,null,null,null,null,null,null,{"$f":"Show!$B$10&Show!$B$10&\"FC.07.01.36.04 Rows {\"&COLUMN($C$1)&\"}\"","v":"!!FC.07.01.36.04 Rows {3}"},{"$f":"Show!$B$10&Show!$B$10&\"FC.07.01.36.04 Columns {\"&COLUMN($D$1)&\"}\"","v":"!!FC.07.01.36.04 Columns {4}"}]

{"sheet":"FC.08.01.36","index":14,"n_rows":39,"n_cols":11,"rows_kept":39,"cut":false,"hidden":true,"merged":[[1,1,1,14],[4,1,4,11],[10,3,11,4],[19,1,19,11],[26,3,27,4]]}
[]
[null,"Risk Concentration - Exposure by asset class and rating"]
[]
[]
[null,"FC.08.01.36.01 - Equity"]
[]
[null,"Sheets",null,null,null,null,null,null,null,{"$f":"Show!$B$11&\"FC.08.01.36.01 Table label {\"&COLUMN($C$1)&\"}\"","v":"!FC.08.01.36.01 Table label {3}"},{"$f":"Show!$B$11&\"FC.08.01.36.01 Table value {\"&COLUMN($D$1)&\"}\"","v":"!FC.08.01.36.01 Table value {4}"}]
[null,"Z Axis:","Z0001",1]
[null,null,null,null,null,null,null,null,null,{"$f":"Show!$B$11&Show!$B$11&\"FC.08.01.36.01 Table label {\"&COLUMN($C$1)&\"}\"","v":"!!FC.08.01.36.01 Table label {3}"},{"$f":"Show!$B$11&Show!$B$11&\"FC.08.01.36.01 Table value {\"&COLUMN($D$1)&\"}\"","v":"!!FC.08.01.36.01 Table value {4}"}]
[]
[null,null,null,"Columns"]
[]
[null,null,null,"Exposure","Share of total assets"]
[null,null,null,"FC0010","FC0020",null,null,null,null,{"$f":"Show!$B$11&\"FC.08.01.36.01 Rows {\"&COLUMN($C$1)&\"}\"&\"@ForceFilingCode:true\"","v":"!FC.08.01.36.01 Rows {3}@ForceFilingCode:true"},{"$f":"Show!$B$11&\"FC.08.01.36.01 Columns {\"&COLUMN($D$1)&\"}\"","v":"!FC.08.01.36.01 Columns {4}"}]
[null,"Rows",""]
[null,"Total","FR0010"]
[]
[null,null,null,null,null,null,null,null,null,{"$f":"Show!$B$11&Show!$B$11&\"FC.08.01.36.01 Rows {\"&COLUMN($C$1)&\"}\"","v":"!!FC.08.01.36.01 Rows {3}"},{"$f":"Show!$B$11&Show!$B$11&\"FC.08.01.36.01 Columns {\"&COLUMN($E$1)&\"}\"","v":"!!FC.08.01.36.01 Columns {5}"}]
[]
[null,"FC.08.01.36.02 - Bonds"]
[]
[null,"Sheets",null,null,null,null,null,null,null,{"$f":"Show!$B$11&\"FC.08.01.36.02 Table label {\"&COLUMN($C$1)&\"}\"","v":"!FC.08.01.36.02 Table label {3}"},{"$f":"Show!$B$11&\"FC.08.01.36.02 Table value {\"&COLUMN($D$1)&\"}\"","v":"!FC.08.01.36.02 Table value {4}"}]
[null,"Z Axis:","Z0001",1]
[null,"Types of bonds","Z0010"]
[null,null,null,null,null,null,null,null,null,{"$f":"Show!$B$11&Show!$B$11&\"FC.08.01.36.02 Table label {\"&COLUMN($C$1)&\"}\"","v":"!!FC.08.01.36.02 Table label {3}"},{"$f":"Show!$B$11&Show!$B$11&\"FC.08.01.36.02 Table value {\"&COLUMN($D$1)&\"}\"","v":"!!FC.08.01.36.02 Table value {4}"}]
[]
[null,null,null,"Columns"]
[]
[null,null,null,"Exposure","%"]
[null,null,null,"FC0010","FC0020",null,null,null,null,{"$f":"Show!$B$11&\"FC.08.01.36.02 Rows {\"&COLUMN($C$1)&\"}\"&\"@ForceFilingCode:true\"","v":"!FC.08.01.36.02 Rows {3}@ForceFilingCode:true"},{"$f":"Show!$B$11&\"FC.08.01.36.02 Columns {\"&COLUMN($D$1)&\"}\"","v":"!FC.08.01.36.02 Columns {4}"}]
[null,"Rows",""]
[null,"AAA","FR0020"]
[null,"AA","FR0030"]
[null,"A","FR0040"]
[null,"BBB","FR0050"]
[null,"Non inv grade","FR0060"]
[null,"Total","FR0070"]
[]
[null,null,null,null,null,null,null,null,null,{"$f":"Show!$B$11&Show!$B$11&\"FC.08.01.36.02 Rows {\"&COLUMN($C$1)&\"}\"","v":"!!FC.08.01.36.02 Rows {3}"},{"$f":"Show!$B$11&Show!$B$11&\"FC.08.01.36.02 Columns {\"&COLUMN($E$1)&\"}\"","v":"!!FC.08.01.36.02 Columns {5}"}]

{"sheet":"FT.99.01.01","index":15,"n_rows":14,"n_cols":25,"rows_kept":14,"cut":false,"hidden":true,"merged":[[1,1,1,14],[4,1,4,11],[8,1,10,1],[8,2,10,2],[8,3,10,3],[8,4,10,4],[8,5,9,12]]}
[]
[null,"Technical table"]
[]
[]
[null,"FT.99.01.01.01 - Technical table"]
[]
[]
[]
[null,"Table","X axis","Y axis","Z axis","Columns"]
[]
[null,null,null,null,null,"Comment","Monetary","String","Date","Integer","Decimal","Pure","Boolean"]
[null,"FC0010","FC0020","FC0030","FC0040","FC0050","FC0060","FC0070","FC0080","FC0090","FC0100","FC0110","FC0120",null,null,null,null,null,null,null,null,null,null,{"$f":"Show!$B$12&\"FT.99.01.01.01 Rows {\"&COLUMN($B$1)&\"}\"&\"@ForceFilingCode:true\"","v":"!FT.99.01.01.01 Rows {2}@ForceFilingCode:true"},{"$f":"Show!$B$12&\"FT.99.01.01.01 Columns {\"&COLUMN($B$1)&\"}\"","v":"!FT.99.01.01.01 Columns {2}"}]
[]
[null,null,null,null,null,null,null,null,null,null,null,null,null,null,null,null,null,null,null,null,null,null,null,{"$f":"Show!$B$12&Show!$B$12&\"FT.99.01.01.01 Rows {\"&COLUMN($B$1)&\"}\"","v":"!!FT.99.01.01.01 Rows {2}"},{"$f":"Show!$B$12&Show!$B$12&\"FT.99.01.01.01 Columns {\"&COLUMN($M$1)&\"}\"","v":"!!FT.99.01.01.01 Columns {13}"}]